﻿Authority,URI,Payment Date,Service/Directorate,Purpose of Spend,Supplier,Transaction Ref,Amount
Borough Council of Kings Lynn and West Norfolk,E07000146,04/10/2021,Food Hygiene General,Tools And Equipment,Dell Corporation Ltd,21009521,530.76
Borough Council of Kings Lynn and West Norfolk,E07000146,04/10/2021,Cashless Pk YT(GY off St),Agency,Great Yarmouth Borough Council,22006564,"238,347.20"
Borough Council of Kings Lynn and West Norfolk,E07000146,04/10/2021,Cashless Pk JF(NN on St),Agency,North Norfolk District Council,22006568,"118,716.10"
Borough Council of Kings Lynn and West Norfolk,E07000146,04/10/2021,Parkway - Gaywood,Professional Fees,North Norfolk District Council,21009740,"2,900.00"
Borough Council of Kings Lynn and West Norfolk,E07000146,04/10/2021,West Winch Growth Area,Professional Fees,Gerald Eve LLP,21009708,"7,369.00"
Borough Council of Kings Lynn and West Norfolk,E07000146,04/10/2021,Cost of Collection - CTax,Recruitment,TMP (UK) Ltd,22006456,239.75
Borough Council of Kings Lynn and West Norfolk,E07000146,04/10/2021,Parking Operations - Brgh,Recruitment,TMP (UK) Ltd,22006456,479.50
Borough Council of Kings Lynn and West Norfolk,E07000146,04/10/2021,Mintlyn Crematorium,Recruitment,TMP (UK) Ltd,22006456,239.75
Borough Council of Kings Lynn and West Norfolk,E07000146,04/10/2021,Mods and Rockers,Miscellaneous,Excaliber Security Services Ltd,21009769,"1,044.00"
Borough Council of Kings Lynn and West Norfolk,E07000146,04/10/2021,Parkway - Gaywood,Works,A T Coombes Associates Ltd,21009276,625.00
Borough Council of Kings Lynn and West Norfolk,E07000146,04/10/2021,Cafe in the Park,Confectionery - Supplies,Bidfood (BFS Group) Ltd,21009767,721.63
Borough Council of Kings Lynn and West Norfolk,E07000146,04/10/2021,Food Hygiene General,Professional Fees,Bramham Electrical Ltd,21009231,560.00
Borough Council of Kings Lynn and West Norfolk,E07000146,04/10/2021,Training Holding Account,Training,Seafish,21009555,800.00
Borough Council of Kings Lynn and West Norfolk,E07000146,04/10/2021,Pub & Tourism int charges,Postages,Royal Mail Group Ltd,22006571,1.76
Borough Council of Kings Lynn and West Norfolk,E07000146,04/10/2021,Financial Services,Postages,Royal Mail Group Ltd,22006571,138.60
Borough Council of Kings Lynn and West Norfolk,E07000146,04/10/2021,Benefit Administration,Postages,Royal Mail Group Ltd,22006571,559.24
Borough Council of Kings Lynn and West Norfolk,E07000146,04/10/2021,Cost of Collection - CTax,Postages,Royal Mail Group Ltd,22006571,818.10
Borough Council of Kings Lynn and West Norfolk,E07000146,04/10/2021,Kings Lynn Bid,Postages,Royal Mail Group Ltd,22006571,4.40
Borough Council of Kings Lynn and West Norfolk,E07000146,04/10/2021,Benefit Administration,Postages,Royal Mail Group Ltd,22006571,15.56
Borough Council of Kings Lynn and West Norfolk,E07000146,04/10/2021,Cost of Collection - CTax,Postages,Royal Mail Group Ltd,22006571,0.97
Borough Council of Kings Lynn and West Norfolk,E07000146,04/10/2021,Postage Services K Court,Postages,Royal Mail Group Ltd,22006576,936.31
Borough Council of Kings Lynn and West Norfolk,E07000146,04/10/2021,Treasury Management,Brokerage Fees,Tradition (UK) Limited,21009744,"1,512.33"
Borough Council of Kings Lynn and West Norfolk,E07000146,04/10/2021,Treasury Management,Brokerage Fees,Tradition (UK) Limited,21009745,"2,991.78"
Borough Council of Kings Lynn and West Norfolk,E07000146,04/10/2021,Treasury Management,Brokerage Fees,Tradition (UK) Limited,21009746,"2,252.05"
Borough Council of Kings Lynn and West Norfolk,E07000146,04/10/2021,VJ Day 2020,Professional Fees,Viking Stage Lighting,21009334,450.00
Borough Council of Kings Lynn and West Norfolk,E07000146,04/10/2021,Mini Meet,Professional Fees,Viking Stage Lighting,21009334,450.00
Borough Council of Kings Lynn and West Norfolk,E07000146,04/10/2021,Community Projects CRS,Service Level Agreements,North End Trust,21009758,"5,090.00"
Borough Council of Kings Lynn and West Norfolk,E07000146,04/10/2021,Printing & Graphics,Professional Fees,Copyright Licensing Agency Ltd,22006442,"1,926.43"
Borough Council of Kings Lynn and West Norfolk,E07000146,04/10/2021,Mintlyn Crematorium,Tools And Equipment,Teleshore UK Ltd t/a Gemini CCS Ltd,21009333,709.00
Borough Council of Kings Lynn and West Norfolk,E07000146,04/10/2021,NEWS Depot,Repairs & Maintenance,M English Security Limited,21009348,813.34
Borough Council of Kings Lynn and West Norfolk,E07000146,04/10/2021,Kings Court Kings Lynn,Repairs & Maintenance,M English Security Limited,21009349,"2,567.59"
Borough Council of Kings Lynn and West Norfolk,E07000146,04/10/2021,Public Cleansing,Clothing/Uniforms,V & J Knitwear Ltd,21009627,86.95
Borough Council of Kings Lynn and West Norfolk,E07000146,04/10/2021,Public Cleansing,Cleaning Material & Equip,V & J Knitwear Ltd,21009627,771.39
Borough Council of Kings Lynn and West Norfolk,E07000146,04/10/2021,Public Cleansing,Cleaning Material & Equip,V & J Knitwear Ltd,21009747,463.02
Borough Council of Kings Lynn and West Norfolk,E07000146,04/10/2021,Public Cleansing,Cleaning Material & Equip,V & J Knitwear Ltd,21009750,888.10
Borough Council of Kings Lynn and West Norfolk,E07000146,04/10/2021,Resort Seafront,Memorial Seats (Resale),Street Master (South Wales) Ltd,21009734,"1,878.00"
Borough Council of Kings Lynn and West Norfolk,E07000146,04/10/2021,South Lynn Community Centre,Repairs & Maintenance,Wrights & Holbeach Asphalt Ltd,21009445,"5,800.00"
Borough Council of Kings Lynn and West Norfolk,E07000146,04/10/2021,Discover KL Distribution,Discover KL Distribution,Take One Media Ltd,21009251,"2,555.00"
Borough Council of Kings Lynn and West Norfolk,E07000146,04/10/2021,Natl Assist Act Burials,Burial Fees-Nat.Ass.Act,Thornalley Funeral Services Ltd,21009743,"1,170.00"
Borough Council of Kings Lynn and West Norfolk,E07000146,04/10/2021,Priory Road D Market,Repairs & Maintenance,AMR Electrical Services Ltd,21009576,564.53
Borough Council of Kings Lynn and West Norfolk,E07000146,04/10/2021,Rough Sleeper Fund,Covid 19,AMR Electrical Services Ltd,21009578,"1,209.85"
Borough Council of Kings Lynn and West Norfolk,E07000146,04/10/2021,Welfare Reform Funding,Professional Fees,Civica UK Ltd,21009318,"5,175.00"
Borough Council of Kings Lynn and West Norfolk,E07000146,04/10/2021,Air Quality,Consultants Fees,Martin Cranfield Associates Ltd,21009739,"3,532.84"
Borough Council of Kings Lynn and West Norfolk,E07000146,04/10/2021,Community Projects CRS,Service Level Agreements,Supreme Surfacing Ltd,21009721,"1,800.00"
Borough Council of Kings Lynn and West Norfolk,E07000146,04/10/2021,Financial Services,Agency Staff,Hays Specialist Recruitment,21009727,"2,950.00"
Borough Council of Kings Lynn and West Norfolk,E07000146,04/10/2021,Priory Road D Market,Repairs & Maintenance,Robert Fox,21009719,"4,211.00"
Borough Council of Kings Lynn and West Norfolk,E07000146,04/10/2021,Priory Road D Market,Repairs & Maintenance,Robert Fox,21009719,479.00
Borough Council of Kings Lynn and West Norfolk,E07000146,04/10/2021,Street Lighting,Repairs & Maintenance,Westcotec Ltd,21009768,"5,221.00"
Borough Council of Kings Lynn and West Norfolk,E07000146,04/10/2021,Factory 1 Refurb,Works,AMR Mechanical Services Ltd,21009581,"9,385.04"
Borough Council of Kings Lynn and West Norfolk,E07000146,04/10/2021,NORA Phase 4,Contractor Works,Lovell Partnerships Ltd,21009735,"540,098.15"
Borough Council of Kings Lynn and West Norfolk,E07000146,04/10/2021,Salters Road,Contractor Works,Lovell Partnerships Ltd,21009736,"187,014.54"
Borough Council of Kings Lynn and West Norfolk,E07000146,04/10/2021,Hunstanton Bus Station & NCC Library,Contractor Works,Lovell Partnerships Ltd,21009716,"20,147.67"
Borough Council of Kings Lynn and West Norfolk,E07000146,04/10/2021,Lynnsport 1,Contractor Works,Lovell Partnerships Ltd,21009717,"5,338.44"
Borough Council of Kings Lynn and West Norfolk,E07000146,04/10/2021,Parkway - Gaywood,Contractor Works,Lovell Partnerships Ltd,21009718,"18,100.42"
Borough Council of Kings Lynn and West Norfolk,E07000146,04/10/2021,Day visitor awareness,Distribution,APL Media Ltd,21009705,500.00
Borough Council of Kings Lynn and West Norfolk,E07000146,04/10/2021,ICT,Communications,Flow Communications UK Ltd,21009527,"1,777.20"
Borough Council of Kings Lynn and West Norfolk,E07000146,04/10/2021,Enabler Role,Computer Equipment,CDP Soft Ltd,21009279,"1,200.00"
Borough Council of Kings Lynn and West Norfolk,E07000146,04/10/2021,Planning Policy - Dept,Computer Equipment,CDP Soft Ltd,21009279,"2,544.00"
Borough Council of Kings Lynn and West Norfolk,E07000146,04/10/2021,Corporate Health & Safety,Staff Health & Safety,Skyguard Ltd T/A Peoplesafe,21009732,"1,056.00"
Borough Council of Kings Lynn and West Norfolk,E07000146,07/10/2021,General Property,Repairs & Maintenance,1-2 Call Drainage & Groundwork Ltd,21009775,520.00
Borough Council of Kings Lynn and West Norfolk,E07000146,07/10/2021,Kings Court Service Charges,Cleaning Material & Equip,Ken Booth & Co Ltd,21009535,508.24
Borough Council of Kings Lynn and West Norfolk,E07000146,07/10/2021,Financial Services,Agency Staff,Hays Specialist Recruitment,21009846,"1,770.00"
Borough Council of Kings Lynn and West Norfolk,E07000146,07/10/2021,Financial Services,Agency Staff,Hays Specialist Recruitment,21009845,"2,802.50"
Borough Council of Kings Lynn and West Norfolk,E07000146,07/10/2021,Financial Services,Agency Staff,Hays Specialist Recruitment,21009844,"1,180.00"
Borough Council of Kings Lynn and West Norfolk,E07000146,07/10/2021,Financial Services,Agency Staff,Hays Specialist Recruitment,21009847,"1,180.00"
Borough Council of Kings Lynn and West Norfolk,E07000146,07/10/2021,Grounds Southern Area,Fuel,UK Fuels Ltd,22006597,107.85
Borough Council of Kings Lynn and West Norfolk,E07000146,07/10/2021,Public Cleansing,Fuel,UK Fuels Ltd,22006597,430.55
Borough Council of Kings Lynn and West Norfolk,E07000146,07/10/2021,Grounds Southern Area,Fuel,UK Fuels Ltd,22006597,373.78
Borough Council of Kings Lynn and West Norfolk,E07000146,07/10/2021,Contaminated Land Act,Agency Staff,The Oyster Partnership,21009802,"1,680.00"
Borough Council of Kings Lynn and West Norfolk,E07000146,07/10/2021,Day visitor awareness,Distribution,Leicestershire County Council,21009539,"1,131.00"
Borough Council of Kings Lynn and West Norfolk,E07000146,07/10/2021,County Council Elections,Professional Fees,KVT Business Care Limited,22006581,441.00
Borough Council of Kings Lynn and West Norfolk,E07000146,07/10/2021,EZ- Roads/Infrastructure,Other,Water Management Alliance,21009805,"40,971.50"
Borough Council of Kings Lynn and West Norfolk,E07000146,07/10/2021,Resort Seafront,Professional Fees,MED PTS Ambulance Services,21009803,594.00
Borough Council of Kings Lynn and West Norfolk,E07000146,07/10/2021,ICT,Recoverable Fees,TelefonicaO2UK Ltd,21009796,"1,332.44"
Borough Council of Kings Lynn and West Norfolk,E07000146,07/10/2021,Home Improvements Agency,Agency Staff,Seven Resourcing Ltd,21009618,"1,125.70"
Borough Council of Kings Lynn and West Norfolk,E07000146,07/10/2021,Home Improvements Agency,Agency Staff,Seven Resourcing Ltd,21009617,"1,669.57"
Borough Council of Kings Lynn and West Norfolk,E07000146,07/10/2021,DWP at Kings Court,Contract Security,MPD FM Ltd,21009606,"1,946.16"
Borough Council of Kings Lynn and West Norfolk,E07000146,07/10/2021,DWP at Kings Court,Contract Security,MPD FM Ltd,21009607,"6,011.01"
Borough Council of Kings Lynn and West Norfolk,E07000146,07/10/2021,ICT,Recoverable Fees,Dell Corporation Ltd,21009866,"2,123.04"
Borough Council of Kings Lynn and West Norfolk,E07000146,07/10/2021,ICT,Recoverable Fees,Dell Corporation Ltd,21009865,715.68
Borough Council of Kings Lynn and West Norfolk,E07000146,07/10/2021,Careline,Repairs & Maintenance,Dell Corporation Ltd,21009864,"1,061.52"
Borough Council of Kings Lynn and West Norfolk,E07000146,07/10/2021,Projections,Repairs & Maintenance,E Akers,21009778,300.00
Borough Council of Kings Lynn and West Norfolk,E07000146,07/10/2021,Projections,Repairs & Maintenance,E Akers,21009778,480.01
Borough Council of Kings Lynn and West Norfolk,E07000146,07/10/2021,Cafe in the Park,Repairs & Maintenance,E Akers,21009780,417.00
Borough Council of Kings Lynn and West Norfolk,E07000146,07/10/2021,Cafe in the Park,Repairs & Maintenance,E Akers,21009780,167.00
Borough Council of Kings Lynn and West Norfolk,E07000146,07/10/2021,Internal Audit,Contracted Services,Fenland District Council,21009855,"6,892.16"
Borough Council of Kings Lynn and West Norfolk,E07000146,07/10/2021,NEWS Depot,Contract Cleaning,Marathon Services Ltd,22006589,"1,525.00"
Borough Council of Kings Lynn and West Norfolk,E07000146,07/10/2021,Waste Procurement Costs,Project Costs,Breckland Council,21009665,"4,783.51"
Borough Council of Kings Lynn and West Norfolk,E07000146,07/10/2021,Community Projects CRS,Service Level Agreements,Hunstanton & District Festival of Arts,21009841,"4,300.00"
Borough Council of Kings Lynn and West Norfolk,E07000146,07/10/2021,Printing & Graphics,Materials,Canon (UK) Limited,21009568,"1,953.04"
Borough Council of Kings Lynn and West Norfolk,E07000146,07/10/2021,Resort Seafront,Professional Fees,Hunstanton Concert Band,21009868,840.00
Borough Council of Kings Lynn and West Norfolk,E07000146,07/10/2021,Cafe in the Park,Confectionery - Supplies,Booker Cash & Carry Ltd,21009887,515.94
Borough Council of Kings Lynn and West Norfolk,E07000146,07/10/2021,Cafe in the Park,Confectionery - Supplies,Booker Cash & Carry Ltd,21009887,170.91
Borough Council of Kings Lynn and West Norfolk,E07000146,07/10/2021,Lease Cars,Leasing,Commercial Services Trading Ltd,22006563,"2,030.47"
Borough Council of Kings Lynn and West Norfolk,E07000146,07/10/2021,Lease Cars,Leasing,Commercial Services Trading Ltd,22006563,"1,698.34"
Borough Council of Kings Lynn and West Norfolk,E07000146,07/10/2021,Public Cleansing,Contract Repairs,Bucher Muncipal Ltd,22006478,486.20
Borough Council of Kings Lynn and West Norfolk,E07000146,07/10/2021,Public Cleansing,Contract Repairs,Bucher Muncipal Ltd,22006478,486.20
Borough Council of Kings Lynn and West Norfolk,E07000146,07/10/2021,Public Cleansing,Contract Repairs,Bucher Muncipal Ltd,22006481,439.38
Borough Council of Kings Lynn and West Norfolk,E07000146,07/10/2021,Training Holding Account,Training,ICCM,21009533,93.00
Borough Council of Kings Lynn and West Norfolk,E07000146,07/10/2021,Training Holding Account,Training,ICCM,21009533,502.00
Borough Council of Kings Lynn and West Norfolk,E07000146,07/10/2021,ICT,Computer Hardware Maint,Switchshop Ltd,21009680,"1,960.00"
Borough Council of Kings Lynn and West Norfolk,E07000146,07/10/2021,Natl Assist Act Burials,Burial Fees-Nat.Ass.Act,Thornalley Funeral Services Ltd,21009814,"1,045.00"
Borough Council of Kings Lynn and West Norfolk,E07000146,07/10/2021,Community Projects,Service Level Agreements,West Norfolk Befriending,21009809,"1,050.00"
Borough Council of Kings Lynn and West Norfolk,E07000146,07/10/2021,Corporate Health & Safety,Staff Health & Safety,Skyguard Ltd T/A Peoplesafe,21009817,"1,056.00"
Borough Council of Kings Lynn and West Norfolk,E07000146,07/10/2021,Regis Place Unit1-Non Inv Care,Repairs & Maintenance,East Anglia Fire Protection Ltd,21009323,"4,950.00"
Borough Council of Kings Lynn and West Norfolk,E07000146,07/10/2021,Development Control,Planning Fees,Portal / Planquest Ltd,22006582,"1,386.00"
Borough Council of Kings Lynn and West Norfolk,E07000146,07/10/2021,Corporate Communitcations,Recruitment,TMP (UK) Ltd,22006461,"1,547.65"
Borough Council of Kings Lynn and West Norfolk,E07000146,07/10/2021,Rough Sleeper Fund,Covid 19,Excaliber Security Services Ltd,21009856,"5,107.20"
Borough Council of Kings Lynn and West Norfolk,E07000146,07/10/2021,Rough Sleeper Fund,Covid 19,Excaliber Security Services Ltd,21009857,"5,107.20"
Borough Council of Kings Lynn and West Norfolk,E07000146,07/10/2021,Trade Bins,Equipment/Materials,Egbert H Taylor,21009660,"3,264.88"
Borough Council of Kings Lynn and West Norfolk,E07000146,07/10/2021,Refuse - Black Bins,Equipment/Materials,Egbert H Taylor,21009660,"3,953.82"
Borough Council of Kings Lynn and West Norfolk,E07000146,07/10/2021,Green Bins/Recycling,Equipment/Materials,Egbert H Taylor,21009660,"2,791.90"
Borough Council of Kings Lynn and West Norfolk,E07000146,07/10/2021,Domestic Refuse,Dayworks and Addnl Works,Egbert H Taylor,21009660,455.00
Borough Council of Kings Lynn and West Norfolk,E07000146,07/10/2021,Refuse - Black Bins,Equipment/Materials,Egbert H Taylor,21009447,"4,531.50"
Borough Council of Kings Lynn and West Norfolk,E07000146,07/10/2021,Trade Bins,Equipment/Materials,Egbert H Taylor,21009447,"1,452.45"
Borough Council of Kings Lynn and West Norfolk,E07000146,07/10/2021,Domestic Refuse,Dayworks and Addnl Works,Egbert H Taylor,21009447,360.00
Borough Council of Kings Lynn and West Norfolk,E07000146,07/10/2021,Trade Refuse,Repairs & Maintenance,Egbert H Taylor,21009659,"1,980.00"
Borough Council of Kings Lynn and West Norfolk,E07000146,07/10/2021,Flitcham Workshops,Repairs & Maintenance,PIKESTAFF BUILDING CO LTD,21009673,"2,890.00"
Borough Council of Kings Lynn and West Norfolk,E07000146,07/10/2021,Flitcham Workshops,Repairs & Maintenance,PIKESTAFF BUILDING CO LTD,21009673,"1,590.00"
Borough Council of Kings Lynn and West Norfolk,E07000146,07/10/2021,Planning Control,Professional Fees,Northstar Urban Design Ltd,21009545,"2,241.00"
Borough Council of Kings Lynn and West Norfolk,E07000146,07/10/2021,Parking Operations - Brgh,Repairs & Maintenance,Glory Global Solutions (Int) Ltd,21009850,"2,850.00"
Borough Council of Kings Lynn and West Norfolk,E07000146,07/10/2021,VJ Day 2020,Miscellaneous,Simon Rowe Mobile Disco,21009819,"2,593.75"
Borough Council of Kings Lynn and West Norfolk,E07000146,07/10/2021,VJ Day 2020,Miscellaneous,Simon Rowe Mobile Disco,21009818,875.00
Borough Council of Kings Lynn and West Norfolk,E07000146,07/10/2021,Financial Services,Postages,Royal Mail Group Ltd,22006588,265.07
Borough Council of Kings Lynn and West Norfolk,E07000146,07/10/2021,Benefit Administration,Postages,Royal Mail Group Ltd,22006588,726.16
Borough Council of Kings Lynn and West Norfolk,E07000146,07/10/2021,Cost of Collection - CTax,Postages,Royal Mail Group Ltd,22006588,"1,453.96"
Borough Council of Kings Lynn and West Norfolk,E07000146,07/10/2021,Kings Lynn Bid,Postages,Royal Mail Group Ltd,22006588,51.92
Borough Council of Kings Lynn and West Norfolk,E07000146,07/10/2021,Benefit Administration,Postages,Royal Mail Group Ltd,22006588,5.85
Borough Council of Kings Lynn and West Norfolk,E07000146,07/10/2021,Cost of Collection - CTax,Postages,Royal Mail Group Ltd,22006588,0.45
Borough Council of Kings Lynn and West Norfolk,E07000146,07/10/2021,Benefit Administration,Postages,Royal Mail Group Ltd,22006588,13.60
Borough Council of Kings Lynn and West Norfolk,E07000146,07/10/2021,Cost of Collection - CTax,Postages,Royal Mail Group Ltd,22006588,0.80
Borough Council of Kings Lynn and West Norfolk,E07000146,07/10/2021,Cost of Collection - CTax,Postages,Royal Mail Group Ltd,22006588,6.30
Borough Council of Kings Lynn and West Norfolk,E07000146,07/10/2021,Cost of Collection - CTax,Postages,Royal Mail Group Ltd,22006588,14.40
Borough Council of Kings Lynn and West Norfolk,E07000146,07/10/2021,Grounds Northern Area,Contract Repairs,Thurlow Nunn Standen Ltd,22006453,"1,377.63"
Borough Council of Kings Lynn and West Norfolk,E07000146,11/10/2021,Public conveniences,Sewerage/Cesspool Empty,BACO-Compak (Norfolk) Ltd,22006611,550.00
Borough Council of Kings Lynn and West Norfolk,E07000146,11/10/2021,Public conveniences,Sewerage/Cesspool Empty,BACO-Compak (Norfolk) Ltd,22006613,"1,290.00"
Borough Council of Kings Lynn and West Norfolk,E07000146,11/10/2021,Standard Desktop Refresh,Equipment/Materials,Dell Corporation Ltd,21009698,"2,520.00"
Borough Council of Kings Lynn and West Norfolk,E07000146,11/10/2021,Welfare Reform Funding,Professional Fees,Dell Corporation Ltd,21009867,"7,173.60"
Borough Council of Kings Lynn and West Norfolk,E07000146,11/10/2021,Standard Desktop Refresh,Equipment/Materials,Dell Corporation Ltd,21009867,470.40
Borough Council of Kings Lynn and West Norfolk,E07000146,11/10/2021,Kings Court Kings Lynn,Covid 19,XL Displays Limited,21009337,"4,235.40"
Borough Council of Kings Lynn and West Norfolk,E07000146,11/10/2021,General Property,Repairs & Maintenance,Smith Building Services Ltd,21009869,585.00
Borough Council of Kings Lynn and West Norfolk,E07000146,11/10/2021,Grounds Northern Area,Contract Repairs,Thurlow Nunn Standen Ltd,22006454,897.03
Borough Council of Kings Lynn and West Norfolk,E07000146,11/10/2021,Careline,Tools And Equipment,Tunstall Healthcare (UK) Ltd,21009795,"1,208.00"
Borough Council of Kings Lynn and West Norfolk,E07000146,11/10/2021,Careline,Tools And Equipment,Tunstall Healthcare (UK) Ltd,21009812,"7,494.00"
Borough Council of Kings Lynn and West Norfolk,E07000146,11/10/2021,Classic Car Show,Professional Fees,Viking Stage Lighting,21009455,500.00
Borough Council of Kings Lynn and West Norfolk,E07000146,11/10/2021,Supplier Holding Account,Vehicle - repairs & Maint,Paul Johnson Motor Services Ltd,22006632,"1,111.60"
Borough Council of Kings Lynn and West Norfolk,E07000146,11/10/2021,Supplier Holding Account,Vehicle - repairs & Maint,Paul Johnson Motor Services Ltd,22006632,"5,444.83"
Borough Council of Kings Lynn and West Norfolk,E07000146,11/10/2021,Supplier Holding Account,Vehicle - repairs & Maint,Paul Johnson Motor Services Ltd,22006632,-0.01
Borough Council of Kings Lynn and West Norfolk,E07000146,11/10/2021,Licensing,CRB Forms - Expenditure,Disclosure & Barring Service,22006616,400.00
Borough Council of Kings Lynn and West Norfolk,E07000146,11/10/2021,Personnel Services,Personnel DBS Checks,Disclosure & Barring Service,22006616,200.00
Borough Council of Kings Lynn and West Norfolk,E07000146,11/10/2021,Supplier Holding Account,Vehicle - repairs & Maint,North Street Tyres,22006631,441.10
Borough Council of Kings Lynn and West Norfolk,E07000146,11/10/2021,Grounds Northern Area,Vehicle - repairs & Maint,Ernest Doe & Sons Ltd,22006619,755.46
Borough Council of Kings Lynn and West Norfolk,E07000146,11/10/2021,Grounds Northern Area,Vehicle - repairs & Maint,Ernest Doe & Sons Ltd,22006621,689.50
Borough Council of Kings Lynn and West Norfolk,E07000146,11/10/2021,Street Sweeping,Hazardous Waste Disposal,WEAAR Ltd,21009723,950.00
Borough Council of Kings Lynn and West Norfolk,E07000146,11/10/2021,Street Sweeping,Hazardous Waste Disposal,WEAAR Ltd,21009724,950.00
Borough Council of Kings Lynn and West Norfolk,E07000146,11/10/2021,Financial Services,Agency Staff,Hays Specialist Recruitment,21009923,"2,950.00"
Borough Council of Kings Lynn and West Norfolk,E07000146,11/10/2021,Mitel Telephony into Microsoft Teams,Computer Equip (Software),Bytes Software Services Ltd,21009711,"7,065.85"
Borough Council of Kings Lynn and West Norfolk,E07000146,11/10/2021,Standard Desktop Refresh,Computer Equip (Software),Bytes Software Services Ltd,21009711,"10,388.40"
Borough Council of Kings Lynn and West Norfolk,E07000146,11/10/2021,Rough Sleeper Fund,Covid 19,Bunkabin Ltd,21009516,900.00
Borough Council of Kings Lynn and West Norfolk,E07000146,11/10/2021,Personnel Services,Repairs & Maintenance,Digital ID Ltd,21009524,675.00
Borough Council of Kings Lynn and West Norfolk,E07000146,11/10/2021,Reopening High Streets Safely Fund,Professional Fees,Plastecowood Ltd,21009939,"2,105.00"
Borough Council of Kings Lynn and West Norfolk,E07000146,11/10/2021,Careline,Tools And Equipment,HOIP Telecom Ltd,21009926,500.00
Borough Council of Kings Lynn and West Norfolk,E07000146,11/10/2021,Careline,Tools And Equipment,HOIP Telecom Ltd,21009925,588.00
Borough Council of Kings Lynn and West Norfolk,E07000146,11/10/2021,Careline,Tools And Equipment,HOIP Telecom Ltd,21009924,"1,036.00"
Borough Council of Kings Lynn and West Norfolk,E07000146,11/10/2021,Recycling Composting,Waste Processing Cost,Greenworld Sales Ltd t/a Greenworld,21009922,"34,157.32"
Borough Council of Kings Lynn and West Norfolk,E07000146,11/10/2021,Grounds Northern Area,Vehicle - repairs & Maint,Ernest Doe & Sons Ltd,22006622,436.62
Borough Council of Kings Lynn and West Norfolk,E07000146,14/10/2021,Parking Operations - Brgh,Tools And Equipment,Mobius Networks Ltd,21010044,637.30
Borough Council of Kings Lynn and West Norfolk,E07000146,14/10/2021,Classic Car Show,Professional Fees,Creative Orchard,21009997,500.00
Borough Council of Kings Lynn and West Norfolk,E07000146,14/10/2021,VJ Day 2020,Miscellaneous,Creative Orchard,21009997,70.00
Borough Council of Kings Lynn and West Norfolk,E07000146,14/10/2021,Balance Sheet,VAT Input - VAT Only Purchases,Newlyn PLC,22006649,710.43
Borough Council of Kings Lynn and West Norfolk,E07000146,14/10/2021,Balance Sheet,VAT Input - VAT Only Purchases,Newlyn PLC,22006651,"1,756.73"
Borough Council of Kings Lynn and West Norfolk,E07000146,14/10/2021,Home Improvements Agency,Agency Staff,Seven Resourcing Ltd,21009643,"1,740.54"
Borough Council of Kings Lynn and West Norfolk,E07000146,14/10/2021,Home Improvements Agency,Agency Staff,Seven Resourcing Ltd,21009644,"1,118.34"
Borough Council of Kings Lynn and West Norfolk,E07000146,14/10/2021,Walks Car Park Resurf and P&D,Professional Fees,Parsons Consulting Engineers Ltd,21009938,"1,500.00"
Borough Council of Kings Lynn and West Norfolk,E07000146,14/10/2021,Training Holding Account,Training,UK Asbestos Specialists Ltd,21009620,"1,500.00"
Borough Council of Kings Lynn and West Norfolk,E07000146,14/10/2021,Public Cleansing,Water & Drainage Rates,Aquam Water Services Ltd,21009275,950.00
Borough Council of Kings Lynn and West Norfolk,E07000146,14/10/2021,Careline,Recruitment,TMP (UK) Ltd,22006520,295.00
Borough Council of Kings Lynn and West Norfolk,E07000146,14/10/2021,Apprenticeship Scheme,Recruitment,TMP (UK) Ltd,22006520,295.00
Borough Council of Kings Lynn and West Norfolk,E07000146,14/10/2021,Corporate Communitcations,Recruitment,TMP (UK) Ltd,22006521,590.00
Borough Council of Kings Lynn and West Norfolk,E07000146,14/10/2021,Parking Operations - Brgh,Repairs & Maintenance,E Akers,21009906,140.00
Borough Council of Kings Lynn and West Norfolk,E07000146,14/10/2021,Parking Operations - Brgh,Repairs & Maintenance,E Akers,21009906,468.95
Borough Council of Kings Lynn and West Norfolk,E07000146,14/10/2021,Cashless Pk YT(GY off St),Agency,Great Yarmouth Borough Council,22006667,"92,973.40"
Borough Council of Kings Lynn and West Norfolk,E07000146,14/10/2021,Cashless Pk JF(NN on St),Agency,North Norfolk District Council,22006668,"52,704.00"
Borough Council of Kings Lynn and West Norfolk,E07000146,14/10/2021,Financial Services,Postages,Royal Mail Group Ltd,22006658,153.41
Borough Council of Kings Lynn and West Norfolk,E07000146,14/10/2021,Benefit Administration,Postages,Royal Mail Group Ltd,22006658,563.47
Borough Council of Kings Lynn and West Norfolk,E07000146,14/10/2021,Cost of Collection - CTax,Postages,Royal Mail Group Ltd,22006658,905.79
Borough Council of Kings Lynn and West Norfolk,E07000146,14/10/2021,Kings Lynn Bid,Postages,Royal Mail Group Ltd,22006658,4.42
Borough Council of Kings Lynn and West Norfolk,E07000146,14/10/2021,Pub & Tourism int charges,Postages,Royal Mail Group Ltd,22006658,0.45
Borough Council of Kings Lynn and West Norfolk,E07000146,14/10/2021,Cost of Collection - CTax,Postages,Royal Mail Group Ltd,22006658,11.70
Borough Council of Kings Lynn and West Norfolk,E07000146,14/10/2021,Benefit Administration,Postages,Royal Mail Group Ltd,22006658,6.96
Borough Council of Kings Lynn and West Norfolk,E07000146,14/10/2021,Cost of Collection - CTax,Postages,Royal Mail Group Ltd,22006658,0.84
Borough Council of Kings Lynn and West Norfolk,E07000146,14/10/2021,Rough Sleeper Initiative Y3,Miscellaneous,The Purfleet Trust,21009968,"1,230.00"
Borough Council of Kings Lynn and West Norfolk,E07000146,14/10/2021,Rough Sleeper Initiative Y3,Miscellaneous,The Purfleet Trust,21010036,640.00
Borough Council of Kings Lynn and West Norfolk,E07000146,14/10/2021,Domestic Refuse,Added Years Pension,Norfolk Pension Fund,21010039,"-2,568.81"
Borough Council of Kings Lynn and West Norfolk,E07000146,14/10/2021,Trade Refuse,Added Years Pension,Norfolk Pension Fund,21010039,204.22
Borough Council of Kings Lynn and West Norfolk,E07000146,14/10/2021,Corporate,Added Years Pension,Norfolk Pension Fund,21010039,"21,367.30"
Borough Council of Kings Lynn and West Norfolk,E07000146,14/10/2021,Lease Cars,Leasing,Commercial Services Trading Ltd,22006601,"2,871.51"
Borough Council of Kings Lynn and West Norfolk,E07000146,14/10/2021,Lease Cars,Leasing,Commercial Services Trading Ltd,22006601,"3,070.21"
Borough Council of Kings Lynn and West Norfolk,E07000146,14/10/2021,Cllr Allowance & Exps,Seminars/Training,IDEA,21009601,700.00
Borough Council of Kings Lynn and West Norfolk,E07000146,14/10/2021,Register of Electors,Stationery & Office,Civica Election Services Ltd,22006483,"17,297.66"
Borough Council of Kings Lynn and West Norfolk,E07000146,14/10/2021,Register of Electors,Stationery & Office,Civica Election Services Ltd,22006484,"8,624.34"
Borough Council of Kings Lynn and West Norfolk,E07000146,14/10/2021,Austin Fields Industrial Estate,Repairs & Maintenance,AMR Electrical Services Ltd,21009776,604.22
Borough Council of Kings Lynn and West Norfolk,E07000146,14/10/2021,Street Sweeping,Hazardous Waste Disposal,WEAAR Ltd,21009188,500.00
Borough Council of Kings Lynn and West Norfolk,E07000146,14/10/2021,Factory 1 Refurb,Works,WEAAR Ltd,21010063,450.00
Borough Council of Kings Lynn and West Norfolk,E07000146,14/10/2021,Custom House & Tics,Repairs & Maintenance,1-2 Call Drainage & Groundwork Ltd,21010054,750.00
Borough Council of Kings Lynn and West Norfolk,E07000146,14/10/2021,General Property,Repairs & Maintenance,1-2 Call Drainage & Groundwork Ltd,21010058,760.00
Borough Council of Kings Lynn and West Norfolk,E07000146,14/10/2021,General Property,Repairs & Maintenance,1-2 Call Drainage & Groundwork Ltd,21010059,480.00
Borough Council of Kings Lynn and West Norfolk,E07000146,14/10/2021,Kings Court Service Charges,Repairs & Maintenance,H2O Vend Ltd,21009974,494.00
Borough Council of Kings Lynn and West Norfolk,E07000146,14/10/2021,Building Control Non Fee,Agency,CNC Buiding Control,21010022,"15,600.50"
Borough Council of Kings Lynn and West Norfolk,E07000146,14/10/2021,Postage Services K Court,Postages,Pitney Bowes Purchase Power,22006656,"10,031.02"
Borough Council of Kings Lynn and West Norfolk,E07000146,14/10/2021,Rough Sleeper Fund,Covid 19,Excaliber Security Services Ltd,21010018,"5,107.20"
Borough Council of Kings Lynn and West Norfolk,E07000146,14/10/2021,Decarbonisation ReFit 2,Works,Ameresco Ltd,21010028,"125,633.34"
Borough Council of Kings Lynn and West Norfolk,E07000146,14/10/2021,Trade Bins,Equipment/Materials,Egbert H Taylor,21009975,"2,777.90"
Borough Council of Kings Lynn and West Norfolk,E07000146,14/10/2021,Refuse - Black Bins,Equipment/Materials,Egbert H Taylor,21009975,925.00
Borough Council of Kings Lynn and West Norfolk,E07000146,14/10/2021,Careline,Tools And Equipment,HOIP Telecom Ltd,21009977,421.07
Borough Council of Kings Lynn and West Norfolk,E07000146,14/10/2021,Careline,Tools And Equipment,HOIP Telecom Ltd,21009978,761.75
Borough Council of Kings Lynn and West Norfolk,E07000146,14/10/2021,Careline,Tools And Equipment,HOIP Telecom Ltd,21009979,756.50
Borough Council of Kings Lynn and West Norfolk,E07000146,14/10/2021,Careline,Tools And Equipment,HOIP Telecom Ltd,21009980,"1,028.69"
Borough Council of Kings Lynn and West Norfolk,E07000146,14/10/2021,Careline,Tools And Equipment,HOIP Telecom Ltd,21010014,552.00
Borough Council of Kings Lynn and West Norfolk,E07000146,14/10/2021,VJ Day 2020,Miscellaneous,Rhubarb Theatre,22006657,445.00
Borough Council of Kings Lynn and West Norfolk,E07000146,18/10/2021,Guildhall & Art - Supp,Agency Staff,Norfolk County Council,21009971,"3,703.00"
Borough Council of Kings Lynn and West Norfolk,E07000146,18/10/2021,NNDC Penalty Notice,Agency,North Norfolk District Council,21010135,"10,385.71"
Borough Council of Kings Lynn and West Norfolk,E07000146,18/10/2021,Sports Grounds North,Materials,Collier Turf Care Ltd,22006679,"5,725.92"
Borough Council of Kings Lynn and West Norfolk,E07000146,18/10/2021,Financial Services,Agency Staff,Hays Specialist Recruitment,21010121,"2,065.00"
Borough Council of Kings Lynn and West Norfolk,E07000146,18/10/2021,Financial Services,Agency Staff,Hays Specialist Recruitment,21010122,"3,540.00"
Borough Council of Kings Lynn and West Norfolk,E07000146,18/10/2021,Financial Services,Agency Staff,Hays Specialist Recruitment,21010148,"2,360.00"
Borough Council of Kings Lynn and West Norfolk,E07000146,18/10/2021,Dog Warden and Services,Contracted Services,Dogotel Kennels & Cattery,22006680,"1,035.00"
Borough Council of Kings Lynn and West Norfolk,E07000146,18/10/2021,Dog Warden and Services,Kennel Fees,Dogotel Kennels & Cattery,22006680,370.00
Borough Council of Kings Lynn and West Norfolk,E07000146,18/10/2021,Dog Warden and Services,Kennel Fees Recd - Extl,Dogotel Kennels & Cattery,22006680,-95.50
Borough Council of Kings Lynn and West Norfolk,E07000146,18/10/2021,General Property,Advertising & Marketing,Rightmove Group Ltd,21009646,720.00
Borough Council of Kings Lynn and West Norfolk,E07000146,18/10/2021,Habitat Regulations,Small Projects,RSPB,22006671,"11,300.35"
Borough Council of Kings Lynn and West Norfolk,E07000146,18/10/2021,Lynnsport 4 /5,Contractor Works,Lovell Partnerships Ltd,21010061,"4,067.00"
Borough Council of Kings Lynn and West Norfolk,E07000146,18/10/2021,Phase 1 -  Marsh Lane,Contractor Works,Lovell Partnerships Ltd,21010062,"4,123.00"
Borough Council of Kings Lynn and West Norfolk,E07000146,18/10/2021,ICT,Computer Software Maint,IEG4 Ltd,21009602,"52,339.00"
Borough Council of Kings Lynn and West Norfolk,E07000146,18/10/2021,ICT,Computer Software Maint,IEG4 Ltd,21009603,"5,000.00"
Borough Council of Kings Lynn and West Norfolk,E07000146,18/10/2021,Cashless Pk JG (Bk on St),Transaction Fee,Chipside Ltd,21010091,8.00
Borough Council of Kings Lynn and West Norfolk,E07000146,18/10/2021,Cashless Pk JE(NN on St),Transaction Fee,Chipside Ltd,21010091,155.00
Borough Council of Kings Lynn and West Norfolk,E07000146,18/10/2021,Cashless Park KR (KLWN on ST),Transaction Fee,Chipside Ltd,21010091,223.33
Borough Council of Kings Lynn and West Norfolk,E07000146,18/10/2021,Cashless Pk JI(GYon St),Transaction Fee,Chipside Ltd,21010091,643.16
Borough Council of Kings Lynn and West Norfolk,E07000146,18/10/2021,Cashless Pk JF(NN on St),Transaction Fee,Chipside Ltd,21010091,"1,141.00"
Borough Council of Kings Lynn and West Norfolk,E07000146,18/10/2021,Cashless Pk YT(GY off St),Transaction Fee,Chipside Ltd,21010091,"1,199.75"
Borough Council of Kings Lynn and West Norfolk,E07000146,18/10/2021,Cashless Park KZ (KLWN off ST),Transaction Fee,Chipside Ltd,21010091,"3,552.83"
Borough Council of Kings Lynn and West Norfolk,E07000146,18/10/2021,Cashless Pk JG (Bk on St),Merchant Fees,Chipside Ltd,21010092,1.17
Borough Council of Kings Lynn and West Norfolk,E07000146,18/10/2021,Cashless Pk JE(NN on St),Merchant Fees,Chipside Ltd,21010092,20.38
Borough Council of Kings Lynn and West Norfolk,E07000146,18/10/2021,Cashless Park KR (KLWN on ST),Merchant Fees,Chipside Ltd,21010092,57.32
Borough Council of Kings Lynn and West Norfolk,E07000146,18/10/2021,Cashless Pk JI(GYon St),Merchant Fees,Chipside Ltd,21010092,426.97
Borough Council of Kings Lynn and West Norfolk,E07000146,18/10/2021,Cashless Pk JF(NN on St),Merchant Fees,Chipside Ltd,21010092,675.36
Borough Council of Kings Lynn and West Norfolk,E07000146,18/10/2021,Cashless Pk YT(GY off St),Merchant Fees,Chipside Ltd,21010092,"1,143.25"
Borough Council of Kings Lynn and West Norfolk,E07000146,18/10/2021,Cashless Park KZ (KLWN off ST),Merchant Fees,Chipside Ltd,21010092,"1,957.16"
Borough Council of Kings Lynn and West Norfolk,E07000146,18/10/2021,LILY 5,Lily Advisor Payments,West Norfolk Carers Association,21010144,"1,852.50"
Borough Council of Kings Lynn and West Norfolk,E07000146,18/10/2021,Development and Estates Capital Receipts,Disposal Costs Physical Works,Parsons Consulting Engineers Ltd,21010146,560.00
Borough Council of Kings Lynn and West Norfolk,E07000146,18/10/2021,Development and Estates Capital Receipts,Disposal Costs Physical Works,Parsons Consulting Engineers Ltd,21010146,"3,712.50"
Borough Council of Kings Lynn and West Norfolk,E07000146,18/10/2021,CCTV,Rental CCTV - BT,4Sight Communications,21009668,758.70
Borough Council of Kings Lynn and West Norfolk,E07000146,18/10/2021,Grounds Southern Area,Repairs & Maintenance,Holly Landscapes,22006699,780.00
Borough Council of Kings Lynn and West Norfolk,E07000146,18/10/2021,Kings Court Kings Lynn,Tools And Equipment,Quadient UK Limited,21009741,"1,565.95"
Borough Council of Kings Lynn and West Norfolk,E07000146,18/10/2021,Sports Grounds North,Materials,Advance Grass Solutions,22006523,281.68
Borough Council of Kings Lynn and West Norfolk,E07000146,18/10/2021,Sports Grounds North,Materials,Advance Grass Solutions,22006523,179.20
Borough Council of Kings Lynn and West Norfolk,E07000146,18/10/2021,Sports Grounds Central,Materials,Advance Grass Solutions,22006523,281.68
Borough Council of Kings Lynn and West Norfolk,E07000146,18/10/2021,Sports Grounds Central,Materials,Advance Grass Solutions,22006523,179.20
Borough Council of Kings Lynn and West Norfolk,E07000146,18/10/2021,Sports Grounds South,Materials,Advance Grass Solutions,22006523,281.68
Borough Council of Kings Lynn and West Norfolk,E07000146,18/10/2021,Sports Grounds South,Materials,Advance Grass Solutions,22006523,179.20
Borough Council of Kings Lynn and West Norfolk,E07000146,18/10/2021,Community Projects CRS,Service Level Agreements,E Akers,21010070,"1,587.96"
Borough Council of Kings Lynn and West Norfolk,E07000146,18/10/2021,Projections,Tools And Equipment,E Akers,21010098,450.00
Borough Council of Kings Lynn and West Norfolk,E07000146,18/10/2021,Closed Churchyards,Repairs & Maintenance,KJN Landscapes,21010128,"1,200.00"
Borough Council of Kings Lynn and West Norfolk,E07000146,18/10/2021,NNDC Penalty Notice,Agency,North Norfolk District Council,21010136,"9,695.70"
Borough Council of Kings Lynn and West Norfolk,E07000146,18/10/2021,Public Cleansing,Cleaning Material & Equip,V & J Knitwear Ltd,21010141,774.41
Borough Council of Kings Lynn and West Norfolk,E07000146,18/10/2021,Parking Operations - Brgh,Tools And Equipment,Bemrose Booth Paragon Ltd,21009560,"2,211.00"
Borough Council of Kings Lynn and West Norfolk,E07000146,18/10/2021,NNDC Carpark Operation,Stationery & Office,Bemrose Booth Paragon Ltd,21009561,423.20
Borough Council of Kings Lynn and West Norfolk,E07000146,18/10/2021,Parking Operations - Brgh,Stationery & Office,Bemrose Booth Paragon Ltd,21009561,"2,161.00"
Borough Council of Kings Lynn and West Norfolk,E07000146,18/10/2021,Street Sweeping,Animal Removal,Peaceful Pets Ltd,22006682,455.00
Borough Council of Kings Lynn and West Norfolk,E07000146,18/10/2021,Public Cleansing,Vehicle - repairs & Maint,EMG Anglia Ltd,22006688,800.00
Borough Council of Kings Lynn and West Norfolk,E07000146,18/10/2021,LILY 5,Lily Advisor Payments,West Norfolk Befriending,21010143,"1,000.00"
Borough Council of Kings Lynn and West Norfolk,E07000146,18/10/2021,Recycling Composting,Waste Processing Cost,Greenworld Sales Ltd t/a Greenworld,22006695,419.03
Borough Council of Kings Lynn and West Norfolk,E07000146,18/10/2021,Tech/Officers/Repairs,Tools And Equipment,Ernest Doe & Sons Ltd,22006691,560.00
Borough Council of Kings Lynn and West Norfolk,E07000146,18/10/2021,Community Projects CRS,Service Level Agreements,Focus Security (East Anglia) Ltd,21010069,604.50
Borough Council of Kings Lynn and West Norfolk,E07000146,18/10/2021,NNDC Penalty Notice,Agency,North Norfolk District Council,21010137,"8,727.59"
Borough Council of Kings Lynn and West Norfolk,E07000146,18/10/2021,Financial Services,Postages,Royal Mail Group Ltd,22006705,82.28
Borough Council of Kings Lynn and West Norfolk,E07000146,18/10/2021,Benefit Administration,Postages,Royal Mail Group Ltd,22006705,567.16
Borough Council of Kings Lynn and West Norfolk,E07000146,18/10/2021,Cost of Collection - CTax,Postages,Royal Mail Group Ltd,22006705,872.98
Borough Council of Kings Lynn and West Norfolk,E07000146,18/10/2021,Kings Lynn Bid,Postages,Royal Mail Group Ltd,22006705,37.84
Borough Council of Kings Lynn and West Norfolk,E07000146,18/10/2021,Financial Services,Postages,Royal Mail Group Ltd,22006705,1.80
Borough Council of Kings Lynn and West Norfolk,E07000146,18/10/2021,Benefit Administration,Postages,Royal Mail Group Ltd,22006705,22.50
Borough Council of Kings Lynn and West Norfolk,E07000146,18/10/2021,Cost of Collection - CTax,Postages,Royal Mail Group Ltd,22006705,6.44
Borough Council of Kings Lynn and West Norfolk,E07000146,18/10/2021,Kings Lynn Bid,Postages,Royal Mail Group Ltd,22006705,1.80
Borough Council of Kings Lynn and West Norfolk,E07000146,18/10/2021,Cost of Collection - CTax,Postages,Royal Mail Group Ltd,22006705,32.54
Borough Council of Kings Lynn and West Norfolk,E07000146,18/10/2021,Financial Services,Postages,Royal Mail Group Ltd,22006706,"1,011.27"
Borough Council of Kings Lynn and West Norfolk,E07000146,18/10/2021,Benefit Administration,Postages,Royal Mail Group Ltd,22006706,264.25
Borough Council of Kings Lynn and West Norfolk,E07000146,18/10/2021,Cost of Collection - CTax,Postages,Royal Mail Group Ltd,22006706,901.79
Borough Council of Kings Lynn and West Norfolk,E07000146,18/10/2021,Benefit Administration,Postages,Royal Mail Group Ltd,22006706,10.80
Borough Council of Kings Lynn and West Norfolk,E07000146,18/10/2021,Cost of Collection - CTax,Postages,Royal Mail Group Ltd,22006706,2.51
Borough Council of Kings Lynn and West Norfolk,E07000146,18/10/2021,Kings Lynn Bid,Postages,Royal Mail Group Ltd,22006706,17.25
Borough Council of Kings Lynn and West Norfolk,E07000146,18/10/2021,VJ Day 2020,Professional Fees,Viking Stage Lighting,21009625,450.00
Borough Council of Kings Lynn and West Norfolk,E07000146,18/10/2021,Mods and Rockers,Professional Fees,Viking Stage Lighting,21009625,450.00
Borough Council of Kings Lynn and West Norfolk,E07000146,20/10/2021,KL Innovation Centre,Telephones,Spitfire Network Services Ltd,22006752,912.45
Borough Council of Kings Lynn and West Norfolk,E07000146,20/10/2021,ICT,MPhone Usage & Top-up,TelefonicaO2UK Ltd,22006753,"1,020.90"
Borough Council of Kings Lynn and West Norfolk,E07000146,20/10/2021,Utility Holding,Gas,Total Gas & Power Ltd,22006754,"11,613.04"
Borough Council of Kings Lynn and West Norfolk,E07000146,20/10/2021,Corporate,Bank Charges,Allpay,22006740,"1,447.93"
Borough Council of Kings Lynn and West Norfolk,E07000146,20/10/2021,ICT,Computer Software Maint,Capita Business Services Ltd,22006747,"1,151.50"
Borough Council of Kings Lynn and West Norfolk,E07000146,20/10/2021,Utility Holding,Electricity Bulk Billing,EDF Energy Ltd,22006748,"50,234.27"
Borough Council of Kings Lynn and West Norfolk,E07000146,20/10/2021,Kings Court Kings Lynn,Confectionery - Supplies,Propel Finance Plc,22006750,"1,206.70"
Borough Council of Kings Lynn and West Norfolk,E07000146,20/10/2021,Mintlyn Crematorium,Repairs & Maintenance,AMR Mechanical Services Ltd,21010232,"2,389.97"
Borough Council of Kings Lynn and West Norfolk,E07000146,20/10/2021,Corporate,Bank Charges,Worldpay Ltd,22006755,"14,208.15"
Borough Council of Kings Lynn and West Norfolk,E07000146,20/10/2021,Corporate,Bank Charges,Worldpay Ltd,22006755,751.72
Borough Council of Kings Lynn and West Norfolk,E07000146,21/10/2021,ICT,Broadband Charge,British Telecommunications PLC,21010157,"1,032.42"
Borough Council of Kings Lynn and West Norfolk,E07000146,21/10/2021,ICT,Telephones,British Telecommunications PLC,21010159,494.09
Borough Council of Kings Lynn and West Norfolk,E07000146,21/10/2021,CCTV Breckland,Repairs & Maintenance,E Akers,21010172,475.00
Borough Council of Kings Lynn and West Norfolk,E07000146,21/10/2021,CCTV,Repairs & Maintenance,E Akers,21010173,475.00
Borough Council of Kings Lynn and West Norfolk,E07000146,21/10/2021,Projections,Tools And Equipment,E Akers,21010097,250.00
Borough Council of Kings Lynn and West Norfolk,E07000146,21/10/2021,Projections,Tools And Equipment,E Akers,21010097,192.72
Borough Council of Kings Lynn and West Norfolk,E07000146,21/10/2021,"St Edmunds, D'ham Mkt",Repairs & Maintenance,Richard C F Waite,21010190,"1,200.00"
Borough Council of Kings Lynn and West Norfolk,E07000146,21/10/2021,Financial Services,Postages,Royal Mail Group Ltd,22006715,951.72
Borough Council of Kings Lynn and West Norfolk,E07000146,21/10/2021,Benefit Administration,Postages,Royal Mail Group Ltd,22006715,319.00
Borough Council of Kings Lynn and West Norfolk,E07000146,21/10/2021,Cost of Collection - CTax,Postages,Royal Mail Group Ltd,22006715,924.16
Borough Council of Kings Lynn and West Norfolk,E07000146,21/10/2021,Kings Lynn Bid,Postages,Royal Mail Group Ltd,22006715,0.44
Borough Council of Kings Lynn and West Norfolk,E07000146,21/10/2021,Benefit Administration,Postages,Royal Mail Group Ltd,22006715,3.28
Borough Council of Kings Lynn and West Norfolk,E07000146,21/10/2021,Cost of Collection - CTax,Postages,Royal Mail Group Ltd,22006715,39.28
Borough Council of Kings Lynn and West Norfolk,E07000146,21/10/2021,Radio Phones,Communications,Claranet Ltd,21010180,64.84
Borough Council of Kings Lynn and West Norfolk,E07000146,21/10/2021,ICT,Communications,Claranet Ltd,21010180,"4,473.58"
Borough Council of Kings Lynn and West Norfolk,E07000146,21/10/2021,Benefit Administration,Broadband Charge,Claranet Ltd,21010180,276.42
Borough Council of Kings Lynn and West Norfolk,E07000146,21/10/2021,ICT,Broadband Charge,Claranet Ltd,21010180,46.24
Borough Council of Kings Lynn and West Norfolk,E07000146,21/10/2021,NNDC Carpark Operation,Broadband Charge,Claranet Ltd,21010180,135.58
Borough Council of Kings Lynn and West Norfolk,E07000146,21/10/2021,South Lynn Community Centre,Broadband Charge,Claranet Ltd,21010180,46.24
Borough Council of Kings Lynn and West Norfolk,E07000146,21/10/2021,Grounds Maintenance Equip,Equipment/Materials,Ernest Doe & Sons Ltd,21010186,"5,960.00"
Borough Council of Kings Lynn and West Norfolk,E07000146,21/10/2021,ICT,Recoverable Fees,Kingsfield Computer Product Ltd,21009690,"1,099.55"
Borough Council of Kings Lynn and West Norfolk,E07000146,21/10/2021,Mintlyn Crematorium,Repairs & Maintenance,1-2 Call Drainage & Groundwork Ltd,21010162,"2,250.00"
Borough Council of Kings Lynn and West Norfolk,E07000146,21/10/2021,Mintlyn Crematorium,Repairs & Maintenance,UPS Systems PLC,21009639,725.00
Borough Council of Kings Lynn and West Norfolk,E07000146,21/10/2021,Financial Services,Agency Staff,Hays Specialist Recruitment,21010197,"1,032.50"
Borough Council of Kings Lynn and West Norfolk,E07000146,21/10/2021,Financial Services,Agency Staff,Hays Specialist Recruitment,21010196,"2,360.00"
Borough Council of Kings Lynn and West Norfolk,E07000146,21/10/2021,ICT,Computer Software Maint,GMO Globalsign Ltd,21009657,419.00
Borough Council of Kings Lynn and West Norfolk,E07000146,21/10/2021,ICT,Computer Software Maint,Jobtrain Ltd,21009652,"10,972.00"
Borough Council of Kings Lynn and West Norfolk,E07000146,21/10/2021,Contaminated Land Act,Agency Staff,The Oyster Partnership,21010202,"1,680.00"
Borough Council of Kings Lynn and West Norfolk,E07000146,21/10/2021,Domestic Refuse,Dayworks and Addnl Works,Westcotec Ltd,21009674,"1,256.00"
Borough Council of Kings Lynn and West Norfolk,E07000146,21/10/2021,Home Improvements Agency,Agency Staff,Seven Resourcing Ltd,21009798,"1,628.88"
Borough Council of Kings Lynn and West Norfolk,E07000146,21/10/2021,Home Improvements Agency,Agency Staff,Seven Resourcing Ltd,21009799,"1,090.74"
Borough Council of Kings Lynn and West Norfolk,E07000146,21/10/2021,Grounds Northern Area,Tyres and Tubes,Weeting Tyres Ltd T/A Page & Bird,22006707,439.00
Borough Council of Kings Lynn and West Norfolk,E07000146,21/10/2021,GM Central Area,Tyres and Tubes,Weeting Tyres Ltd T/A Page & Bird,22006708,435.00
Borough Council of Kings Lynn and West Norfolk,E07000146,21/10/2021,NORA Remediation,Remediation,WSP UK Ltd,21009754,"3,000.00"
Borough Council of Kings Lynn and West Norfolk,E07000146,21/10/2021,Network Hardware holding,Repairs & Maintenance,Quality Essential Distribution Ltd,21009681,"2,756.70"
Borough Council of Kings Lynn and West Norfolk,E07000146,21/10/2021,Benefit Administration,Recruitment,TMP (UK) Ltd,22006639,278.70
Borough Council of Kings Lynn and West Norfolk,E07000146,21/10/2021,COMF Phase 3,Recruitment,TMP (UK) Ltd,22006639,278.70
Borough Council of Kings Lynn and West Norfolk,E07000146,21/10/2021,Grounds Northern Area,Recruitment,TMP (UK) Ltd,22006639,92.90
Borough Council of Kings Lynn and West Norfolk,E07000146,21/10/2021,Public Cleansing,Recruitment,TMP (UK) Ltd,22006639,92.90
Borough Council of Kings Lynn and West Norfolk,E07000146,21/10/2021,Kings Court Kings Lynn,Recruitment,TMP (UK) Ltd,22006639,92.90
Borough Council of Kings Lynn and West Norfolk,E07000146,21/10/2021,CCTV,Recruitment,TMP (UK) Ltd,22006639,92.90
Borough Council of Kings Lynn and West Norfolk,E07000146,21/10/2021,Extra planning Income - 20%,Agency Staff,G2 Recruitment Ltd,21010189,"2,894.69"
Borough Council of Kings Lynn and West Norfolk,E07000146,21/10/2021,Decarbonisation ReFit 2,Works,Ameresco Ltd,21010166,"255,930.73"
Borough Council of Kings Lynn and West Norfolk,E07000146,21/10/2021,Parking Operations - Brgh,Covid 19,XL Displays Limited,21010072,96.00
Borough Council of Kings Lynn and West Norfolk,E07000146,21/10/2021,Parking Operations - Brgh,Covid 19,XL Displays Limited,21010072,585.00
Borough Council of Kings Lynn and West Norfolk,E07000146,21/10/2021,Nursery,Materials,Raes Flowerseeds Ltd,22006585,"2,496.12"
Borough Council of Kings Lynn and West Norfolk,E07000146,21/10/2021,Corporate Insurance,Professional Fees,Arthur J Gallagher Insurance Brokers Ltd,22006709,"8,295.00"
Borough Council of Kings Lynn and West Norfolk,E07000146,21/10/2021,KL Arts Centre,Hirings Ticketed,Performers International Promotions LLP,22006736,786.67
Borough Council of Kings Lynn and West Norfolk,E07000146,21/10/2021,KL Arts Centre,Hiring Charges Income,Performers International Promotions LLP,22006736,-150.00
Borough Council of Kings Lynn and West Norfolk,E07000146,21/10/2021,KL Arts Centre,Hirings Ticketed,Performers International Promotions LLP,22006736,83.33
Borough Council of Kings Lynn and West Norfolk,E07000146,21/10/2021,KL Arts Centre,Commission On Box Office,Performers International Promotions LLP,22006736,-47.20
Borough Council of Kings Lynn and West Norfolk,E07000146,21/10/2021,KL Arts Centre,PRS Recharge,Performers International Promotions LLP,22006736,-39.65
Borough Council of Kings Lynn and West Norfolk,E07000146,21/10/2021,KL Arts Centre,Credit Card Recharge,Performers International Promotions LLP,22006736,-37.20
Borough Council of Kings Lynn and West Norfolk,E07000146,21/10/2021,KL Arts Centre,Miscellaneous Income,Performers International Promotions LLP,22006736,-4.00
Borough Council of Kings Lynn and West Norfolk,E07000146,25/10/2021,Public conveniences,Sewerage/Cesspool Empty,BACO-Compak (Norfolk) Ltd,22006761,"1,505.00"
Borough Council of Kings Lynn and West Norfolk,E07000146,25/10/2021,Sail the Wash - Sutton Br,Works,Drake Towage Ltd,21010095,"1,068.98"
Borough Council of Kings Lynn and West Norfolk,E07000146,25/10/2021,Sail the Wash - KL,Works,Drake Towage Ltd,21010095,"1,442.48"
Borough Council of Kings Lynn and West Norfolk,E07000146,25/10/2021,Extra planning Income - 20%,Agency Staff,Vivid Resourcing,21010009,"10,015.72"
Borough Council of Kings Lynn and West Norfolk,E07000146,25/10/2021,Reopening High Streets Safely Fund,Professional Fees,Millington Enterprises t/a Radio West Norfolk,21010263,510.00
Borough Council of Kings Lynn and West Norfolk,E07000146,25/10/2021,Neigbhd Planning Grant,Fees,Erimax Limited,21010019,"7,275.75"
Borough Council of Kings Lynn and West Norfolk,E07000146,25/10/2021,Careline,Tools And Equipment,Chiptech International Ltd,21009712,"5,324.40"
Borough Council of Kings Lynn and West Norfolk,E07000146,25/10/2021,Dog Warden and Services,Bins,Earth Anchors Ltd,21009863,"1,121.00"
Borough Council of Kings Lynn and West Norfolk,E07000146,25/10/2021,Dog Warden and Services,Bins,Earth Anchors Ltd,21009863,48.00
Borough Council of Kings Lynn and West Norfolk,E07000146,25/10/2021,Project Mmgt / Marketing,External Fees/Consultancy,Norfolk County Council,21010255,"20,000.00"
Borough Council of Kings Lynn and West Norfolk,E07000146,25/10/2021,Hardwick Narrows Industrial Estate,Repairs & Maintenance,Smith Building Services Ltd,21009870,"1,195.00"
Borough Council of Kings Lynn and West Norfolk,E07000146,25/10/2021,Town Hall Kings Lynn,Repairs & Maintenance,Smith Building Services Ltd,21009720,730.00
Borough Council of Kings Lynn and West Norfolk,E07000146,25/10/2021,VJ Day 2020,Miscellaneous,Viking Stage Lighting,21009676,635.00
Borough Council of Kings Lynn and West Norfolk,E07000146,25/10/2021,Public Cleansing,Vehicle - repairs & Maint,Mr Signs Ltd,21010201,389.00
Borough Council of Kings Lynn and West Norfolk,E07000146,25/10/2021,Public conveniences,Materials,Mr Signs Ltd,21010201,110.00
Borough Council of Kings Lynn and West Norfolk,E07000146,25/10/2021,Financial Services,Agency Staff,Hays Specialist Recruitment,21010249,"4,130.00"
Borough Council of Kings Lynn and West Norfolk,E07000146,25/10/2021,Parking Operations - Brgh,Tek Fund,Traffic Enforcement Centre,22006774,"10,000.00"
Borough Council of Kings Lynn and West Norfolk,E07000146,25/10/2021,Reopening High Streets Safely Fund,Professional Fees,Your Local Paper Ltd,21010271,"1,250.00"
Borough Council of Kings Lynn and West Norfolk,E07000146,25/10/2021,Food Hygiene General,Drinking Water,Public Health England,21009801,"1,018.72"
Borough Council of Kings Lynn and West Norfolk,E07000146,25/10/2021,Mods and Rockers,Miscellaneous,Creative Orchard,21010246,618.00
Borough Council of Kings Lynn and West Norfolk,E07000146,25/10/2021,Salters Road,Works,Golden Tree Surgeons Ltd,21010237,"1,470.00"
Borough Council of Kings Lynn and West Norfolk,E07000146,25/10/2021,Parks & Open Spaces,Tree Surgery,Golden Tree Surgeons Ltd,21010238,880.00
Borough Council of Kings Lynn and West Norfolk,E07000146,25/10/2021,Parks & Open Spaces,Tree Surgery,Golden Tree Surgeons Ltd,21010239,"1,250.00"
Borough Council of Kings Lynn and West Norfolk,E07000146,25/10/2021,Parks & Open Spaces,Tree Surgery,Golden Tree Surgeons Ltd,21010240,"4,900.00"
Borough Council of Kings Lynn and West Norfolk,E07000146,25/10/2021,LILY 5,Lily Advisor Payments,Family Action,21010248,958.33
Borough Council of Kings Lynn and West Norfolk,E07000146,25/10/2021,Development Control,Planning Fees,Portal / Planquest Ltd,22006772,"14,784.00"
Borough Council of Kings Lynn and West Norfolk,E07000146,25/10/2021,LILY 5,Lily Advisor Payments,Norfolk and Waveney Mind,21010256,"1,852.50"
Borough Council of Kings Lynn and West Norfolk,E07000146,25/10/2021,Printing&Copying-Floor Copiers,Other Machine Lease,Capita Business Services Ltd,21010024,"2,005.75"
Borough Council of Kings Lynn and West Norfolk,E07000146,25/10/2021,Kings Court Kings Lynn,Repairs & Maintenance,JD Cooling Systems Ltd,21010177,583.14
Borough Council of Kings Lynn and West Norfolk,E07000146,28/10/2021,Recycling Composting,Covid 19,Enterprise Flex-E Rent,22006645,"1,892.00"
Borough Council of Kings Lynn and West Norfolk,E07000146,28/10/2021,Extra planning Income - 20%,Agency Staff,Vivid Resourcing,21010010,"3,870.00"
Borough Council of Kings Lynn and West Norfolk,E07000146,28/10/2021,ICT,Computer Hardware Maint,1plex Ltd,21009878,800.00
Borough Council of Kings Lynn and West Norfolk,E07000146,28/10/2021,Community Projects CRS,Service Level Agreements,GAP Group Ltd,21009854,"1,080.00"
Borough Council of Kings Lynn and West Norfolk,E07000146,28/10/2021,NORA Phase 4,Professional Fees,Gateley Plc Client A/C,22006837,"1,150.00"
Borough Council of Kings Lynn and West Norfolk,E07000146,28/10/2021,NORA Phase 4,Professional Fees,Gateley Plc Client A/C,22006837,50.00
Borough Council of Kings Lynn and West Norfolk,E07000146,28/10/2021,Rough Sleeper Fund,Covid 19,BACO-Compak (Norfolk) Ltd,21010334,670.00
Borough Council of Kings Lynn and West Norfolk,E07000146,28/10/2021,ICT,Communications,Vodafone Ltd,21010325,"1,781.55"
Borough Council of Kings Lynn and West Norfolk,E07000146,28/10/2021,Stories of Lynn,Repairs & Maintenance,E Akers,21010235,345.83
Borough Council of Kings Lynn and West Norfolk,E07000146,28/10/2021,Stories of Lynn,Repairs & Maintenance,E Akers,21010235,300.00
Borough Council of Kings Lynn and West Norfolk,E07000146,28/10/2021,CCTV,Repairs & Maintenance,E Akers,21010316,550.00
Borough Council of Kings Lynn and West Norfolk,E07000146,28/10/2021,Community Projects CRS,Service Level Agreements,Kings Lynn Festival Ltd,21010282,"15,000.00"
Borough Council of Kings Lynn and West Norfolk,E07000146,28/10/2021,Property Services,Rent,Le Strange Estate,22006802,"3,587.50"
Borough Council of Kings Lynn and West Norfolk,E07000146,28/10/2021,Property Services,Rent,Le Strange Estate,22006801,"25,141.50"
Borough Council of Kings Lynn and West Norfolk,E07000146,28/10/2021,Property Services,Rent,Le Strange Estate,22006800,"1,750.00"
Borough Council of Kings Lynn and West Norfolk,E07000146,28/10/2021,Project Mmgt / Marketing,External Fees/Consultancy,Norfolk County Council,22006836,644.33
Borough Council of Kings Lynn and West Norfolk,E07000146,28/10/2021,Decriminalisation,Equipment/Materials,Ford Motor Company Ltd,21010114,"13,537.23"
Borough Council of Kings Lynn and West Norfolk,E07000146,28/10/2021,Decriminalisation,Equipment/Materials,Ford Motor Company Ltd,21010114,330.00
Borough Council of Kings Lynn and West Norfolk,E07000146,28/10/2021,Decriminalisation,Equipment/Materials,Ford Motor Company Ltd,21010115,"13,537.23"
Borough Council of Kings Lynn and West Norfolk,E07000146,28/10/2021,Decriminalisation,Equipment/Materials,Ford Motor Company Ltd,21010115,330.00
Borough Council of Kings Lynn and West Norfolk,E07000146,28/10/2021,Decriminalisation,Equipment/Materials,Ford Motor Company Ltd,21010116,"13,537.23"
Borough Council of Kings Lynn and West Norfolk,E07000146,28/10/2021,Decriminalisation,Equipment/Materials,Ford Motor Company Ltd,21010116,330.00
Borough Council of Kings Lynn and West Norfolk,E07000146,28/10/2021,NNDC Decrim Vehicles,Equipment/Materials,Ford Motor Company Ltd,21010117,"14,783.01"
Borough Council of Kings Lynn and West Norfolk,E07000146,28/10/2021,NNDC Decrim Vehicles,Equipment/Materials,Ford Motor Company Ltd,21010117,330.00
Borough Council of Kings Lynn and West Norfolk,E07000146,28/10/2021,Off Street CP Vehicles,Equipment/Materials,Ford Motor Company Ltd,21010118,"14,783.01"
Borough Council of Kings Lynn and West Norfolk,E07000146,28/10/2021,Off Street CP Vehicles,Equipment/Materials,Ford Motor Company Ltd,21010118,330.00
Borough Council of Kings Lynn and West Norfolk,E07000146,28/10/2021,Off Street CP Vehicles,Equipment/Materials,Ford Motor Company Ltd,21010119,"14,783.01"
Borough Council of Kings Lynn and West Norfolk,E07000146,28/10/2021,Off Street CP Vehicles,Equipment/Materials,Ford Motor Company Ltd,21010119,330.00
Borough Council of Kings Lynn and West Norfolk,E07000146,28/10/2021,NNDC Decrim Vehicles,Equipment/Materials,Ford Motor Company Ltd,21010107,"13,537.23"
Borough Council of Kings Lynn and West Norfolk,E07000146,28/10/2021,NNDC Decrim Vehicles,Equipment/Materials,Ford Motor Company Ltd,21010107,330.00
Borough Council of Kings Lynn and West Norfolk,E07000146,28/10/2021,Crematorium Trading Account,Webcasts/Tributes/Recordings,Vivedia Ltd,21009806,"2,420.00"
Borough Council of Kings Lynn and West Norfolk,E07000146,28/10/2021,Sth Quay Sommerfield & Thomas BRP,Works,Gerald Eve LLP,21009852,"10,000.00"
Borough Council of Kings Lynn and West Norfolk,E07000146,28/10/2021,COMF Phase 3,Recruitment,TMP (UK) Ltd,22006663,766.00
Borough Council of Kings Lynn and West Norfolk,E07000146,28/10/2021,Improving Attainment,Small Projects,Hunstanton Primary School,22006798,900.00
Borough Council of Kings Lynn and West Norfolk,E07000146,28/10/2021,Rough Sleeper Fund,Covid 19,Excaliber Security Services Ltd,21010305,"5,107.20"
Borough Council of Kings Lynn and West Norfolk,E07000146,28/10/2021,Rough Sleeper Fund,Covid 19,Excaliber Security Services Ltd,21010306,"5,107.20"
Borough Council of Kings Lynn and West Norfolk,E07000146,28/10/2021,Creditors Holding Account,Water & Drainage Rates,WAVE,22006829,"22,447.83"
Borough Council of Kings Lynn and West Norfolk,E07000146,28/10/2021,Creditors Holding Account,Water & Drainage Rates,WAVE,22006829,"17,981.88"
Borough Council of Kings Lynn and West Norfolk,E07000146,28/10/2021,Creditors Holding Account,Water & Drainage Rates,WAVE,22006830,"2,490.00"
Borough Council of Kings Lynn and West Norfolk,E07000146,28/10/2021,Rough Sleeper Fund,Covid 19,Bunkabin Ltd,21010004,"1,944.00"
Borough Council of Kings Lynn and West Norfolk,E07000146,28/10/2021,Rough Sleeper Fund,Covid 19,Bunkabin Ltd,21010005,"1,764.00"
Borough Council of Kings Lynn and West Norfolk,E07000146,28/10/2021,Domestic Refuse,Litter Bins,Wybone Ltd,21009899,720.85
Borough Council of Kings Lynn and West Norfolk,E07000146,28/10/2021,Creditors Holding Account,50% Empty Property Charge,BCKLWN Revenues,22006790,"1,163,254.55"
Borough Council of Kings Lynn and West Norfolk,E07000146,28/10/2021,Training Holding Account,Training,City College Norwich,21010326,"4,521.00"
Borough Council of Kings Lynn and West Norfolk,E07000146,28/10/2021,EZ Dev of Spec Units,Works,R G Carter Cambridge Ltd,21009875,"24,492.54"
Borough Council of Kings Lynn and West Norfolk,E07000146,28/10/2021,West Winch Growth Area,Professional Fees,Brecher LLP,21010336,"14,213.50"
Borough Council of Kings Lynn and West Norfolk,E07000146,28/10/2021,Financial Services,Postages,Royal Mail Group Ltd,22006821,111.92
Borough Council of Kings Lynn and West Norfolk,E07000146,28/10/2021,Benefit Administration,Postages,Royal Mail Group Ltd,22006821,382.11
Borough Council of Kings Lynn and West Norfolk,E07000146,28/10/2021,Cost of Collection - CTax,Postages,Royal Mail Group Ltd,22006821,"1,063.04"
Borough Council of Kings Lynn and West Norfolk,E07000146,28/10/2021,Cost of Collection - NDR,Postages,Royal Mail Group Ltd,22006821,7.04
Borough Council of Kings Lynn and West Norfolk,E07000146,28/10/2021,Financial Services,Postages,Royal Mail Group Ltd,22006821,2.70
Borough Council of Kings Lynn and West Norfolk,E07000146,28/10/2021,Benefit Administration,Postages,Royal Mail Group Ltd,22006821,6.76
Borough Council of Kings Lynn and West Norfolk,E07000146,28/10/2021,Cost of Collection - CTax,Postages,Royal Mail Group Ltd,22006821,2.24
Borough Council of Kings Lynn and West Norfolk,E07000146,28/10/2021,Kings Lynn Bid,Postages,Royal Mail Group Ltd,22006821,2.25
Borough Council of Kings Lynn and West Norfolk,E07000146,28/10/2021,Grounds Northern Area,Contract Repairs,Thurlow Nunn Standen Ltd,22006662,508.02
Borough Council of Kings Lynn and West Norfolk,E07000146,28/10/2021,Dry Box Collection Scheme,Waste Processing Cost,Norse Environmental Services,21009932,"55,177.33"
Borough Council of Kings Lynn and West Norfolk,E07000146,28/10/2021,Community Projects CS,Service Level Agreements,Shelter,21010288,"15,121.00"
Borough Council of Kings Lynn and West Norfolk,E07000146,28/10/2021,Coast Defence/Protection,Repairs & Maintenance,Able Engineering Ltd,21010165,"5,680.00"
Borough Council of Kings Lynn and West Norfolk,E07000146,28/10/2021,Parking Operations - Brgh,Repairs & Maintenance,Able Engineering Ltd,21010314,450.00
Borough Council of Kings Lynn and West Norfolk,E07000146,28/10/2021,Printing & Graphics,Materials,Premier Paper Group Ltd,21010258,696.50
Borough Council of Kings Lynn and West Norfolk,E07000146,28/10/2021,Printing & Graphics,Materials,Premier Paper Group Ltd,21010258,4.59
Borough Council of Kings Lynn and West Norfolk,E07000146,28/10/2021,Play Areas,Tools And Equipment,Fenland Leisure Products Ltd,21010030,778.90
Borough Council of Kings Lynn and West Norfolk,E07000146,28/10/2021,Mintlyn Crematorium,Repairs & Maintenance,AMR Mechanical Services Ltd,22006831,"2,389.97"
Borough Council of Kings Lynn and West Norfolk,E07000146,28/10/2021,VJ Day 2020,Miscellaneous,Creative Orchard,21010341,750.00
Borough Council of Kings Lynn and West Norfolk,E07000146,28/10/2021,Planning Control,Professional Fees,T Leader St Johns Regulatory Fee Share Account,21010264,750.00
Borough Council of Kings Lynn and West Norfolk,E07000146,28/10/2021,Careline,Tools And Equipment,AMR Fire and Security Limited,21010224,"5,495.04"
Borough Council of Kings Lynn and West Norfolk,E07000146,28/10/2021,Community Projects CRS,Service Level Agreements,SWAN Youth Opportunities Project,21010284,"2,500.00"
Borough Council of Kings Lynn and West Norfolk,E07000146,28/10/2021,Decriminalisation,Equipment/Materials,Ford Motor Company Ltd,21010113,"13,537.23"
Borough Council of Kings Lynn and West Norfolk,E07000146,28/10/2021,Decriminalisation,Equipment/Materials,Ford Motor Company Ltd,21010113,330.00
Borough Council of Kings Lynn and West Norfolk,E07000146,28/10/2021,NNDC Decrim Vehicles,Equipment/Materials,Ford Motor Company Ltd,21010108,"13,537.23"
Borough Council of Kings Lynn and West Norfolk,E07000146,28/10/2021,NNDC Decrim Vehicles,Equipment/Materials,Ford Motor Company Ltd,21010108,330.00
Borough Council of Kings Lynn and West Norfolk,E07000146,28/10/2021,NNDC Decrim Vehicles,Equipment/Materials,Ford Motor Company Ltd,21010109,"13,537.23"
Borough Council of Kings Lynn and West Norfolk,E07000146,28/10/2021,NNDC Decrim Vehicles,Equipment/Materials,Ford Motor Company Ltd,21010109,330.00
Borough Council of Kings Lynn and West Norfolk,E07000146,28/10/2021,Decriminalisation,Equipment/Materials,Ford Motor Company Ltd,21010110,"13,537.23"
Borough Council of Kings Lynn and West Norfolk,E07000146,28/10/2021,Decriminalisation,Equipment/Materials,Ford Motor Company Ltd,21010110,330.00
Borough Council of Kings Lynn and West Norfolk,E07000146,28/10/2021,Decriminalisation,Equipment/Materials,Ford Motor Company Ltd,21010111,"13,537.23"
Borough Council of Kings Lynn and West Norfolk,E07000146,28/10/2021,Decriminalisation,Equipment/Materials,Ford Motor Company Ltd,21010111,330.00
Borough Council of Kings Lynn and West Norfolk,E07000146,28/10/2021,Decriminalisation,Equipment/Materials,Ford Motor Company Ltd,21010112,"13,537.23"
Borough Council of Kings Lynn and West Norfolk,E07000146,28/10/2021,Decriminalisation,Equipment/Materials,Ford Motor Company Ltd,21010112,330.00
Borough Council of Kings Lynn and West Norfolk,E07000146,28/10/2021,Home Improvements Agency,Agency Staff,Seven Resourcing Ltd,21009966,"1,670.47"
Borough Council of Kings Lynn and West Norfolk,E07000146,28/10/2021,Home Improvements Agency,Agency Staff,Seven Resourcing Ltd,21009967,"1,122.48"
Borough Council of Kings Lynn and West Norfolk,E07000146,28/10/2021,Parks & Open Spaces,Tree Surgery,Golden Tree Surgeons Ltd,21010318,880.00
Borough Council of Kings Lynn and West Norfolk,E07000146,28/10/2021,Parks & Open Spaces,Tree Surgery,Golden Tree Surgeons Ltd,21010319,880.00
Borough Council of Kings Lynn and West Norfolk,E07000146,28/10/2021,Public Realm/Town Deal,Equipment/Materials,Stuart Power Ltd,21010274,857.14
Borough Council of Kings Lynn and West Norfolk,E07000146,28/10/2021,ICT,Computer Software Maint,Gladstone MRM Ltd,21009851,"1,451.68"
Borough Council of Kings Lynn and West Norfolk,E07000146,28/10/2021,Mintlyn Crematorium,Repairs & Maintenance,Wrights & Holbeach Asphalt Ltd,21010244,720.00
Borough Council of Kings Lynn and West Norfolk,E07000146,28/10/2021,KL Innovation Centre,Beverage Supplies,NVCS Ltd,21010023,805.44
Borough Council of Kings Lynn and West Norfolk,E07000146,28/10/2021,KL Innovation Centre,Beverage Supplies,NVCS Ltd,21010023,130.00
Borough Council of Kings Lynn and West Norfolk,E07000146,28/10/2021,Register of Electors,Stationery & Office,Civica Election Services Ltd,22006614,721.48
Borough Council of Kings Lynn and West Norfolk,E07000146,28/10/2021,Public Realm/Town Deal,External Fees/Consultancy,AECOM Ltd,21009901,"6,226.18"
Borough Council of Kings Lynn and West Norfolk,E07000146,28/10/2021,Public Cleansing,Vehicle - repairs & Maint,Trakm8 Limited,22006427,204.20
Borough Council of Kings Lynn and West Norfolk,E07000146,28/10/2021,GM Central Area,Vehicle - repairs & Maint,Trakm8 Limited,22006427,204.20
Borough Council of Kings Lynn and West Norfolk,E07000146,28/10/2021,The Walks,Vehicle - repairs & Maint,Trakm8 Limited,22006427,204.20
Borough Council of Kings Lynn and West Norfolk,E07000146,28/10/2021,Public Cleansing,Vehicle - repairs & Maint,Trakm8 Limited,22006427,204.20
Borough Council of Kings Lynn and West Norfolk,E07000146,28/10/2021,CCTV,Vehicle - repairs & Maint,Trakm8 Limited,22006427,204.20
Borough Council of Kings Lynn and West Norfolk,E07000146,28/10/2021,Grounds Southern Area,Vehicle - repairs & Maint,Trakm8 Limited,22006427,204.20
Borough Council of Kings Lynn and West Norfolk,E07000146,28/10/2021,Careline,Vehicle - repairs & Maint,Trakm8 Limited,22006427,204.20
Borough Council of Kings Lynn and West Norfolk,E07000146,28/10/2021,Neighbourhood Teams,Vehicle - repairs & Maint,Trakm8 Limited,22006427,204.20
Borough Council of Kings Lynn and West Norfolk,E07000146,28/10/2021,Public Cleansing,Vehicle - repairs & Maint,Trakm8 Limited,22006427,204.20
Borough Council of Kings Lynn and West Norfolk,E07000146,28/10/2021,GM Central Area,Vehicle - repairs & Maint,Trakm8 Limited,22006427,204.20
Borough Council of Kings Lynn and West Norfolk,E07000146,28/10/2021,Kings Court Kings Lynn,Vehicle - repairs & Maint,Trakm8 Limited,22006427,204.20
Borough Council of Kings Lynn and West Norfolk,E07000146,28/10/2021,Decrim - Operational,Vehicle - repairs & Maint,Trakm8 Limited,22006427,204.20
Borough Council of Kings Lynn and West Norfolk,E07000146,28/10/2021,Public Cleansing,Vehicle - repairs & Maint,Trakm8 Limited,22006427,204.20
Borough Council of Kings Lynn and West Norfolk,E07000146,28/10/2021,Public Cleansing,Vehicle - repairs & Maint,Trakm8 Limited,22006427,204.20
Borough Council of Kings Lynn and West Norfolk,E07000146,28/10/2021,Grounds Southern Area,Vehicle - repairs & Maint,Trakm8 Limited,22006427,204.20
Borough Council of Kings Lynn and West Norfolk,E07000146,28/10/2021,Neighbourhood Teams,Vehicle - repairs & Maint,Trakm8 Limited,22006427,204.20
Borough Council of Kings Lynn and West Norfolk,E07000146,28/10/2021,Public Cleansing,Vehicle - repairs & Maint,Trakm8 Limited,22006427,204.20
Borough Council of Kings Lynn and West Norfolk,E07000146,28/10/2021,GM Central Area,Vehicle - repairs & Maint,Trakm8 Limited,22006664,204.84
Borough Council of Kings Lynn and West Norfolk,E07000146,28/10/2021,Grounds Northern Area,Vehicle - repairs & Maint,Trakm8 Limited,22006664,204.84
Borough Council of Kings Lynn and West Norfolk,E07000146,28/10/2021,The Walks,Vehicle - repairs & Maint,Trakm8 Limited,22006664,204.84
Borough Council of Kings Lynn and West Norfolk,E07000146,28/10/2021,Public Cleansing,Vehicle - repairs & Maint,Trakm8 Limited,22006664,204.84
Borough Council of Kings Lynn and West Norfolk,E07000146,28/10/2021,Domestic Refuse,Vehicle - repairs & Maint,Trakm8 Limited,22006664,204.84
Borough Council of Kings Lynn and West Norfolk,E07000146,28/10/2021,Tech/Officers/Repairs,Vehicle - repairs & Maint,Trakm8 Limited,22006822,9.99
Borough Council of Kings Lynn and West Norfolk,E07000146,28/10/2021,Tech/Officers/Repairs,Vehicle - repairs & Maint,Trakm8 Limited,22006822,9.99
Borough Council of Kings Lynn and West Norfolk,E07000146,28/10/2021,Grounds Northern Area,Vehicle - repairs & Maint,Trakm8 Limited,22006822,9.99
Borough Council of Kings Lynn and West Norfolk,E07000146,28/10/2021,Public Cleansing,Vehicle - repairs & Maint,Trakm8 Limited,22006822,51.00
Borough Council of Kings Lynn and West Norfolk,E07000146,28/10/2021,Public Cleansing,Vehicle - repairs & Maint,Trakm8 Limited,22006822,51.00
Borough Council of Kings Lynn and West Norfolk,E07000146,28/10/2021,Public Cleansing,Vehicle - repairs & Maint,Trakm8 Limited,22006822,51.00
Borough Council of Kings Lynn and West Norfolk,E07000146,28/10/2021,Careline,Vehicle - repairs & Maint,Trakm8 Limited,22006822,51.00
Borough Council of Kings Lynn and West Norfolk,E07000146,28/10/2021,Public Cleansing,Vehicle - repairs & Maint,Trakm8 Limited,22006822,51.00
Borough Council of Kings Lynn and West Norfolk,E07000146,28/10/2021,Public Cleansing,Vehicle - repairs & Maint,Trakm8 Limited,22006822,51.00
Borough Council of Kings Lynn and West Norfolk,E07000146,28/10/2021,Public Cleansing,Vehicle - repairs & Maint,Trakm8 Limited,22006822,51.00
Borough Council of Kings Lynn and West Norfolk,E07000146,28/10/2021,Neighbourhood Teams,Vehicle - repairs & Maint,Trakm8 Limited,22006822,51.00
Borough Council of Kings Lynn and West Norfolk,E07000146,28/10/2021,Kings Court Kings Lynn,Vehicle - repairs & Maint,Trakm8 Limited,22006822,51.00
Borough Council of Kings Lynn and West Norfolk,E07000146,28/10/2021,Public Cleansing,Vehicle - repairs & Maint,Trakm8 Limited,22006822,51.00
Borough Council of Kings Lynn and West Norfolk,E07000146,28/10/2021,Public Cleansing,Vehicle - repairs & Maint,Trakm8 Limited,22006822,51.00
Borough Council of Kings Lynn and West Norfolk,E07000146,28/10/2021,Neighbourhood Teams,Vehicle - repairs & Maint,Trakm8 Limited,22006822,51.00
Borough Council of Kings Lynn and West Norfolk,E07000146,28/10/2021,Grounds Northern Area,Vehicle - repairs & Maint,Trakm8 Limited,22006822,51.00
Borough Council of Kings Lynn and West Norfolk,E07000146,28/10/2021,Public Cleansing,Vehicle - repairs & Maint,Trakm8 Limited,22006822,51.00
Borough Council of Kings Lynn and West Norfolk,E07000146,28/10/2021,Grounds Northern Area,Vehicle - repairs & Maint,Trakm8 Limited,22006822,51.00
Borough Council of Kings Lynn and West Norfolk,E07000146,28/10/2021,Neighbourhood Teams,Vehicle - repairs & Maint,Trakm8 Limited,22006822,51.00
Borough Council of Kings Lynn and West Norfolk,E07000146,28/10/2021,CCTV,Vehicle - repairs & Maint,Trakm8 Limited,22006822,51.00
Borough Council of Kings Lynn and West Norfolk,E07000146,28/10/2021,CCTV,Vehicle - repairs & Maint,Trakm8 Limited,22006822,51.00
Borough Council of Kings Lynn and West Norfolk,E07000146,28/10/2021,Public Cleansing,Vehicle - repairs & Maint,Trakm8 Limited,22006822,51.00
Borough Council of Kings Lynn and West Norfolk,E07000146,28/10/2021,Public Cleansing,Vehicle - repairs & Maint,Trakm8 Limited,22006822,51.00
Borough Council of Kings Lynn and West Norfolk,E07000146,28/10/2021,GM Central Area,Vehicle - repairs & Maint,Trakm8 Limited,22006822,51.00
Borough Council of Kings Lynn and West Norfolk,E07000146,28/10/2021,Public Cleansing,Vehicle - repairs & Maint,Trakm8 Limited,22006822,51.00
Borough Council of Kings Lynn and West Norfolk,E07000146,28/10/2021,Neighbourhood Teams,Vehicle - repairs & Maint,Trakm8 Limited,22006822,51.00
Borough Council of Kings Lynn and West Norfolk,E07000146,28/10/2021,Neighbourhood Teams,Vehicle - repairs & Maint,Trakm8 Limited,22006822,51.00
Borough Council of Kings Lynn and West Norfolk,E07000146,28/10/2021,Grounds Northern Area,Vehicle - repairs & Maint,Trakm8 Limited,22006822,51.00
Borough Council of Kings Lynn and West Norfolk,E07000146,28/10/2021,Public Cleansing,Vehicle - repairs & Maint,Trakm8 Limited,22006822,51.00
Borough Council of Kings Lynn and West Norfolk,E07000146,28/10/2021,The Walks,Vehicle - repairs & Maint,Trakm8 Limited,22006822,51.00
Borough Council of Kings Lynn and West Norfolk,E07000146,28/10/2021,Public Cleansing,Vehicle - repairs & Maint,Trakm8 Limited,22006822,51.00
Borough Council of Kings Lynn and West Norfolk,E07000146,28/10/2021,Public Cleansing,Vehicle - repairs & Maint,Trakm8 Limited,22006822,51.00
Borough Council of Kings Lynn and West Norfolk,E07000146,28/10/2021,Public Cleansing,Vehicle - repairs & Maint,Trakm8 Limited,22006822,51.00
Borough Council of Kings Lynn and West Norfolk,E07000146,28/10/2021,Public Cleansing,Vehicle - repairs & Maint,Trakm8 Limited,22006822,51.00
Borough Council of Kings Lynn and West Norfolk,E07000146,28/10/2021,Public Cleansing,Vehicle - repairs & Maint,Trakm8 Limited,22006822,51.00
Borough Council of Kings Lynn and West Norfolk,E07000146,28/10/2021,GM Central Area,Vehicle - repairs & Maint,Trakm8 Limited,22006822,51.00
Borough Council of Kings Lynn and West Norfolk,E07000146,28/10/2021,Public Cleansing,Vehicle - repairs & Maint,Trakm8 Limited,22006822,51.00
Borough Council of Kings Lynn and West Norfolk,E07000146,28/10/2021,Public Cleansing,Vehicle - repairs & Maint,Trakm8 Limited,22006822,51.00
Borough Council of Kings Lynn and West Norfolk,E07000146,28/10/2021,Recycling Composting,Covid 19,Trakm8 Limited,22006822,51.00
Borough Council of Kings Lynn and West Norfolk,E07000146,28/10/2021,Public Cleansing,Vehicle - repairs & Maint,Trakm8 Limited,22006822,51.00
Borough Council of Kings Lynn and West Norfolk,E07000146,28/10/2021,Neighbourhood Teams,Vehicle - repairs & Maint,Trakm8 Limited,22006822,51.00
Borough Council of Kings Lynn and West Norfolk,E07000146,28/10/2021,GM Central Area,Vehicle - repairs & Maint,Trakm8 Limited,22006822,51.00
Borough Council of Kings Lynn and West Norfolk,E07000146,28/10/2021,Financial Services,Agency Staff,Hays Specialist Recruitment,21010302,"2,950.00"
Borough Council of Kings Lynn and West Norfolk,E07000146,28/10/2021,Financial Services,Agency Staff,Hays Specialist Recruitment,21010301,"1,770.00"
Borough Council of Kings Lynn and West Norfolk,E07000146,28/10/2021,NORA Phase 4,Works,All Signs (Kings Lynn) Ltd,21010222,765.00
Borough Council of Kings Lynn and West Norfolk,E07000146,28/10/2021,Sail the Wash - KL,Works,All Signs (Kings Lynn) Ltd,21010272,"1,187.98"
Borough Council of Kings Lynn and West Norfolk,E07000146,28/10/2021,NDR Income,Enterprise Zone,New Anglia Local Enterprise Ptn Ltd,21010299,"5,546.14"
Borough Council of Kings Lynn and West Norfolk,E07000146,28/10/2021,Hardwick Industrial Estate,Repairs & Maintenance,MCE Heatcool Ltd,21010241,495.00
Borough Council of Kings Lynn and West Norfolk,E07000146,28/10/2021,Contaminated Land Act,Agency Staff,The Oyster Partnership,21010294,"1,680.00"
Borough Council of Kings Lynn and West Norfolk,E07000146,28/10/2021,Contaminated Land Act,Agency Staff,The Oyster Partnership,21010295,"1,680.00"
Borough Council of Kings Lynn and West Norfolk,E07000146,01/11/2021,DWP at Kings Court,Contract Security,MPD FM Ltd,21010134,"7,025.85"
Borough Council of Kings Lynn and West Norfolk,E07000146,01/11/2021,Development and Estates Capital Receipts,Disposal Costs Physical Works,Parsons Consulting Engineers Ltd,21010147,812.50
Borough Council of Kings Lynn and West Norfolk,E07000146,01/11/2021,Kings Court Kings Lynn,Purchased For Resale,Premier Paper Group Ltd,21010374,432.00
Borough Council of Kings Lynn and West Norfolk,E07000146,01/11/2021,Kings Court Kings Lynn,Purchased For Resale,Premier Paper Group Ltd,21010374,3.98
Borough Council of Kings Lynn and West Norfolk,E07000146,01/11/2021,Public Cleansing,Cleaning Material & Equip,V & J Knitwear Ltd,21010383,566.77
Borough Council of Kings Lynn and West Norfolk,E07000146,01/11/2021,North Lynn Managed Workshops,Repairs & Maintenance,JD Cooling Systems Ltd,21010068,58.50
Borough Council of Kings Lynn and West Norfolk,E07000146,01/11/2021,CCTV,Repairs & Maintenance,JD Cooling Systems Ltd,21010068,58.50
Borough Council of Kings Lynn and West Norfolk,E07000146,01/11/2021,Valentine Road Hunstanton,Repairs & Maintenance,JD Cooling Systems Ltd,21010068,58.50
Borough Council of Kings Lynn and West Norfolk,E07000146,01/11/2021,Parking Operations - Brgh,Repairs & Maintenance,JD Cooling Systems Ltd,21010068,77.00
Borough Council of Kings Lynn and West Norfolk,E07000146,01/11/2021,Resort Seafront,Repairs & Maintenance,JD Cooling Systems Ltd,21010068,77.00
Borough Council of Kings Lynn and West Norfolk,E07000146,01/11/2021,Regis Place Unit1-Non Inv Care,Repairs & Maintenance,JD Cooling Systems Ltd,21010068,114.00
Borough Council of Kings Lynn and West Norfolk,E07000146,01/11/2021,Printing & Graphics,Repairs & Maintenance,JD Cooling Systems Ltd,21010068,132.50
Borough Council of Kings Lynn and West Norfolk,E07000146,01/11/2021,Air Quality,Repairs & Maintenance,JD Cooling Systems Ltd,21010068,145.50
Borough Council of Kings Lynn and West Norfolk,E07000146,01/11/2021,Regis Place Unit 2 -WN Vol,Repairs & Maintenance,JD Cooling Systems Ltd,21010068,168.50
Borough Council of Kings Lynn and West Norfolk,E07000146,01/11/2021,Town Hall Kings Lynn,Repairs & Maintenance,JD Cooling Systems Ltd,21010068,186.50
Borough Council of Kings Lynn and West Norfolk,E07000146,01/11/2021,Mintlyn Crematorium,Repairs & Maintenance,JD Cooling Systems Ltd,21010068,190.00
Borough Council of Kings Lynn and West Norfolk,E07000146,01/11/2021,NEWS Depot,Repairs & Maintenance,JD Cooling Systems Ltd,21010068,325.00
Borough Council of Kings Lynn and West Norfolk,E07000146,01/11/2021,Kings Court Kings Lynn,Repairs & Maintenance,JD Cooling Systems Ltd,21010068,"1,022.00"
Borough Council of Kings Lynn and West Norfolk,E07000146,01/11/2021,KL Innovation Centre,Repairs & Maintenance,JD Cooling Systems Ltd,21010068,"1,049.50"
Borough Council of Kings Lynn and West Norfolk,E07000146,01/11/2021,Tech/Officers/Repairs,Tools And Equipment,Ironmongery Direct Ltd,21009927,745.80
Borough Council of Kings Lynn and West Norfolk,E07000146,01/11/2021,Downham Market,Distribution,XLT Distribution Ltd,21009947,485.00
Borough Council of Kings Lynn and West Norfolk,E07000146,01/11/2021,Partnerships,Marketing / Tourism,Visit East Anglia Ltd,21010267,"7,200.00"
Borough Council of Kings Lynn and West Norfolk,E07000146,01/11/2021,DWP at Kings Court,Contract Security,MPD FM Ltd,21010133,"1,937.15"
Borough Council of Kings Lynn and West Norfolk,E07000146,01/11/2021,Crematorium Trading Account,Memorial Plates,Anglia Sign Casting Ltd,21009458,"1,110.38"
Borough Council of Kings Lynn and West Norfolk,E07000146,01/11/2021,Corporate Communitcations,Recruitment,TMP (UK) Ltd,22006775,"3,950.00"
Borough Council of Kings Lynn and West Norfolk,E07000146,01/11/2021,Kings Court Service Charges,Repairs & Maintenance,Swift Air Ventilation Ltd,21009872,"1,142.00"
Borough Council of Kings Lynn and West Norfolk,E07000146,01/11/2021,Flexi hmless Suppt Grant,Homeless Prevention Fund,Sanctuary Affordable Housing Ltd,21010376,"5,000.00"
Borough Council of Kings Lynn and West Norfolk,E07000146,01/11/2021,Careline,Tools And Equipment,Chiptech International Ltd,21009893,527.85
Borough Council of Kings Lynn and West Norfolk,E07000146,01/11/2021,Parking Operations - Brgh,Repairs & Maintenance,3C Payment UK Ltd,21010356,"1,425.00"
Borough Council of Kings Lynn and West Norfolk,E07000146,01/11/2021,Kings Lynn Christmas Lights,Miscellaneous,Sam J Cook,22006861,900.00
Borough Council of Kings Lynn and West Norfolk,E07000146,04/11/2021,Kings Court Service Charges,Repairs & Maintenance,East Coast Signs Ltd,21010343,"1,331.00"
Borough Council of Kings Lynn and West Norfolk,E07000146,04/11/2021,Fairstead Community  Centre,Repairs & Maintenance,Robert Fox,21010390,"4,980.00"
Borough Council of Kings Lynn and West Norfolk,E07000146,04/11/2021,Fairstead Community  Centre,Repairs & Maintenance,Robert Fox,21010390,"1,620.00"
Borough Council of Kings Lynn and West Norfolk,E07000146,04/11/2021,NNDC Carpark Operation,Security Services Charge,LOOMIS UK Ltd,21010473,258.74
Borough Council of Kings Lynn and West Norfolk,E07000146,04/11/2021,Parking Operations - Brgh,Security Services Charge,LOOMIS UK Ltd,21010473,551.96
Borough Council of Kings Lynn and West Norfolk,E07000146,04/11/2021,Leisure Management Costs,Security Services Charge,LOOMIS UK Ltd,21010473,501.49
Borough Council of Kings Lynn and West Norfolk,E07000146,04/11/2021,Contaminated Land Act,Agency Staff,The Oyster Partnership,21010432,"1,680.00"
Borough Council of Kings Lynn and West Norfolk,E07000146,04/11/2021,KL Innovation Centre,Repairs & Maintenance,Core Technology Projects Ltd,21010413,"3,978.00"
Borough Council of Kings Lynn and West Norfolk,E07000146,04/11/2021,Home Improvements Agency,Agency Staff,Seven Resourcing Ltd,21010205,"1,665.07"
Borough Council of Kings Lynn and West Norfolk,E07000146,04/11/2021,Home Improvements Agency,Agency Staff,Seven Resourcing Ltd,21010206,"1,093.50"
Borough Council of Kings Lynn and West Norfolk,E07000146,04/11/2021,Development and Estates Capital Receipts,Repairs & Maintenance,Golden Tree Surgeons Ltd,21010410,"1,000.00"
Borough Council of Kings Lynn and West Norfolk,E07000146,04/11/2021,Development and Estates Capital Receipts,Repairs & Maintenance,Golden Tree Surgeons Ltd,21010410,522.00
Borough Council of Kings Lynn and West Norfolk,E07000146,04/11/2021,Corporate Health & Safety,Staff Health & Safety,Skyguard Ltd T/A Peoplesafe,21010453,"1,056.00"
Borough Council of Kings Lynn and West Norfolk,E07000146,04/11/2021,Open Cemeteries,Repairs & Maintenance,Robert Fencing Ltd,21010242,400.00
Borough Council of Kings Lynn and West Norfolk,E07000146,04/11/2021,Open Cemeteries,Repairs & Maintenance,Robert Fencing Ltd,21010242,204.51
Borough Council of Kings Lynn and West Norfolk,E07000146,04/11/2021,Sail the Wash - Sutton Br,Works,Drake Towage Ltd,21010096,"1,481.25"
Borough Council of Kings Lynn and West Norfolk,E07000146,04/11/2021,Sail the Wash - KL,Works,Drake Towage Ltd,21010096,"1,998.81"
Borough Council of Kings Lynn and West Norfolk,E07000146,04/11/2021,COMF Phase 3,Covid 19,Bauer Radio Ltd,21010089,"1,386.73"
Borough Council of Kings Lynn and West Norfolk,E07000146,04/11/2021,Planning Control,Professional Fees,Northstar Urban Design Ltd,21009970,"1,948.00"
Borough Council of Kings Lynn and West Norfolk,E07000146,04/11/2021,Creative Hub - Art Centre/Guildhall Complex,Professional Fees,Festival and Events International Ltd,21010042,"8,333.33"
Borough Council of Kings Lynn and West Norfolk,E07000146,04/11/2021,VJ Day 2020,Miscellaneous,Emily Sismey,22006894,"1,110.00"
Borough Council of Kings Lynn and West Norfolk,E07000146,04/11/2021,Housing Options Programme,Homeless Prevention Fund,James Lee,22006886,500.00
Borough Council of Kings Lynn and West Norfolk,E07000146,04/11/2021,Public conveniences,Sewerage/Cesspool Empty,BACO-Compak (Norfolk) Ltd,22006892,"1,290.00"
Borough Council of Kings Lynn and West Norfolk,E07000146,04/11/2021,Public conveniences,Sewerage/Cesspool Empty,BACO-Compak (Norfolk) Ltd,22006893,580.00
Borough Council of Kings Lynn and West Norfolk,E07000146,04/11/2021,Licensing,Tools And Equipment,Dell Corporation Ltd,21010342,530.76
Borough Council of Kings Lynn and West Norfolk,E07000146,04/11/2021,Standard Desktop Refresh,Equipment/Materials,Dell Corporation Ltd,21010391,530.76
Borough Council of Kings Lynn and West Norfolk,E07000146,04/11/2021,Extra planning Income - 20%,Tools And Equipment,Dell Corporation Ltd,21010415,530.76
Borough Council of Kings Lynn and West Norfolk,E07000146,04/11/2021,CCTV,Vehicle - repairs & Maint,Ford & Slater DAF Kings Lynn,22006866,"2,863.55"
Borough Council of Kings Lynn and West Norfolk,E07000146,04/11/2021,CCTV,Vehicle - repairs & Maint,Ford & Slater DAF Kings Lynn,22006866,91.00
Borough Council of Kings Lynn and West Norfolk,E07000146,04/11/2021,KL Innovation Centre,Repairs & Maintenance,Mr Brights Ltd,21010430,"1,721.16"
Borough Council of Kings Lynn and West Norfolk,E07000146,04/11/2021,Lynnsport 1,Works,Mott MacDonald Limited,21010040,"1,357.00"
Borough Council of Kings Lynn and West Norfolk,E07000146,04/11/2021,Kings Court Service Charges,Repairs & Maintenance,Phs Group Plc,21010435,733.20
Borough Council of Kings Lynn and West Norfolk,E07000146,04/11/2021,Careline,Tools And Equipment,Tunstall Healthcare (UK) Ltd,21010281,"19,800.00"
Borough Council of Kings Lynn and West Norfolk,E07000146,04/11/2021,Postage Services K Court,Postages,Pitney Bowes Purchase Power,22006887,"5,004.30"
Borough Council of Kings Lynn and West Norfolk,E07000146,04/11/2021,Postage Services K Court,Postages,Pitney Bowes Purchase Power,22006887,11.00
Borough Council of Kings Lynn and West Norfolk,E07000146,04/11/2021,Breckland Carpark operation,Stationery & Office,Bemrose Booth Paragon Ltd,21009969,437.25
Borough Council of Kings Lynn and West Norfolk,E07000146,04/11/2021,NNDC Carpark Operation,Stationery & Office,Bemrose Booth Paragon Ltd,21009969,437.25
Borough Council of Kings Lynn and West Norfolk,E07000146,04/11/2021,Parking Operations - Brgh,Stationery & Office,Bemrose Booth Paragon Ltd,21009969,"2,668.50"
Borough Council of Kings Lynn and West Norfolk,E07000146,04/11/2021,Mintlyn Crematorium,Repairs & Maintenance,Davies & Co (Environmental) Ltd,21010106,"5,890.00"
Borough Council of Kings Lynn and West Norfolk,E07000146,04/11/2021,Public Cleansing,Contract Repairs,Bucher Muncipal Ltd,22006673,486.20
Borough Council of Kings Lynn and West Norfolk,E07000146,04/11/2021,Public Cleansing,Contract Repairs,Bucher Muncipal Ltd,22006673,486.20
Borough Council of Kings Lynn and West Norfolk,E07000146,04/11/2021,Public Cleansing,Contract Repairs,Bucher Muncipal Ltd,22006676,439.38
Borough Council of Kings Lynn and West Norfolk,E07000146,04/11/2021,Financial Services,Agency Staff,Hays Specialist Recruitment,21010426,"4,130.00"
Borough Council of Kings Lynn and West Norfolk,E07000146,04/11/2021,Financial Services,Postages,Royal Mail Group Ltd,22006872,201.08
Borough Council of Kings Lynn and West Norfolk,E07000146,04/11/2021,Benefit Administration,Postages,Royal Mail Group Ltd,22006872,261.35
Borough Council of Kings Lynn and West Norfolk,E07000146,04/11/2021,Cost of Collection - CTax,Postages,Royal Mail Group Ltd,22006872,"1,205.60"
Borough Council of Kings Lynn and West Norfolk,E07000146,04/11/2021,Kings Lynn Bid,Postages,Royal Mail Group Ltd,22006872,40.48
Borough Council of Kings Lynn and West Norfolk,E07000146,04/11/2021,Benefit Administration,Postages,Royal Mail Group Ltd,22006872,13.50
Borough Council of Kings Lynn and West Norfolk,E07000146,04/11/2021,Cost of Collection - CTax,Postages,Royal Mail Group Ltd,22006872,1.35
Borough Council of Kings Lynn and West Norfolk,E07000146,04/11/2021,Pub & Tourism int charges,Postages,Royal Mail Group Ltd,22006872,0.88
Borough Council of Kings Lynn and West Norfolk,E07000146,04/11/2021,Postage Services K Court,Postages,Royal Mail Group Ltd,22006889,935.21
Borough Council of Kings Lynn and West Norfolk,E07000146,04/11/2021,Corporate Insurance,Covid 19,Zurich Insurance Plc,21010404,"2,499.84"
Borough Council of Kings Lynn and West Norfolk,E07000146,04/11/2021,Printing & Graphics,Materials,Canon (UK) Limited,21010160,"1,163.52"
Borough Council of Kings Lynn and West Norfolk,E07000146,08/11/2021,Corporate,Audit Fee,Ernst & Young,21010048,"49,288.00"
Borough Council of Kings Lynn and West Norfolk,E07000146,08/11/2021,KL Arts Centre,Hirings Ticketed,Kings Lynn Festival Ltd,22006908,"1,255.83"
Borough Council of Kings Lynn and West Norfolk,E07000146,08/11/2021,KL Arts Centre,Hiring Charges Income,Kings Lynn Festival Ltd,22006908,-300.00
Borough Council of Kings Lynn and West Norfolk,E07000146,08/11/2021,KL Arts Centre,Commission On Box Office,Kings Lynn Festival Ltd,22006908,-75.35
Borough Council of Kings Lynn and West Norfolk,E07000146,08/11/2021,KL Arts Centre,Credit Card Recharge,Kings Lynn Festival Ltd,22006908,-27.44
Borough Council of Kings Lynn and West Norfolk,E07000146,08/11/2021,KL Arts Centre,Equipment Hire,Kings Lynn Festival Ltd,22006908,-80.00
Borough Council of Kings Lynn and West Norfolk,E07000146,08/11/2021,KL Arts Centre,Hirings Ticketed,Kings Lynn Festival Ltd,22006909,961.67
Borough Council of Kings Lynn and West Norfolk,E07000146,08/11/2021,KL Arts Centre,Hiring Charges Income,Kings Lynn Festival Ltd,22006909,-300.00
Borough Council of Kings Lynn and West Norfolk,E07000146,08/11/2021,KL Arts Centre,Commission On Box Office,Kings Lynn Festival Ltd,22006909,-57.70
Borough Council of Kings Lynn and West Norfolk,E07000146,08/11/2021,KL Arts Centre,Credit Card Recharge,Kings Lynn Festival Ltd,22006909,-22.52
Borough Council of Kings Lynn and West Norfolk,E07000146,08/11/2021,KL Arts Centre,Equipment Hire,Kings Lynn Festival Ltd,22006909,-147.00
Borough Council of Kings Lynn and West Norfolk,E07000146,08/11/2021,KL Arts Centre,Catering Recharge,Kings Lynn Festival Ltd,22006909,-5.00
Borough Council of Kings Lynn and West Norfolk,E07000146,08/11/2021,Car Park - Great Yarmouth,Tools And Equipment,Metric Group Ltd,21010508,"4,095.00"
Borough Council of Kings Lynn and West Norfolk,E07000146,08/11/2021,Decrim - Other,Agency,Norfolk County Council,21010545,"106,346.58"
Borough Council of Kings Lynn and West Norfolk,E07000146,08/11/2021,Decrim - Other,Agency,Norfolk County Council,21010546,"137,586.15"
Borough Council of Kings Lynn and West Norfolk,E07000146,08/11/2021,North Lynn Industrial Estate,Repairs & Maintenance,David Trundley Design Services Ltd,21010538,"1,000.00"
Borough Council of Kings Lynn and West Norfolk,E07000146,08/11/2021,Supplier Holding Account,Vehicle - repairs & Maint,Paul Johnson Motor Services Ltd,22006914,193.60
Borough Council of Kings Lynn and West Norfolk,E07000146,08/11/2021,Supplier Holding Account,Vehicle - repairs & Maint,Paul Johnson Motor Services Ltd,22006914,"2,519.54"
Borough Council of Kings Lynn and West Norfolk,E07000146,08/11/2021,Major Housing Management,External Fees/Consultancy,G C Baxter & Associates Ltd,21010510,"1,600.00"
Borough Council of Kings Lynn and West Norfolk,E07000146,08/11/2021,Supplier Holding Account,Vehicle - repairs & Maint,North Street Tyres,22006913,"1,599.57"
Borough Council of Kings Lynn and West Norfolk,E07000146,08/11/2021,Apprenticeship Scheme,Apprentice Levy,Bedford Borough Council,21010490,"4,641.00"
Borough Council of Kings Lynn and West Norfolk,E07000146,08/11/2021,Mintlyn Crematorium,Repairs & Maintenance,Facultatieve Technologies Ltd,21010500,"3,822.18"
Borough Council of Kings Lynn and West Norfolk,E07000146,08/11/2021,GM Central Area,Vehicle - repairs & Maint,Ernest Doe & Sons Ltd,21010521,"1,162.51"
Borough Council of Kings Lynn and West Norfolk,E07000146,08/11/2021,Grounds Northern Area,Fuel,RIX Petroleum (East Anglia) Ltd,21010204,"1,921.55"
Borough Council of Kings Lynn and West Norfolk,E07000146,08/11/2021,CCTV,Repairs & Maintenance,Focus Security (East Anglia) Ltd,21010395,"1,131.50"
Borough Council of Kings Lynn and West Norfolk,E07000146,08/11/2021,CCTV Breckland,Repairs & Maintenance,Focus Security (East Anglia) Ltd,21010396,824.00
Borough Council of Kings Lynn and West Norfolk,E07000146,08/11/2021,Financial Services,Agency Staff,Hays Specialist Recruitment,21010514,"4,130.00"
Borough Council of Kings Lynn and West Norfolk,E07000146,08/11/2021,Parking Operations - Brgh,Tools And Equipment,Mobius Networks Ltd,21010544,633.30
Borough Council of Kings Lynn and West Norfolk,E07000146,08/11/2021,Lynnsport 1,Contractor Works,Lovell Partnerships Ltd,21010503,"5,603.59"
Borough Council of Kings Lynn and West Norfolk,E07000146,08/11/2021,NORA Phase 4,Contractor Works,Lovell Partnerships Ltd,21010504,"625,357.56"
Borough Council of Kings Lynn and West Norfolk,E07000146,08/11/2021,Parkway - Gaywood,Contractor Works,Lovell Partnerships Ltd,21010506,"36,201.45"
Borough Council of Kings Lynn and West Norfolk,E07000146,08/11/2021,Salters Road,Contractor Works,Lovell Partnerships Ltd,21010507,"421,702.59"
Borough Council of Kings Lynn and West Norfolk,E07000146,08/11/2021,Neigbhd Planning Grant,Fees,Andrew Ashcroft Planning Limited,21010082,"6,295.50"
Borough Council of Kings Lynn and West Norfolk,E07000146,08/11/2021,Parks & Open Spaces,Tree Surgery,Golden Tree Surgeons Ltd,21010501,880.00
Borough Council of Kings Lynn and West Norfolk,E07000146,08/11/2021,Parks & Open Spaces,Tree Surgery,Golden Tree Surgeons Ltd,21010502,880.00
Borough Council of Kings Lynn and West Norfolk,E07000146,08/11/2021,Reopening High Streets Safely Fund,Professional Fees,Iliffe Media Publishing Ltd,21010371,"1,224.00"
Borough Council of Kings Lynn and West Norfolk,E07000146,08/11/2021,Food Hygiene General,Shellfish Sampling,Anglian Water Services Ltd,21010484,"1,653.54"
Borough Council of Kings Lynn and West Norfolk,E07000146,08/11/2021,Sth Quay Sommerfield & Thomas BRP,Professional Fees,Graeme Massie Architects Ltd,21010120,"4,000.00"
Borough Council of Kings Lynn and West Norfolk,E07000146,08/11/2021,Parks & Open Spaces,Tree Surgery,Tree Work & Surveys Ltd,21010531,735.00
Borough Council of Kings Lynn and West Norfolk,E07000146,08/11/2021,Sth Quay Sommerfield & Thomas BRP,Professional Fees,Pulse Associates Ltd t/a Pulse Consult,21010386,"31,866.00"
Borough Council of Kings Lynn and West Norfolk,E07000146,08/11/2021,Corporate Insurance,Miscellaneous,Kennedys Law - HH Legal Client a/c,21010498,534.25
Borough Council of Kings Lynn and West Norfolk,E07000146,08/11/2021,Reopening High Streets Safely Fund,Professional Fees,Masson Seeley and Company Limited,21010543,975.00
Borough Council of Kings Lynn and West Norfolk,E07000146,08/11/2021,Website & s media mktng,DMS licences data steward,New Mind Internet Consultancy Ltd,21010512,"5,598.33"
Borough Council of Kings Lynn and West Norfolk,E07000146,11/11/2021,The Walks,Special Events,MED PTS Ambulance Services,21010611,"1,890.00"
Borough Council of Kings Lynn and West Norfolk,E07000146,11/11/2021,Balance Sheet,VAT Input - VAT Only Purchases,Newlyn PLC,22006939,"2,829.29"
Borough Council of Kings Lynn and West Norfolk,E07000146,11/11/2021,Home Improvements Agency,Agency Staff,Seven Resourcing Ltd,21010289,"1,617.31"
Borough Council of Kings Lynn and West Norfolk,E07000146,11/11/2021,Home Improvements Agency,Agency Staff,Seven Resourcing Ltd,21010290,"1,134.90"
Borough Council of Kings Lynn and West Norfolk,E07000146,11/11/2021,Replacement Financial Ledger,Computer Equip (Software),Embridge Consulting (UK) Ltd,21010586,871.49
Borough Council of Kings Lynn and West Norfolk,E07000146,11/11/2021,Sports Grounds South,Repairs & Maintenance,Magpie Security (Norfolk) Ltd,21010254,448.64
Borough Council of Kings Lynn and West Norfolk,E07000146,11/11/2021,Housing standards,Energy Efficiency Expense,Bauer Radio Ltd,21010259,"7,857.45"
Borough Council of Kings Lynn and West Norfolk,E07000146,11/11/2021,Balance Sheet,VAT Input - VAT Only Purchases,Marston (Holdings) Ltd,22006926,"2,456.64"
Borough Council of Kings Lynn and West Norfolk,E07000146,11/11/2021,COMF Phase 3,Agency Staff,Danielle Barrett,21010616,"1,360.00"
Borough Council of Kings Lynn and West Norfolk,E07000146,11/11/2021,Mintlyn Crematorium,Furniture,Treske Ltd,21010261,"1,300.00"
Borough Council of Kings Lynn and West Norfolk,E07000146,11/11/2021,The Walks,Special Events,Live Music Management Ltd,22006933,"1,100.00"
Borough Council of Kings Lynn and West Norfolk,E07000146,11/11/2021,Community Projects CRS,Service Level Agreements,Kings Lynn Festival Ltd,21010579,"3,000.00"
Borough Council of Kings Lynn and West Norfolk,E07000146,11/11/2021,KL Arts Centre,Repairs & Maintenance,KJN Landscapes,21010580,825.00
Borough Council of Kings Lynn and West Norfolk,E07000146,11/11/2021,NEWS Depot,Contract Cleaning,Marathon Services Ltd,21010542,"1,410.00"
Borough Council of Kings Lynn and West Norfolk,E07000146,11/11/2021,Reopening High Streets Safely Fund,Professional Fees,Marathon Services Ltd,21010625,475.00
Borough Council of Kings Lynn and West Norfolk,E07000146,11/11/2021,Cashless Pk JF(NN on St),Agency,North Norfolk District Council,22006940,"34,088.80"
Borough Council of Kings Lynn and West Norfolk,E07000146,11/11/2021,Heacham Beach,Repairs & Maintenance,Penty Contractors Ltd,21010558,440.00
Borough Council of Kings Lynn and West Norfolk,E07000146,11/11/2021,Parking Operations - Brgh,Repairs & Maintenance,Penty Contractors Ltd,21010559,700.00
Borough Council of Kings Lynn and West Norfolk,E07000146,11/11/2021,Resort Seafront,Repairs & Maintenance,Penty Contractors Ltd,21010560,480.00
Borough Council of Kings Lynn and West Norfolk,E07000146,11/11/2021,Mintlyn Crematorium,Trade Waste,Facultatieve Technologies Ltd,21010174,988.76
Borough Council of Kings Lynn and West Norfolk,E07000146,11/11/2021,Recycling Composting,Waste Processing Cost,Greenworld Sales Ltd t/a Greenworld,21010617,812.63
Borough Council of Kings Lynn and West Norfolk,E07000146,11/11/2021,Hardwick Industrial Estate,Repairs & Maintenance,Cooks Blinds & Shutters Ltd,21010171,"1,719.00"
Borough Council of Kings Lynn and West Norfolk,E07000146,11/11/2021,Kings Court Service Charges,Cleaning Material & Equip,Ken Booth & Co Ltd,21010219,609.70
Borough Council of Kings Lynn and West Norfolk,E07000146,11/11/2021,Corporate,Stationery & Office,Adept Technology Group Plc,21010220,"1,129.42"
Borough Council of Kings Lynn and West Norfolk,E07000146,11/11/2021,ICT,Communications,Adept Technology Group Plc,21010220,"2,860.40"
Borough Council of Kings Lynn and West Norfolk,E07000146,11/11/2021,CCTV,Repairs & Maintenance,Adept Technology Group Plc,21010220,350.00
Borough Council of Kings Lynn and West Norfolk,E07000146,11/11/2021,ICT,Recoverable Fees,Adept Technology Group Plc,21010220,186.17
Borough Council of Kings Lynn and West Norfolk,E07000146,11/11/2021,ICT,Telephones,Adept Technology Group Plc,21010221,"5,469.35"
Borough Council of Kings Lynn and West Norfolk,E07000146,11/11/2021,Vehicle Recharge on account,Fuel,Worldline IT Services UK Re Fuelgenie,22006931,"12,041.52"
Borough Council of Kings Lynn and West Norfolk,E07000146,11/11/2021,Training Holding Account,Training,Play Inspection Company Ltd,21010293,460.00
Borough Council of Kings Lynn and West Norfolk,E07000146,11/11/2021,Financial Services,Agency Staff,Hays Specialist Recruitment,21010582,"1,770.00"
Borough Council of Kings Lynn and West Norfolk,E07000146,11/11/2021,Financial Services,Agency Staff,Hays Specialist Recruitment,21010620,"1,770.00"
Borough Council of Kings Lynn and West Norfolk,E07000146,11/11/2021,Contaminated Land Act,Agency Staff,The Oyster Partnership,21010626,"1,680.00"
Borough Council of Kings Lynn and West Norfolk,E07000146,11/11/2021,Stories of Lynn,Tools And Equipment,AV Parts Master Ltd,21010455,546.46
Borough Council of Kings Lynn and West Norfolk,E07000146,11/11/2021,Nora 5,Contractor Works,Lovell Partnerships Ltd,21010505,432.00
Borough Council of Kings Lynn and West Norfolk,E07000146,11/11/2021,Play Areas,Tools And Equipment,Fenland Leisure Products Ltd,21010606,"1,261.40"
Borough Council of Kings Lynn and West Norfolk,E07000146,11/11/2021,Stories of Lynn,Ticket Sales,Kings Lynn Town Guides,22006924,"1,130.00"
Borough Council of Kings Lynn and West Norfolk,E07000146,11/11/2021,Cllr Allowance & Exps,Seminars/Training,IDEA,22006923,500.00
Borough Council of Kings Lynn and West Norfolk,E07000146,11/11/2021,Parish/B Coun. Elections,Stationery & Office,Civica Election Services Ltd,22006717,"1,090.69"
Borough Council of Kings Lynn and West Norfolk,E07000146,15/11/2021,KL Innovation Centre,Repairs & Maintenance,Mr Brights Ltd,21010573,"1,721.16"
Borough Council of Kings Lynn and West Norfolk,E07000146,15/11/2021,Financial Services,Postages,Royal Mail Group Ltd,22006952,110.88
Borough Council of Kings Lynn and West Norfolk,E07000146,15/11/2021,Benefit Administration,Postages,Royal Mail Group Ltd,22006952,478.15
Borough Council of Kings Lynn and West Norfolk,E07000146,15/11/2021,Cost of Collection - CTax,Postages,Royal Mail Group Ltd,22006952,950.77
Borough Council of Kings Lynn and West Norfolk,E07000146,15/11/2021,Kings Lynn Bid,Postages,Royal Mail Group Ltd,22006952,41.41
Borough Council of Kings Lynn and West Norfolk,E07000146,15/11/2021,Benefit Administration,Postages,Royal Mail Group Ltd,22006952,30.10
Borough Council of Kings Lynn and West Norfolk,E07000146,15/11/2021,Cost of Collection - CTax,Postages,Royal Mail Group Ltd,22006952,37.16
Borough Council of Kings Lynn and West Norfolk,E07000146,15/11/2021,Home Improvements Agency,Agency,David Trundley Design Services Ltd,21010666,"1,550.00"
Borough Council of Kings Lynn and West Norfolk,E07000146,15/11/2021,KL Innovation Centre,Repairs & Maintenance,Pitney Bowes Purchase Power,21010635,377.17
Borough Council of Kings Lynn and West Norfolk,E07000146,15/11/2021,KL Innovation Centre,Repairs & Maintenance,Pitney Bowes Purchase Power,21010635,5.00
Borough Council of Kings Lynn and West Norfolk,E07000146,15/11/2021,KL Innovation Centre,Repairs & Maintenance,Pitney Bowes Purchase Power,21010635,457.70
Borough Council of Kings Lynn and West Norfolk,E07000146,15/11/2021,KL Innovation Centre,Repairs & Maintenance,Pitney Bowes Purchase Power,21010635,5.00
Borough Council of Kings Lynn and West Norfolk,E07000146,15/11/2021,Licensing,CRB Forms - Expenditure,Disclosure & Barring Service,22006944,520.00
Borough Council of Kings Lynn and West Norfolk,E07000146,15/11/2021,Parking Operations - Brgh,Personnel DBS Checks,Disclosure & Barring Service,22006944,80.00
Borough Council of Kings Lynn and West Norfolk,E07000146,15/11/2021,Home Improvements Agency,Personnel DBS Checks,Disclosure & Barring Service,22006944,40.00
Borough Council of Kings Lynn and West Norfolk,E07000146,15/11/2021,Personnel Services,Personnel DBS Checks,Disclosure & Barring Service,22006944,920.00
Borough Council of Kings Lynn and West Norfolk,E07000146,15/11/2021,Domestic Refuse,Added Years Pension,Norfolk Pension Fund,21010678,"-2,869.87"
Borough Council of Kings Lynn and West Norfolk,E07000146,15/11/2021,Trade Refuse,Added Years Pension,Norfolk Pension Fund,21010678,717.98
Borough Council of Kings Lynn and West Norfolk,E07000146,15/11/2021,Corporate,Added Years Pension,Norfolk Pension Fund,21010678,"20,091.11"
Borough Council of Kings Lynn and West Norfolk,E07000146,15/11/2021,Lynnsport & Leisure Park,Repairs & Maintenance,Kew Grasscare,21010676,560.00
Borough Council of Kings Lynn and West Norfolk,E07000146,15/11/2021,Recycling Composting,Waste Processing Cost,Greenworld Sales Ltd t/a Greenworld,21010674,"27,868.88"
Borough Council of Kings Lynn and West Norfolk,E07000146,15/11/2021,ICT,Computer Hardware Maint,Kingsfield Computer Product Ltd,21010252,469.75
Borough Council of Kings Lynn and West Norfolk,E07000146,15/11/2021,Trafalgar (DM)  Industrial Estate,Repairs & Maintenance,Cooks Blinds & Shutters Ltd,21010234,"1,584.00"
Borough Council of Kings Lynn and West Norfolk,E07000146,15/11/2021,Trade Refuse,Repairs & Maintenance,UK Container Maintenance Ltd,21010278,"2,580.00"
Borough Council of Kings Lynn and West Norfolk,E07000146,15/11/2021,Trade Refuse,Repairs & Maintenance,UK Container Maintenance Ltd,21010279,"3,225.00"
Borough Council of Kings Lynn and West Norfolk,E07000146,15/11/2021,Financial Services,Agency Staff,Hays Specialist Recruitment,21010619,"2,360.00"
Borough Council of Kings Lynn and West Norfolk,E07000146,15/11/2021,Street Lighting,Repairs & Maintenance,Westcotec Ltd,21010324,"1,467.98"
Borough Council of Kings Lynn and West Norfolk,E07000146,15/11/2021,KL Arts Centre,Hirings Ticketed,John Giller Drama & Theatre Academy,22006946,"4,872.08"
Borough Council of Kings Lynn and West Norfolk,E07000146,15/11/2021,KL Arts Centre,Hiring Charges Income,John Giller Drama & Theatre Academy,22006946,-375.00
Borough Council of Kings Lynn and West Norfolk,E07000146,15/11/2021,KL Arts Centre,Hirings Ticketed,John Giller Drama & Theatre Academy,22006946,83.33
Borough Council of Kings Lynn and West Norfolk,E07000146,15/11/2021,KL Arts Centre,Commission On Box Office,John Giller Drama & Theatre Academy,22006946,-292.33
Borough Council of Kings Lynn and West Norfolk,E07000146,15/11/2021,KL Arts Centre,PRS Recharge,John Giller Drama & Theatre Academy,22006946,-81.16
Borough Council of Kings Lynn and West Norfolk,E07000146,15/11/2021,KL Arts Centre,Credit Card Recharge,John Giller Drama & Theatre Academy,22006946,-308.83
Borough Council of Kings Lynn and West Norfolk,E07000146,15/11/2021,NORA Phase 4,External Fees/Consultancy,Clanpress (Kings Lynn) Ltd,21010665,"1,178.00"
Borough Council of Kings Lynn and West Norfolk,E07000146,15/11/2021,Community Projects,Service Level Agreements,Community Action Norfolk,21010340,"8,000.00"
Borough Council of Kings Lynn and West Norfolk,E07000146,15/11/2021,Parking Operations - Brgh,Tools And Equipment,OPCC Norfolk,22006896,950.00
Borough Council of Kings Lynn and West Norfolk,E07000146,15/11/2021,Financial Services,Recruitment,TMP (UK) Ltd,22006776,"5,104.00"
Borough Council of Kings Lynn and West Norfolk,E07000146,15/11/2021,Early Help Hub Co-ordinator,Recruitment,TMP (UK) Ltd,22006778,567.94
Borough Council of Kings Lynn and West Norfolk,E07000146,15/11/2021,Policy & Partnerships,Recruitment,TMP (UK) Ltd,22006779,"2,220.18"
Borough Council of Kings Lynn and West Norfolk,E07000146,15/11/2021,Rough Sleeper Fund,Covid 19,Excaliber Security Services Ltd,21010671,"5,107.20"
Borough Council of Kings Lynn and West Norfolk,E07000146,15/11/2021,Rough Sleeper Fund,Covid 19,Excaliber Security Services Ltd,21010672,"5,137.60"
Borough Council of Kings Lynn and West Norfolk,E07000146,15/11/2021,Sports Grounds North,Materials,Advance Grass Solutions,22006756,238.21
Borough Council of Kings Lynn and West Norfolk,E07000146,15/11/2021,Sports Grounds Central,Materials,Advance Grass Solutions,22006756,238.21
Borough Council of Kings Lynn and West Norfolk,E07000146,15/11/2021,Kings Court Service Charges,Covid 19,XL Displays Limited,21010269,"4,235.40"
Borough Council of Kings Lynn and West Norfolk,E07000146,15/11/2021,Kings Court Kings Lynn,Covid 19,XL Displays Limited,21010270,"5,166.00"
Borough Council of Kings Lynn and West Norfolk,E07000146,15/11/2021,Kings Court Kings Lynn,Covid 19,XL Displays Limited,21010275,"1,104.00"
Borough Council of Kings Lynn and West Norfolk,E07000146,15/11/2021,NEWS Depot,Repairs & Maintenance,Kardex Systems (UK) Ltd,21010251,655.00
Borough Council of Kings Lynn and West Norfolk,E07000146,15/11/2021,Corporate,Bank Charges,Allpay,22007129,"1,443.86"
Borough Council of Kings Lynn and West Norfolk,E07000146,15/11/2021,Corporate,Bank Charges,Allpay,22007129,"1,443.86"
Borough Council of Kings Lynn and West Norfolk,E07000146,18/11/2021,Corporate,Bank Charges,Allpay,22006985,"1,450.95"
Borough Council of Kings Lynn and West Norfolk,E07000146,18/11/2021,ICT,Computer Software Maint,Capita Business Services Ltd,22006992,904.26
Borough Council of Kings Lynn and West Norfolk,E07000146,18/11/2021,Utility Holding,Electricity Bulk Billing,EDF Energy Ltd,22006994,"4,720.44"
Borough Council of Kings Lynn and West Norfolk,E07000146,18/11/2021,Utility Holding,Electricity Bulk Billing,EDF Energy Ltd,22006993,"75,913.99"
Borough Council of Kings Lynn and West Norfolk,E07000146,18/11/2021,KL Innovation Centre,Telephones,Spitfire Network Services Ltd,22006998,912.45
Borough Council of Kings Lynn and West Norfolk,E07000146,18/11/2021,ICT,MPhone Usage & Top-up,TelefonicaO2UK Ltd,22006999,"1,041.95"
Borough Council of Kings Lynn and West Norfolk,E07000146,18/11/2021,Corporate,Bank Charges,Worldpay Ltd,22007000,"13,062.93"
Borough Council of Kings Lynn and West Norfolk,E07000146,18/11/2021,Corporate,Bank Charges,Worldpay Ltd,22007000,593.80
Borough Council of Kings Lynn and West Norfolk,E07000146,18/11/2021,Street Sweeping,Animal Removal,Peaceful Pets Ltd,21010817,845.00
Borough Council of Kings Lynn and West Norfolk,E07000146,18/11/2021,ICT,Broadband Charge,British Telecommunications PLC,21010779,"1,032.42"
Borough Council of Kings Lynn and West Norfolk,E07000146,18/11/2021,ICT,Telephones,British Telecommunications PLC,21010781,515.24
Borough Council of Kings Lynn and West Norfolk,E07000146,18/11/2021,Home Improvements Agency,Agency Staff,Seven Resourcing Ltd,21010440,"1,620.08"
Borough Council of Kings Lynn and West Norfolk,E07000146,18/11/2021,Home Improvements Agency,Agency Staff,Seven Resourcing Ltd,21010441,"1,087.52"
Borough Council of Kings Lynn and West Norfolk,E07000146,18/11/2021,Parks & Open Spaces,Tree Surgery,Golden Tree Surgeons Ltd,21010747,"1,130.00"
Borough Council of Kings Lynn and West Norfolk,E07000146,18/11/2021,Cashless Pk JT(Brd on St),Merchant Fees,Chipside Ltd,21010703,0.04
Borough Council of Kings Lynn and West Norfolk,E07000146,18/11/2021,Cashless Pk JG (Bk on St),Merchant Fees,Chipside Ltd,21010703,3.13
Borough Council of Kings Lynn and West Norfolk,E07000146,18/11/2021,Cashless Pk JE(NN on St),Merchant Fees,Chipside Ltd,21010703,19.51
Borough Council of Kings Lynn and West Norfolk,E07000146,18/11/2021,Cashless Park KR (KLWN on ST),Merchant Fees,Chipside Ltd,21010703,42.19
Borough Council of Kings Lynn and West Norfolk,E07000146,18/11/2021,Cashless Pk JI(GYon St),Merchant Fees,Chipside Ltd,21010703,291.04
Borough Council of Kings Lynn and West Norfolk,E07000146,18/11/2021,Cashless Pk JF(NN on St),Merchant Fees,Chipside Ltd,21010703,337.34
Borough Council of Kings Lynn and West Norfolk,E07000146,18/11/2021,Cashless Pk YT(GY off St),Merchant Fees,Chipside Ltd,21010703,573.78
Borough Council of Kings Lynn and West Norfolk,E07000146,18/11/2021,Cashless Park KZ (KLWN off ST),Merchant Fees,Chipside Ltd,21010703,"1,313.83"
Borough Council of Kings Lynn and West Norfolk,E07000146,18/11/2021,Cashless Pk JT(Brd on St),Transaction Fee,Chipside Ltd,21010705,1.00
Borough Council of Kings Lynn and West Norfolk,E07000146,18/11/2021,Cashless Pk JG (Bk on St),Transaction Fee,Chipside Ltd,21010705,19.00
Borough Council of Kings Lynn and West Norfolk,E07000146,18/11/2021,Cashless Pk JE(NN on St),Transaction Fee,Chipside Ltd,21010705,148.00
Borough Council of Kings Lynn and West Norfolk,E07000146,18/11/2021,Cashless Park KR (KLWN on ST),Transaction Fee,Chipside Ltd,21010705,197.83
Borough Council of Kings Lynn and West Norfolk,E07000146,18/11/2021,Cashless Pk JI(GYon St),Transaction Fee,Chipside Ltd,21010705,625.62
Borough Council of Kings Lynn and West Norfolk,E07000146,18/11/2021,Cashless Pk JF(NN on St),Transaction Fee,Chipside Ltd,21010705,858.58
Borough Council of Kings Lynn and West Norfolk,E07000146,18/11/2021,Cashless Pk YT(GY off St),Transaction Fee,Chipside Ltd,21010705,995.67
Borough Council of Kings Lynn and West Norfolk,E07000146,18/11/2021,Cashless Park KZ (KLWN off ST),Transaction Fee,Chipside Ltd,21010705,"3,391.25"
Borough Council of Kings Lynn and West Norfolk,E07000146,18/11/2021,Resort Seafront,Repairs & Maintenance,Simon Wade Electrical Engineer,21010660,"1,000.00"
Borough Council of Kings Lynn and West Norfolk,E07000146,18/11/2021,Resort Seafront,Repairs & Maintenance,Simon Wade Electrical Engineer,21010660,"2,110.00"
Borough Council of Kings Lynn and West Norfolk,E07000146,18/11/2021,LILY 5,Lily Advisor Payments,Family Action,21010756,958.33
Borough Council of Kings Lynn and West Norfolk,E07000146,18/11/2021,Closed Churchyards,Repairs & Maintenance,Roderick Shelton Ltd,21010819,"1,560.00"
Borough Council of Kings Lynn and West Norfolk,E07000146,18/11/2021,Closed Churchyards,Repairs & Maintenance,Roderick Shelton Ltd,21010819,"1,250.00"
Borough Council of Kings Lynn and West Norfolk,E07000146,18/11/2021,Reopening High Streets Safely Fund,Professional Fees,Quality Essential Distribution Ltd,21010353,"18,850.00"
Borough Council of Kings Lynn and West Norfolk,E07000146,18/11/2021,Financial Services,Recruitment,TMP (UK) Ltd,22006856,500.94
Borough Council of Kings Lynn and West Norfolk,E07000146,18/11/2021,Personnel Services,Recruitment,TMP (UK) Ltd,22006858,"2,820.13"
Borough Council of Kings Lynn and West Norfolk,E07000146,18/11/2021,ICT,Recruitment,TMP (UK) Ltd,22006859,"1,050.96"
Borough Council of Kings Lynn and West Norfolk,E07000146,18/11/2021,Publ Cl & St Sweap - Supp,Recruitment,TMP (UK) Ltd,22006864,191.66
Borough Council of Kings Lynn and West Norfolk,E07000146,18/11/2021,Tech/Officers/Repairs,Recruitment,TMP (UK) Ltd,22006864,191.67
Borough Council of Kings Lynn and West Norfolk,E07000146,18/11/2021,Public Cleansing,Recruitment,TMP (UK) Ltd,22006864,191.67
Borough Council of Kings Lynn and West Norfolk,E07000146,18/11/2021,LILY 5,Lily Advisor Payments,Norfolk and Waveney Mind,21010816,"1,852.50"
Borough Council of Kings Lynn and West Norfolk,E07000146,18/11/2021,Day visitor awareness,Advertising & Marketing,Yandell Publishing Ltd,21010277,600.00
Borough Council of Kings Lynn and West Norfolk,E07000146,18/11/2021,Planning Control,Professional Fees,Northstar Urban Design Ltd,21010297,"2,191.50"
Borough Council of Kings Lynn and West Norfolk,E07000146,18/11/2021,Corporate Insurance,Miscellaneous,Kennedys Law - HH Legal Client a/c,22006966,"4,408.65"
Borough Council of Kings Lynn and West Norfolk,E07000146,18/11/2021,Flitcham Workshops,Repairs & Maintenance,Greenlight Environmental Consultancy Ltd,21010369,450.00
Borough Council of Kings Lynn and West Norfolk,E07000146,18/11/2021,NNDC Carpark Operation,Tools And Equipment,3C Payment UK Ltd,21010696,825.00
Borough Council of Kings Lynn and West Norfolk,E07000146,18/11/2021,Town Hall Kings Lynn,Repairs & Maintenance,Chas D Allflatt Ltd,21010738,"9,120.90"
Borough Council of Kings Lynn and West Norfolk,E07000146,18/11/2021,Sports Grounds North,Materials,Collier Turf Care Ltd,21010706,834.50
Borough Council of Kings Lynn and West Norfolk,E07000146,18/11/2021,Sports Grounds Central,Materials,Collier Turf Care Ltd,21010706,834.50
Borough Council of Kings Lynn and West Norfolk,E07000146,18/11/2021,Sports Grounds South,Materials,Collier Turf Care Ltd,21010706,834.50
Borough Council of Kings Lynn and West Norfolk,E07000146,18/11/2021,Network Hardware holding,Repairs & Maintenance,E Akers,21010740,475.00
Borough Council of Kings Lynn and West Norfolk,E07000146,18/11/2021,Local Land Charges,Agency,Norfolk County Council,22006963,"7,028.91"
Borough Council of Kings Lynn and West Norfolk,E07000146,18/11/2021,Head of Legal Services,External Legal fees,North Norfolk District Council,22006967,"11,805.00"
Borough Council of Kings Lynn and West Norfolk,E07000146,18/11/2021,Head of Legal Services,External Legal fees,North Norfolk District Council,22006968,"18,528.00"
Borough Council of Kings Lynn and West Norfolk,E07000146,18/11/2021,Parking Operations - Brgh,Tools And Equipment,Bemrose Booth Paragon Ltd,21010335,"3,543.00"
Borough Council of Kings Lynn and West Norfolk,E07000146,18/11/2021,Street Sweeping,Animal Removal,Peaceful Pets Ltd,21010818,467.50
Borough Council of Kings Lynn and West Norfolk,E07000146,18/11/2021,LILY 5,Lily Advisor Payments,West Norfolk Befriending,21010726,"1,852.50"
Borough Council of Kings Lynn and West Norfolk,E07000146,18/11/2021,LILY 5,Lily Advisor Payments,West Norfolk Befriending,21010727,"1,000.00"
Borough Council of Kings Lynn and West Norfolk,E07000146,18/11/2021,NEWS Depot,Fuel,RIX Petroleum (East Anglia) Ltd,21010291,"3,518.20"
Borough Council of Kings Lynn and West Norfolk,E07000146,18/11/2021,Financial Services,Agency Staff,Hays Specialist Recruitment,21010796,"2,212.50"
Borough Council of Kings Lynn and West Norfolk,E07000146,18/11/2021,Financial Services,Agency Staff,Hays Specialist Recruitment,21010675,"4,130.00"
Borough Council of Kings Lynn and West Norfolk,E07000146,18/11/2021,Grounds Southern Area,Fuel,UK Fuels Ltd,22006970,380.34
Borough Council of Kings Lynn and West Norfolk,E07000146,18/11/2021,Grounds Southern Area,Fuel,UK Fuels Ltd,22006970,50.78
Borough Council of Kings Lynn and West Norfolk,E07000146,18/11/2021,Grounds Southern Area,Fuel,UK Fuels Ltd,22006970,29.68
Borough Council of Kings Lynn and West Norfolk,E07000146,18/11/2021,Public Cleansing,Fuel,UK Fuels Ltd,22006970,384.18
Borough Council of Kings Lynn and West Norfolk,E07000146,18/11/2021,Grounds Southern Area,Fuel,UK Fuels Ltd,22006970,217.80
Borough Council of Kings Lynn and West Norfolk,E07000146,18/11/2021,Grounds Southern Area,Fuel,UK Fuels Ltd,22006970,170.99
Borough Council of Kings Lynn and West Norfolk,E07000146,18/11/2021,Grounds Southern Area,Fuel,UK Fuels Ltd,22006970,69.29
Borough Council of Kings Lynn and West Norfolk,E07000146,18/11/2021,Grounds Southern Area,Fuel,UK Fuels Ltd,22006970,135.70
Borough Council of Kings Lynn and West Norfolk,E07000146,18/11/2021,Dog Warden and Services,Contracted Services,Dogotel Kennels & Cattery,22006955,840.00
Borough Council of Kings Lynn and West Norfolk,E07000146,18/11/2021,Dog Warden and Services,Kennel Fees,Dogotel Kennels & Cattery,22006955,86.00
Borough Council of Kings Lynn and West Norfolk,E07000146,18/11/2021,Dog Warden and Services,Kennel Fees Recd - Extl,Dogotel Kennels & Cattery,22006955,-166.00
Borough Council of Kings Lynn and West Norfolk,E07000146,18/11/2021,General Property,Advertising & Marketing,Rightmove Group Ltd,21010292,720.00
Borough Council of Kings Lynn and West Norfolk,E07000146,18/11/2021,Heritage Action Zone,Professional Fees,Englemere Ltd,22006957,790.00
Borough Council of Kings Lynn and West Norfolk,E07000146,18/11/2021,Kings Lynn Christmas Lights,Miscellaneous,Kelly Smith,22006959,"1,900.00"
Borough Council of Kings Lynn and West Norfolk,E07000146,18/11/2021,Printing & Graphics,Materials,Premier Paper Group Ltd,21010681,578.40
Borough Council of Kings Lynn and West Norfolk,E07000146,18/11/2021,Printing & Graphics,Materials,Premier Paper Group Ltd,21010681,4.24
Borough Council of Kings Lynn and West Norfolk,E07000146,22/11/2021,ICT,MPhone Usage & Top-up,Vodafone (Corporate) Ltd,22006980,"5,696.56"
Borough Council of Kings Lynn and West Norfolk,E07000146,22/11/2021,ICT,MPhone Usage & Top-up,Vodafone (Corporate) Ltd,22006980,42.00
Borough Council of Kings Lynn and West Norfolk,E07000146,22/11/2021,ICT,MPhone Usage & Top-up,Vodafone (Corporate) Ltd,22006980,-327.09
Borough Council of Kings Lynn and West Norfolk,E07000146,22/11/2021,Rough Sleeper Initiative Y3,Consultants Fees,The Purfleet Trust,21010897,"38,000.00"
Borough Council of Kings Lynn and West Norfolk,E07000146,22/11/2021,Mintlyn Crematorium,Tools And Equipment,Teleshore UK Ltd t/a Gemini CCS Ltd,21010354,709.00
Borough Council of Kings Lynn and West Norfolk,E07000146,22/11/2021,Public conveniences,Sewerage/Cesspool Empty,BACO-Compak (Norfolk) Ltd,21010825,"1,505.00"
Borough Council of Kings Lynn and West Norfolk,E07000146,22/11/2021,Rough Sleeper Fund,Covid 19,BACO-Compak (Norfolk) Ltd,21010827,580.00
Borough Council of Kings Lynn and West Norfolk,E07000146,22/11/2021,Local Land Charges,Agency,Norfolk County Council,22006973,"7,377.94"
Borough Council of Kings Lynn and West Norfolk,E07000146,22/11/2021,Housing Options Programme,Homeless Prevention Fund,Rounce & Evans,22006974,"1,927.00"
Borough Council of Kings Lynn and West Norfolk,E07000146,22/11/2021,South Lynn Community Centre,Broadband Charge,Claranet Ltd,21010866,46.24
Borough Council of Kings Lynn and West Norfolk,E07000146,22/11/2021,Town Hall Kings Lynn,Broadband Charge,Claranet Ltd,21010866,66.29
Borough Council of Kings Lynn and West Norfolk,E07000146,22/11/2021,Benefit Administration,Broadband Charge,Claranet Ltd,21010866,276.42
Borough Council of Kings Lynn and West Norfolk,E07000146,22/11/2021,ICT,Broadband Charge,Claranet Ltd,21010866,46.24
Borough Council of Kings Lynn and West Norfolk,E07000146,22/11/2021,NNDC Carpark Operation,Broadband Charge,Claranet Ltd,21010866,135.58
Borough Council of Kings Lynn and West Norfolk,E07000146,22/11/2021,Mintlyn Crematorium,Repairs & Maintenance,Facultatieve Technologies Ltd,21010363,"1,933.27"
Borough Council of Kings Lynn and West Norfolk,E07000146,22/11/2021,Natl Assist Act Burials,Burial Fees-Nat.Ass.Act,Thornalley Funeral Services Ltd,21010901,"1,170.00"
Borough Council of Kings Lynn and West Norfolk,E07000146,22/11/2021,Financial Services,Agency Staff,Hays Specialist Recruitment,21010871,"2,950.00"
Borough Council of Kings Lynn and West Norfolk,E07000146,22/11/2021,Kings Lynn Christmas Lights,Miscellaneous,MED PTS Ambulance Services,21010877,640.00
Borough Council of Kings Lynn and West Norfolk,E07000146,22/11/2021,Parkway - Gaywood,Works,Golden Tree Surgeons Ltd,21010846,"2,580.00"
Borough Council of Kings Lynn and West Norfolk,E07000146,22/11/2021,ICT,Computer Software Maint,Bytes Software Services Ltd,21010833,"27,928.32"
Borough Council of Kings Lynn and West Norfolk,E07000146,22/11/2021,Replacement Financial Ledger,Computer Equip (Software),Embridge Consulting (UK) Ltd,21010869,880.02
Borough Council of Kings Lynn and West Norfolk,E07000146,22/11/2021,Crematorium Trading Account,Memorial Plates,Anglia Sign Casting Ltd,21010225,761.27
Borough Council of Kings Lynn and West Norfolk,E07000146,22/11/2021,West Winch Growth Area,Professional Fees,Gerald Eve LLP,21010515,"7,214.97"
Borough Council of Kings Lynn and West Norfolk,E07000146,22/11/2021,Training Holding Account,Training,Talking Shop Training Ltd,21010567,"1,500.00"
Borough Council of Kings Lynn and West Norfolk,E07000146,22/11/2021,West Winch Growth Area,Professional Fees,Brecher LLP,21010478,"14,602.00"
Borough Council of Kings Lynn and West Norfolk,E07000146,22/11/2021,Hunstanton Southend Road,Works,Vantage Building Control Ltd,21010536,"2,425.00"
Borough Council of Kings Lynn and West Norfolk,E07000146,22/11/2021,Housing Options Programme,Homeless Prevention Fund,Muhammad Fayyaz,22006979,"1,486.15"
Borough Council of Kings Lynn and West Norfolk,E07000146,22/11/2021,Public Cleansing,Cleaning Material & Equip,V & J Knitwear Ltd,21010822,849.98
Borough Council of Kings Lynn and West Norfolk,E07000146,22/11/2021,Public Cleansing,Cleaning Material & Equip,V & J Knitwear Ltd,21010822,9.15
Borough Council of Kings Lynn and West Norfolk,E07000146,25/11/2021,Public Realm/Town Deal,Equipment/Materials,Stuart Power Ltd,21010773,885.71
Borough Council of Kings Lynn and West Norfolk,E07000146,25/11/2021,Sail the Wash - Sutton Br,Professional Fees,Intermarine Ltd,21010799,"4,982.00"
Borough Council of Kings Lynn and West Norfolk,E07000146,25/11/2021,ICT,Computer Software Maint,Bytes Software Services Ltd,21010834,"134,164.92"
Borough Council of Kings Lynn and West Norfolk,E07000146,25/11/2021,Dry Box Collection Scheme,Waste Processing Cost,Norse Environmental Services,21010679,"42,033.49"
Borough Council of Kings Lynn and West Norfolk,E07000146,25/11/2021,NORA Phase 3,Professional Fees,North Norfolk District Council,21010884,"1,918.00"
Borough Council of Kings Lynn and West Norfolk,E07000146,25/11/2021,NORA Phase 3,Professional Fees,North Norfolk District Council,21010885,510.00
Borough Council of Kings Lynn and West Norfolk,E07000146,25/11/2021,Mintlyn Crematorium,Repairs & Maintenance,1-2 Call Drainage & Groundwork Ltd,21010907,850.00
Borough Council of Kings Lynn and West Norfolk,E07000146,25/11/2021,Hunstanton Bus Station & NCC Library,Contractor Works,Lovell Partnerships Ltd,21010916,"14,580.00"
Borough Council of Kings Lynn and West Norfolk,E07000146,25/11/2021,Grounds Northern Area,Repairs & Maintenance,A F Holman,21010928,475.00
Borough Council of Kings Lynn and West Norfolk,E07000146,25/11/2021,Community Transport,Transport Subsidies,West Norfolk Community Transport Project,21010930,"32,344.50"
Borough Council of Kings Lynn and West Norfolk,E07000146,25/11/2021,Community Transport,Transport Subsidies,West Norfolk Community Transport Project,21010931,"12,494.00"
Borough Council of Kings Lynn and West Norfolk,E07000146,25/11/2021,The Walks,Special Events,Whitelightning Pyrotechnics,21010932,"5,000.00"
Borough Council of Kings Lynn and West Norfolk,E07000146,25/11/2021,Next Steps Accommodation Programme,Everard Mews Exp,Broadland Housing Group,21010952,"64,650.00"
Borough Council of Kings Lynn and West Norfolk,E07000146,25/11/2021,Project Mmgt / Marketing,Professional Fees,EDP Environmental Ltd,21010955,"1,440.00"
Borough Council of Kings Lynn and West Norfolk,E07000146,25/11/2021,Rough Sleeper Fund,Covid 19,Excaliber Security Services Ltd,21010956,"5,107.20"
Borough Council of Kings Lynn and West Norfolk,E07000146,25/11/2021,Careline,Tools And Equipment,Lifeline24 Ltd,21010957,"28,263.50"
Borough Council of Kings Lynn and West Norfolk,E07000146,25/11/2021,ICT,Computer Software Maint,Siteimprove Ltd,21010958,"3,245.93"
Borough Council of Kings Lynn and West Norfolk,E07000146,25/11/2021,ICT,Communications,Adept Technology Group Plc,21010965,"2,870.40"
Borough Council of Kings Lynn and West Norfolk,E07000146,25/11/2021,Corporate,Stationery & Office,Adept Technology Group Plc,21010965,"1,129.42"
Borough Council of Kings Lynn and West Norfolk,E07000146,25/11/2021,CCTV,Repairs & Maintenance,Adept Technology Group Plc,21010965,350.00
Borough Council of Kings Lynn and West Norfolk,E07000146,25/11/2021,ICT,Recoverable Fees,Adept Technology Group Plc,21010965,186.17
Borough Council of Kings Lynn and West Norfolk,E07000146,25/11/2021,ICT,Telephones,Adept Technology Group Plc,21010966,"5,786.79"
Borough Council of Kings Lynn and West Norfolk,E07000146,25/11/2021,Rough Sleeper Fund,Covid 19,Excaliber Security Services Ltd,21010970,"5,107.20"
Borough Council of Kings Lynn and West Norfolk,E07000146,25/11/2021,Rough Sleeper Fund,Covid 19,Excaliber Security Services Ltd,21010971,"5,107.20"
Borough Council of Kings Lynn and West Norfolk,E07000146,25/11/2021,Financial Services,Agency Staff,Hays Specialist Recruitment,21010976,"2,655.00"
Borough Council of Kings Lynn and West Norfolk,E07000146,25/11/2021,Food Waste,Waste Processing Cost,Norse Environmental Services,21010680,"5,887.60"
Borough Council of Kings Lynn and West Norfolk,E07000146,25/11/2021,Day visitor awareness,Distribution,APL Media Ltd,21010734,562.00
Borough Council of Kings Lynn and West Norfolk,E07000146,25/11/2021,Parkway - Gaywood,Professional Fees,Kings Lynn Internal Drainage Board,21010873,"8,250.00"
Borough Council of Kings Lynn and West Norfolk,E07000146,25/11/2021,Head of Legal Services,External Legal fees,Iken Business Ltd,21008102,"3,037.50"
Borough Council of Kings Lynn and West Norfolk,E07000146,25/11/2021,Mintlyn Crematorium,Professional Fees,"Fed, of Burial & Cremation Authorities",21010393,500.00
Borough Council of Kings Lynn and West Norfolk,E07000146,25/11/2021,Custom House & Tics,Repairs & Maintenance,Lantei Limited,21010400,236.54
Borough Council of Kings Lynn and West Norfolk,E07000146,25/11/2021,Town Hall Kings Lynn,Repairs & Maintenance,Lantei Limited,21010400,"2,838.46"
Borough Council of Kings Lynn and West Norfolk,E07000146,25/11/2021,Training Holding Account,Training,Alpha Parking Ltd,21010405,695.00
Borough Council of Kings Lynn and West Norfolk,E07000146,25/11/2021,Sth Quay Sommerfield & Thomas BRP,Works,Gerald Eve LLP,21010424,"6,995.00"
Borough Council of Kings Lynn and West Norfolk,E07000146,25/11/2021,ICT,Communications,Nominet UK,21010431,765.94
Borough Council of Kings Lynn and West Norfolk,E07000146,25/11/2021,Decrim - Operational,Miscellaneous,Patrol,21010433,"2,733.90"
Borough Council of Kings Lynn and West Norfolk,E07000146,25/11/2021,Careline,Tools And Equipment,Tunstall Healthcare (UK) Ltd,21010445,"7,081.83"
Borough Council of Kings Lynn and West Norfolk,E07000146,25/11/2021,Housing standards,Energy Efficiency Expense,Bauer Radio Ltd,21010456,610.00
Borough Council of Kings Lynn and West Norfolk,E07000146,25/11/2021,Postage Services K Court,Postages,DX Network Services Ltd,21010470,"1,272.38"
Borough Council of Kings Lynn and West Norfolk,E07000146,25/11/2021,Reopening High Streets Safely Fund,Professional Fees,M Usher,21010983,500.00
Borough Council of Kings Lynn and West Norfolk,E07000146,25/11/2021,Hunstanton Bus Station & NCC Library,External Fees/Consultancy,Norfolk County Council,21010987,"7,473.37"
Borough Council of Kings Lynn and West Norfolk,E07000146,25/11/2021,Recycling Composting,Covid 19,Enterprise Flex-E Rent,22006895,"1,978.00"
Borough Council of Kings Lynn and West Norfolk,E07000146,25/11/2021,Grounds Northern Area,Materials,Advance Grass Solutions,22006905,650.00
Borough Council of Kings Lynn and West Norfolk,E07000146,25/11/2021,Register of Electors,Stationery & Office,Civica Election Services Ltd,22006906,"1,247.04"
Borough Council of Kings Lynn and West Norfolk,E07000146,25/11/2021,COMF Phase 3,Recruitment,TMP (UK) Ltd,22006930,575.00
Borough Council of Kings Lynn and West Norfolk,E07000146,25/11/2021,Balance Sheet,VAT Input - VAT Only Purchases,Marston (Holdings) Ltd,22006961,"2,880.05"
Borough Council of Kings Lynn and West Norfolk,E07000146,25/11/2021,Financial Services,Postages,Royal Mail Group Ltd,22007003,67.76
Borough Council of Kings Lynn and West Norfolk,E07000146,25/11/2021,Benefit Administration,Postages,Royal Mail Group Ltd,22007003,313.87
Borough Council of Kings Lynn and West Norfolk,E07000146,25/11/2021,Cost of Collection - CTax,Postages,Royal Mail Group Ltd,22007003,"1,493.51"
Borough Council of Kings Lynn and West Norfolk,E07000146,25/11/2021,Kings Lynn Bid,Postages,Royal Mail Group Ltd,22007003,1.76
Borough Council of Kings Lynn and West Norfolk,E07000146,25/11/2021,Benefit Administration,Postages,Royal Mail Group Ltd,22007003,5.40
Borough Council of Kings Lynn and West Norfolk,E07000146,25/11/2021,Cost of Collection - CTax,Postages,Royal Mail Group Ltd,22007003,66.22
Borough Council of Kings Lynn and West Norfolk,E07000146,25/11/2021,Crematorium Trading Account,Webcasts/Tributes/Recordings,Vivedia Ltd,21010535,"1,856.00"
Borough Council of Kings Lynn and West Norfolk,E07000146,25/11/2021,Home Improvements Agency,Agency Staff,Seven Resourcing Ltd,21010568,"1,644.95"
Borough Council of Kings Lynn and West Norfolk,E07000146,25/11/2021,Home Improvements Agency,Agency Staff,Seven Resourcing Ltd,21010569,"1,096.26"
Borough Council of Kings Lynn and West Norfolk,E07000146,25/11/2021,Rough Sleeper Fund,Covid 19,Bunkabin Ltd,21010588,"2,112.00"
Borough Council of Kings Lynn and West Norfolk,E07000146,25/11/2021,Grounds Northern Area,Repairs & Maintenance,Anglia Mowers,21010591,443.87
Borough Council of Kings Lynn and West Norfolk,E07000146,25/11/2021,Rough Sleeper Fund,Covid 19,Bunkabin Ltd,21010638,"1,848.00"
Borough Council of Kings Lynn and West Norfolk,E07000146,25/11/2021,EZ Dev of Spec Units,Works,R G Carter Cambridge Ltd,21010509,"40,712.62"
Borough Council of Kings Lynn and West Norfolk,E07000146,25/11/2021,Parks & Open Spaces,Tree Surgery,Barcham Trees Plc,21010511,"1,072.00"
Borough Council of Kings Lynn and West Norfolk,E07000146,25/11/2021,Welfare Reform Funding,Professional Fees,Civica UK Ltd,21010516,"6,000.00"
Borough Council of Kings Lynn and West Norfolk,E07000146,25/11/2021,NORA Remediation,Works,UK Power Networks (Operations ) Ltd,22007004,719.12
Borough Council of Kings Lynn and West Norfolk,E07000146,29/11/2021,CCTV,Repairs & Maintenance,Focus Security (East Anglia) Ltd,21011035,892.00
Borough Council of Kings Lynn and West Norfolk,E07000146,29/11/2021,NNDC Carpark Operation,Security Services Charge,LOOMIS UK Ltd,21011017,254.00
Borough Council of Kings Lynn and West Norfolk,E07000146,29/11/2021,Leisure Management Costs,Security Services Charge,LOOMIS UK Ltd,21011017,492.86
Borough Council of Kings Lynn and West Norfolk,E07000146,29/11/2021,Parking Operations - Brgh,Security Services Charge,LOOMIS UK Ltd,21011017,500.13
Borough Council of Kings Lynn and West Norfolk,E07000146,29/11/2021,Major Planning Appeals,Consultants Fees,North Norfolk District Council,21011018,"2,500.00"
Borough Council of Kings Lynn and West Norfolk,E07000146,29/11/2021,NORA Phase 2,Professional Fees,NPS Property Consultants Ltd,21011020,"6,048.92"
Borough Council of Kings Lynn and West Norfolk,E07000146,29/11/2021,NORA Phase 2,Professional Fees,NPS Property Consultants Ltd,21011021,"6,271.42"
Borough Council of Kings Lynn and West Norfolk,E07000146,29/11/2021,NORA Phase 2,Professional Fees,NPS Property Consultants Ltd,21011022,"7,308.37"
Borough Council of Kings Lynn and West Norfolk,E07000146,29/11/2021,Play Areas,Repairs & Maintenance,TMA Bark Supplies Ltd,21011023,787.60
Borough Council of Kings Lynn and West Norfolk,E07000146,29/11/2021,Museums,Contributions To Funds,Norfolk County Council,21011051,"30,500.00"
Borough Council of Kings Lynn and West Norfolk,E07000146,29/11/2021,Town Hall Kings Lynn,Professional Fees,Norfolk County Council,21011052,"5,000.00"
Borough Council of Kings Lynn and West Norfolk,E07000146,29/11/2021,KL Arts Centre,Professional Fees,Norfolk County Council,21011053,"15,000.00"
Borough Council of Kings Lynn and West Norfolk,E07000146,29/11/2021,Museums,Contributions To Funds,Norfolk County Council,21011054,"20,247.00"
Borough Council of Kings Lynn and West Norfolk,E07000146,29/11/2021,Guildhall & Art - Supp,Agency Staff,Norfolk County Council,21011055,"3,703.00"
Borough Council of Kings Lynn and West Norfolk,E07000146,29/11/2021,Heacham Toilets South Beach,Works,Templeman Associates Ltd,21011061,"3,000.00"
Borough Council of Kings Lynn and West Norfolk,E07000146,29/11/2021,Tech/Officers/Repairs,Vehicle - repairs & Maint,Trakm8 Limited,22006898,9.99
Borough Council of Kings Lynn and West Norfolk,E07000146,29/11/2021,Tech/Officers/Repairs,Vehicle - repairs & Maint,Trakm8 Limited,22006898,9.99
Borough Council of Kings Lynn and West Norfolk,E07000146,29/11/2021,Tech/Officers/Repairs,Vehicle - repairs & Maint,Trakm8 Limited,22006898,9.99
Borough Council of Kings Lynn and West Norfolk,E07000146,29/11/2021,Tech/Officers/Repairs,Vehicle - repairs & Maint,Trakm8 Limited,22006898,51.00
Borough Council of Kings Lynn and West Norfolk,E07000146,29/11/2021,Careline,Vehicle - repairs & Maint,Trakm8 Limited,22006898,51.00
Borough Council of Kings Lynn and West Norfolk,E07000146,29/11/2021,Careline,Vehicle - repairs & Maint,Trakm8 Limited,22006898,51.00
Borough Council of Kings Lynn and West Norfolk,E07000146,29/11/2021,Neighbourhood Teams,Vehicle - repairs & Maint,Trakm8 Limited,22006898,51.00
Borough Council of Kings Lynn and West Norfolk,E07000146,29/11/2021,Public Cleansing,Vehicle - repairs & Maint,Trakm8 Limited,22006898,51.00
Borough Council of Kings Lynn and West Norfolk,E07000146,29/11/2021,Domestic Refuse,Vehicle - repairs & Maint,Trakm8 Limited,22006898,51.00
Borough Council of Kings Lynn and West Norfolk,E07000146,29/11/2021,Neighbourhood Teams,Vehicle - repairs & Maint,Trakm8 Limited,22006898,51.00
Borough Council of Kings Lynn and West Norfolk,E07000146,29/11/2021,GM Central Area,Vehicle - repairs & Maint,Trakm8 Limited,22006898,51.00
Borough Council of Kings Lynn and West Norfolk,E07000146,29/11/2021,Public Cleansing,Vehicle - repairs & Maint,Trakm8 Limited,22006898,51.00
Borough Council of Kings Lynn and West Norfolk,E07000146,29/11/2021,Vehicle Recharge on account,Fuel,Worldline IT Services UK Re Fuelgenie,21010997,"15,249.15"
Borough Council of Kings Lynn and West Norfolk,E07000146,29/11/2021,Vehicle Recharge on account,Fuel,Worldline IT Services UK Re Fuelgenie,21010997,0.40
Borough Council of Kings Lynn and West Norfolk,E07000146,29/11/2021,Emergency Repair Grant,Works,Chas D Allflatt Ltd,21011003,500.00
Borough Council of Kings Lynn and West Norfolk,E07000146,29/11/2021,CCTV,Repairs & Maintenance,E Akers,21011007,425.00
Borough Council of Kings Lynn and West Norfolk,E07000146,29/11/2021,Chapel Street,Professional Fees,Feilden & Mawson LLP1,21011014,"5,000.00"
Borough Council of Kings Lynn and West Norfolk,E07000146,29/11/2021,Miscellaneous (SMP Bench),Professional Fees,Toby Winteringham Ltd,21010996,"5,575.00"
Borough Council of Kings Lynn and West Norfolk,E07000146,29/11/2021,Hunstanton Southend Road,Works,Vantage Building Control Ltd,21010537,"6,025.00"
Borough Council of Kings Lynn and West Norfolk,E07000146,29/11/2021,KL Innovation Centre,Repairs & Maintenance,NVCS Ltd,21010548,780.00
Borough Council of Kings Lynn and West Norfolk,E07000146,29/11/2021,Research,Volume & Value,Destination Research Ltd,21010587,900.00
Borough Council of Kings Lynn and West Norfolk,E07000146,29/11/2021,Hunstanton Marketing,Marketing / Tourism,Leicestershire County Council,21010621,"1,186.00"
Borough Council of Kings Lynn and West Norfolk,E07000146,29/11/2021,Sports Grounds North,Materials,Origin Amenity Solutions Ltd,21010894,981.98
Borough Council of Kings Lynn and West Norfolk,E07000146,29/11/2021,Sports Grounds Central,Materials,Origin Amenity Solutions Ltd,21010894,981.98
Borough Council of Kings Lynn and West Norfolk,E07000146,29/11/2021,Sports Grounds South,Materials,Origin Amenity Solutions Ltd,21010894,981.98
Borough Council of Kings Lynn and West Norfolk,E07000146,29/11/2021,Sports Grounds North,Materials,Origin Amenity Solutions Ltd,21010894,560.00
Borough Council of Kings Lynn and West Norfolk,E07000146,29/11/2021,Sports Grounds Central,Materials,Origin Amenity Solutions Ltd,21010894,560.00
Borough Council of Kings Lynn and West Norfolk,E07000146,29/11/2021,Sports Grounds South,Materials,Origin Amenity Solutions Ltd,21010894,560.01
Borough Council of Kings Lynn and West Norfolk,E07000146,29/11/2021,Kings Court Kings Lynn,Repairs & Maintenance,David Priest Fifp & Carpentry Solutions,21010961,743.12
Borough Council of Kings Lynn and West Norfolk,E07000146,29/11/2021,Hunstanton TIC,Repairs & Maintenance,East Coast Signs Ltd,21010968,"1,095.00"
Borough Council of Kings Lynn and West Norfolk,E07000146,30/11/2021,Balance Sheet,VAT Input - VAT Only Purchases,Norfolk County Council,22007059,"1,494.67"
Borough Council of Kings Lynn and West Norfolk,E07000146,02/12/2021,Welfare Reform Funding,Professional Fees,Institute Revenues Rating & Valuation,21011184,"1,200.00"
Borough Council of Kings Lynn and West Norfolk,E07000146,02/12/2021,Financial Services,Agency Staff,Hays Specialist Recruitment,21011042,"2,950.00"
Borough Council of Kings Lynn and West Norfolk,E07000146,02/12/2021,Kings Court Service Charges,Repairs & Maintenance,M English Security Limited,21010622,567.94
Borough Council of Kings Lynn and West Norfolk,E07000146,02/12/2021,Public Cleansing,Cleaning Material & Equip,V & J Knitwear Ltd,21011070,461.77
Borough Council of Kings Lynn and West Norfolk,E07000146,02/12/2021,Play Areas,Repairs & Maintenance,Fenland Leisure Products Ltd,21011008,"1,875.72"
Borough Council of Kings Lynn and West Norfolk,E07000146,02/12/2021,Natl Assist Act Burials,Burial Fees-Nat.Ass.Act,Thornalley Funeral Services Ltd,21011120,"1,252.00"
Borough Council of Kings Lynn and West Norfolk,E07000146,02/12/2021,VJ Day 2020,Miscellaneous,Focus Security (East Anglia) Ltd,21011189,"1,023.00"
Borough Council of Kings Lynn and West Norfolk,E07000146,02/12/2021,Financial Services,Agency Staff,Hays Specialist Recruitment,21011129,"1,622.50"
Borough Council of Kings Lynn and West Norfolk,E07000146,02/12/2021,Financial Services,Agency Staff,Hays Specialist Recruitment,21011130,"2,065.00"
Borough Council of Kings Lynn and West Norfolk,E07000146,02/12/2021,Financial Services,Agency Staff,Hays Specialist Recruitment,21011131,"1,622.50"
Borough Council of Kings Lynn and West Norfolk,E07000146,02/12/2021,General Property,Repairs & Maintenance,Calvert Brain & Fraulo Ltd,21011094,750.00
Borough Council of Kings Lynn and West Norfolk,E07000146,02/12/2021,Kings Lynn Christmas Lights,Miscellaneous,E Akers,21011158,550.00
Borough Council of Kings Lynn and West Norfolk,E07000146,02/12/2021,Public Cleansing,Vehicle - repairs & Maint,Ford & Slater DAF Kings Lynn,21011085,"1,479.75"
Borough Council of Kings Lynn and West Norfolk,E07000146,02/12/2021,Public Cleansing,Vehicle - repairs & Maint,Ford & Slater DAF Kings Lynn,21011085,91.00
Borough Council of Kings Lynn and West Norfolk,E07000146,02/12/2021,Cashless Pk YT(GY off St),Agency,Great Yarmouth Borough Council,22007035,"60,190.80"
Borough Council of Kings Lynn and West Norfolk,E07000146,02/12/2021,Head of Legal Services,External Legal fees,North Norfolk District Council,22007030,300.00
Borough Council of Kings Lynn and West Norfolk,E07000146,02/12/2021,Head of Legal Services,External Legal fees,North Norfolk District Council,22007030,153.00
Borough Council of Kings Lynn and West Norfolk,E07000146,02/12/2021,Head of Legal Services,External Legal fees,North Norfolk District Council,22007026,300.00
Borough Council of Kings Lynn and West Norfolk,E07000146,02/12/2021,Head of Legal Services,External Legal fees,North Norfolk District Council,22007026,153.00
Borough Council of Kings Lynn and West Norfolk,E07000146,02/12/2021,Head of Legal Services,External Legal fees,North Norfolk District Council,22007027,300.00
Borough Council of Kings Lynn and West Norfolk,E07000146,02/12/2021,Head of Legal Services,External Legal fees,North Norfolk District Council,22007027,153.00
Borough Council of Kings Lynn and West Norfolk,E07000146,02/12/2021,Head of Legal Services,External Legal fees,North Norfolk District Council,22007028,300.00
Borough Council of Kings Lynn and West Norfolk,E07000146,02/12/2021,Head of Legal Services,External Legal fees,North Norfolk District Council,22007028,153.00
Borough Council of Kings Lynn and West Norfolk,E07000146,02/12/2021,Head of Legal Services,External Legal fees,North Norfolk District Council,22007021,300.00
Borough Council of Kings Lynn and West Norfolk,E07000146,02/12/2021,Head of Legal Services,External Legal fees,North Norfolk District Council,22007021,153.00
Borough Council of Kings Lynn and West Norfolk,E07000146,02/12/2021,Head of Legal Services,External Legal fees,North Norfolk District Council,22007022,300.00
Borough Council of Kings Lynn and West Norfolk,E07000146,02/12/2021,Head of Legal Services,External Legal fees,North Norfolk District Council,22007022,153.00
Borough Council of Kings Lynn and West Norfolk,E07000146,02/12/2021,Head of Legal Services,External Legal fees,North Norfolk District Council,22007023,300.00
Borough Council of Kings Lynn and West Norfolk,E07000146,02/12/2021,Head of Legal Services,External Legal fees,North Norfolk District Council,22007023,153.00
Borough Council of Kings Lynn and West Norfolk,E07000146,02/12/2021,Head of Legal Services,External Legal fees,North Norfolk District Council,22007024,300.00
Borough Council of Kings Lynn and West Norfolk,E07000146,02/12/2021,Head of Legal Services,External Legal fees,North Norfolk District Council,22007024,153.00
Borough Council of Kings Lynn and West Norfolk,E07000146,02/12/2021,Public Cleansing,Initiatives,Spaldings Ltd,21010900,660.00
Borough Council of Kings Lynn and West Norfolk,E07000146,02/12/2021,Grounds Northern Area,Vehicle - repairs & Maint,Thurlow Nunn Standen Ltd,21010686,950.55
Borough Council of Kings Lynn and West Norfolk,E07000146,02/12/2021,General Property,Insurance Excess,Zurich Insurance Plc,22007043,245.00
Borough Council of Kings Lynn and West Norfolk,E07000146,02/12/2021,Parks & Open Spaces,Insurance Excess,Zurich Insurance Plc,22007043,500.00
Borough Council of Kings Lynn and West Norfolk,E07000146,02/12/2021,Parking Operations - Brgh,Insurance Excess,Zurich Insurance Plc,22007043,500.00
Borough Council of Kings Lynn and West Norfolk,E07000146,02/12/2021,COMF Phase 3,Covid 19,Your Local Paper Ltd,21011164,"1,400.00"
Borough Council of Kings Lynn and West Norfolk,E07000146,02/12/2021,Valentine Road Hunstanton,Repairs & Maintenance,AMR Mechanical Services Ltd,21011152,469.26
Borough Council of Kings Lynn and West Norfolk,E07000146,02/12/2021,Kings Court Service Charges,Repairs & Maintenance,AMR Mechanical Services Ltd,21011153,"1,143.80"
Borough Council of Kings Lynn and West Norfolk,E07000146,02/12/2021,Habitat Regulations,Small Projects,RSPB,22007039,777.07
Borough Council of Kings Lynn and West Norfolk,E07000146,02/12/2021,Play Areas,Tools And Equipment,Sutcliffe Play Ltd,21010630,574.76
Borough Council of Kings Lynn and West Norfolk,E07000146,02/12/2021,Play Areas,Tools And Equipment,Sutcliffe Play Ltd,21010630,57.48
Borough Council of Kings Lynn and West Norfolk,E07000146,02/12/2021,Food Waste,Bins,Straight Manufacturing Ltd,21010993,"5,223.12"
Borough Council of Kings Lynn and West Norfolk,E07000146,02/12/2021,Training Holding Account,Training,Praxis42 Limited,21011144,"5,587.90"
Borough Council of Kings Lynn and West Norfolk,E07000146,02/12/2021,Home Improvements Agency,Agency Staff,Seven Resourcing Ltd,21010768,"1,634.28"
Borough Council of Kings Lynn and West Norfolk,E07000146,02/12/2021,Home Improvements Agency,Agency Staff,Seven Resourcing Ltd,21010769,"1,128.00"
Borough Council of Kings Lynn and West Norfolk,E07000146,02/12/2021,NEWS Depot,Materials,D & H Direct Ltd,21011132,"1,450.00"
Borough Council of Kings Lynn and West Norfolk,E07000146,02/12/2021,The Walks,Special Events,Evolve Guards Ltd,21010670,"1,630.50"
Borough Council of Kings Lynn and West Norfolk,E07000146,02/12/2021,Grand East Anglia Run,Consumable Items,Run For All Limited,21011082,"4,000.00"
Borough Council of Kings Lynn and West Norfolk,E07000146,02/12/2021,Planning Policy - Dept,Recruitment,TMP (UK) Ltd,22006949,"1,548.00"
Borough Council of Kings Lynn and West Norfolk,E07000146,02/12/2021,Personnel Services,Recruitment,TMP (UK) Ltd,22006950,927.00
Borough Council of Kings Lynn and West Norfolk,E07000146,02/12/2021,Rough Sleeper Fund,Covid 19,Excaliber Security Services Ltd,21011087,"5,107.20"
Borough Council of Kings Lynn and West Norfolk,E07000146,02/12/2021,Climate Change,Contractor Payments,University of East Anglia,21010730,"5,119.00"
Borough Council of Kings Lynn and West Norfolk,E07000146,02/12/2021,West Winch Growth Area,Professional Fees,Clyde & Co LLP,21011193,"4,034.40"
Borough Council of Kings Lynn and West Norfolk,E07000146,02/12/2021,ICT,Computer Software Maint,cloudDNA Ltd,21010615,"1,659.30"
Borough Council of Kings Lynn and West Norfolk,E07000146,02/12/2021,Head of Legal Services,External Legal fees,Greenhalgh Kerr,22007029,745.00
Borough Council of Kings Lynn and West Norfolk,E07000146,02/12/2021,Cold Weather Funding,Protect Plus Costs,Sanctuary Affordable Housing Ltd,21011139,"12,500.00"
Borough Council of Kings Lynn and West Norfolk,E07000146,02/12/2021,Housing Options Programme,Homeless Prevention Fund,Sanctuary Affordable Housing Ltd,21011140,"3,000.00"
Borough Council of Kings Lynn and West Norfolk,E07000146,02/12/2021,Pontoons at South Quay,Repairs & Maintenance,Drake Towage Ltd,21011110,450.00
Borough Council of Kings Lynn and West Norfolk,E07000146,02/12/2021,Town Centre Manager,Tools And Equipment,Image Technique Ltd,21010980,"5,256.00"
Borough Council of Kings Lynn and West Norfolk,E07000146,02/12/2021,Environmental Protection,Agency Staff,Vivid Resourcing,21010600,"4,678.00"
Borough Council of Kings Lynn and West Norfolk,E07000146,02/12/2021,Strategic Housing,Professional Fees,Nesta,21010964,"20,000.00"
Borough Council of Kings Lynn and West Norfolk,E07000146,02/12/2021,Planning Control,Professional Fees,Alder King LLP,21011162,950.00
Borough Council of Kings Lynn and West Norfolk,E07000146,02/12/2021,Training Holding Account,Training,CATG Ltd,21011134,"1,018.24"
Borough Council of Kings Lynn and West Norfolk,E07000146,02/12/2021,Housing Options Programme,Homeless Prevention Fund,Morris Armitage DMKT,22007034,500.00
Borough Council of Kings Lynn and West Norfolk,E07000146,02/12/2021,Habitat Regulations,Small Projects,Holkham Nature Reserve Ltd,22007042,"4,333.19"
Borough Council of Kings Lynn and West Norfolk,E07000146,02/12/2021,Housing Options Programme,Homeless Prevention Fund,Morris Armitage DMKT,22007032,500.00
Borough Council of Kings Lynn and West Norfolk,E07000146,02/12/2021,Reopening High Streets Safely Fund,Professional Fees,Edale Enterprises,22007041,587.50
Borough Council of Kings Lynn and West Norfolk,E07000146,06/12/2021,DWP at Kings Court,Contract Security,MPD FM Ltd,21010883,"6,395.33"
Borough Council of Kings Lynn and West Norfolk,E07000146,06/12/2021,DWP at Kings Court,Contract Security,MPD FM Ltd,21010815,"2,270.52"
Borough Council of Kings Lynn and West Norfolk,E07000146,06/12/2021,Corporate Health & Safety,Staff Health & Safety,Skyguard Ltd T/A Peoplesafe,21010683,"1,336.50"
Borough Council of Kings Lynn and West Norfolk,E07000146,06/12/2021,VJ Day 2020,Tools And Equipment,E Akers,21011157,600.00
Borough Council of Kings Lynn and West Norfolk,E07000146,06/12/2021,VJ Day 2020,Tools And Equipment,E Akers,21011157,488.80
Borough Council of Kings Lynn and West Norfolk,E07000146,06/12/2021,Network Hardware holding,Repairs & Maintenance,Quality Essential Distribution Ltd,21010682,931.20
Borough Council of Kings Lynn and West Norfolk,E07000146,06/12/2021,The Walks,Special Events,Brandon Hire Station Ltd,21010967,740.00
Borough Council of Kings Lynn and West Norfolk,E07000146,06/12/2021,Printing&Copying-Floor Copiers,Click Charges,Capita Business Services Ltd,21010654,"1,686.52"
Borough Council of Kings Lynn and West Norfolk,E07000146,06/12/2021,Flexi hmless Suppt Grant,Homeless Prevention Fund,Sanctuary Affordable Housing Ltd,21011202,"5,000.00"
Borough Council of Kings Lynn and West Norfolk,E07000146,06/12/2021,Cold Weather Funding,Protect Plus Costs,Sanctuary Affordable Housing Ltd,21011203,"12,500.00"
Borough Council of Kings Lynn and West Norfolk,E07000146,06/12/2021,Mods and Rockers,Miscellaneous,Dave Jackson,22007045,750.00
Borough Council of Kings Lynn and West Norfolk,E07000146,06/12/2021,VJ Day 2020,Miscellaneous,Dave Jackson,22007045,400.00
Borough Council of Kings Lynn and West Norfolk,E07000146,06/12/2021,Pontoons at South Quay,KL Conserv Board,Kings Lynn Conservancy Board,21011201,"17,500.00"
Borough Council of Kings Lynn and West Norfolk,E07000146,06/12/2021,Register of Electors,Postages,Royal Mail Group Ltd,22007054,723.58
Borough Council of Kings Lynn and West Norfolk,E07000146,06/12/2021,Careline,Tools And Equipment,Tunstall Healthcare (UK) Ltd,21011166,"7,494.00"
Borough Council of Kings Lynn and West Norfolk,E07000146,06/12/2021,The Walks,Special Events,Viking Stage Lighting,21010695,"1,300.00"
Borough Council of Kings Lynn and West Norfolk,E07000146,06/12/2021,Assistant Directors,Staff Professional Fees,RICS,22007048,539.00
Borough Council of Kings Lynn and West Norfolk,E07000146,06/12/2021,Mintlyn Crematorium,Repairs & Maintenance,Facultatieve Technologies Ltd,21010659,"1,541.89"
Borough Council of Kings Lynn and West Norfolk,E07000146,06/12/2021,Rough Sleeper Fund,Covid 19,AMR Electrical Services Ltd,21011108,742.66
Borough Council of Kings Lynn and West Norfolk,E07000146,06/12/2021,Town Hall Kings Lynn,Energy Certificate Stat,Navitas Energy Assessment Solutions Ltd,21011083,117.14
Borough Council of Kings Lynn and West Norfolk,E07000146,06/12/2021,Corn Exchange,Energy Certificate Stat,Navitas Energy Assessment Solutions Ltd,21011083,117.14
Borough Council of Kings Lynn and West Norfolk,E07000146,06/12/2021,Downham MSports Centre,Energy Certificate Stat,Navitas Energy Assessment Solutions Ltd,21011083,117.14
Borough Council of Kings Lynn and West Norfolk,E07000146,06/12/2021,Kings Court Service Charges,Energy Certificate Stat,Navitas Energy Assessment Solutions Ltd,21011083,117.14
Borough Council of Kings Lynn and West Norfolk,E07000146,06/12/2021,Oasis General Account,Energy Certificate Stat,Navitas Energy Assessment Solutions Ltd,21011083,117.14
Borough Council of Kings Lynn and West Norfolk,E07000146,06/12/2021,Lynnsport General Account,Energy Certificate Stat,Navitas Energy Assessment Solutions Ltd,21011083,117.15
Borough Council of Kings Lynn and West Norfolk,E07000146,06/12/2021,St James General Account,Energy Certificate Stat,Navitas Energy Assessment Solutions Ltd,21011083,117.15
Borough Council of Kings Lynn and West Norfolk,E07000146,06/12/2021,Subscriptions,Membership & Subscription,East of England LGA,21011199,"9,119.06"
Borough Council of Kings Lynn and West Norfolk,E07000146,06/12/2021,Financial Services,Agency Staff,Hays Specialist Recruitment,21011223,"2,950.00"
Borough Council of Kings Lynn and West Norfolk,E07000146,06/12/2021,Mintlyn Crematorium,Miscellaneous,Your Local Paper Ltd,21011261,750.00
Borough Council of Kings Lynn and West Norfolk,E07000146,06/12/2021,The Walks,Special Events,Stuart Power Ltd,21010772,"1,869.85"
Borough Council of Kings Lynn and West Norfolk,E07000146,06/12/2021,Corporate Communitcations,Professional Fees,Engaging People Company,21011200,"1,650.00"
Borough Council of Kings Lynn and West Norfolk,E07000146,09/12/2021,Parks & Open Spaces,Tree Surgery,Golden Tree Surgeons Ltd,21011336,"1,130.00"
Borough Council of Kings Lynn and West Norfolk,E07000146,09/12/2021,Corporate Project Manager,Applications Licence,Bytes Software Services Ltd,21011073,"1,116.72"
Borough Council of Kings Lynn and West Norfolk,E07000146,09/12/2021,Enabler Role,Computer Equipment,Bytes Software Services Ltd,21011073,558.36
Borough Council of Kings Lynn and West Norfolk,E07000146,09/12/2021,Housing standards,Computer Equipment,Bytes Software Services Ltd,21011073,186.12
Borough Council of Kings Lynn and West Norfolk,E07000146,09/12/2021,Rough Sleeper Fund,Covid 19,BACO-Compak (Norfolk) Ltd,21011352,580.00
Borough Council of Kings Lynn and West Norfolk,E07000146,09/12/2021,Communications,WNTF AGM/PR costs,College of West Anglia,21011215,250.00
Borough Council of Kings Lynn and West Norfolk,E07000146,09/12/2021,Communications,WNTF AGM/PR costs,College of West Anglia,21011215,300.00
Borough Council of Kings Lynn and West Norfolk,E07000146,09/12/2021,Standard Desktop Refresh,Equipment/Materials,Dell Corporation Ltd,21011218,"1,061.52"
Borough Council of Kings Lynn and West Norfolk,E07000146,09/12/2021,Waste Procurement Costs,Project Costs,Breckland Council,21011276,"4,783.51"
Borough Council of Kings Lynn and West Norfolk,E07000146,09/12/2021,Housing standards,Energy Efficiency Expense,V & J Knitwear Ltd,21011288,"1,158.10"
Borough Council of Kings Lynn and West Norfolk,E07000146,09/12/2021,Postage Services K Court,Postages,Pitney Bowes Purchase Power,22007072,"5,000.46"
Borough Council of Kings Lynn and West Norfolk,E07000146,09/12/2021,Postage Services K Court,Postages,Pitney Bowes Purchase Power,22007072,11.00
Borough Council of Kings Lynn and West Norfolk,E07000146,09/12/2021,Assistant Directors,Staff Professional Fees,RICS,22007073,539.00
Borough Council of Kings Lynn and West Norfolk,E07000146,09/12/2021,Parish/B Coun. Elections,Stationery & Office,Civica Election Services Ltd,22006971,"1,976.09"
Borough Council of Kings Lynn and West Norfolk,E07000146,09/12/2021,Register of Electors,Stationery & Office,Civica Election Services Ltd,22006972,"4,809.28"
Borough Council of Kings Lynn and West Norfolk,E07000146,09/12/2021,LILY 5,Lily Advisor Payments,West Norfolk Befriending,21011283,"1,000.00"
Borough Council of Kings Lynn and West Norfolk,E07000146,09/12/2021,Welfare Reform Funding,Professional Fees,Civica UK Ltd,21010664,525.00
Borough Council of Kings Lynn and West Norfolk,E07000146,09/12/2021,Cost of Collection - CTax,Stationery & Office,Hound Envelopes Ltd,21010797,932.50
Borough Council of Kings Lynn and West Norfolk,E07000146,09/12/2021,Factory 1 Refurb,Works,WEAAR Ltd,21011212,"1,350.00"
Borough Council of Kings Lynn and West Norfolk,E07000146,09/12/2021,Heacham Workshops,Repairs & Maintenance,1-2 Call Drainage & Groundwork Ltd,21011323,610.00
Borough Council of Kings Lynn and West Norfolk,E07000146,09/12/2021,Training Holding Account,Training,Institute of Licensing (Events) Ltd,21011185,760.75
Borough Council of Kings Lynn and West Norfolk,E07000146,09/12/2021,CCTV,Repairs & Maintenance,Amey LG Ltd,21010736,"1,633.78"
Borough Council of Kings Lynn and West Norfolk,E07000146,09/12/2021,NEWS Depot,Contract Cleaning,Marathon Services Ltd,21011309,"1,525.00"
Borough Council of Kings Lynn and West Norfolk,E07000146,09/12/2021,Head of Legal Services,External Legal fees,North Norfolk District Council,22007069,300.00
Borough Council of Kings Lynn and West Norfolk,E07000146,09/12/2021,Head of Legal Services,External Legal fees,North Norfolk District Council,22007069,153.00
Borough Council of Kings Lynn and West Norfolk,E07000146,09/12/2021,Head of Legal Services,External Legal fees,North Norfolk District Council,22007070,300.00
Borough Council of Kings Lynn and West Norfolk,E07000146,09/12/2021,Head of Legal Services,External Legal fees,North Norfolk District Council,22007070,153.00
Borough Council of Kings Lynn and West Norfolk,E07000146,09/12/2021,Head of Legal Services,External Legal fees,North Norfolk District Council,22007071,300.00
Borough Council of Kings Lynn and West Norfolk,E07000146,09/12/2021,Head of Legal Services,External Legal fees,North Norfolk District Council,22007071,153.00
Borough Council of Kings Lynn and West Norfolk,E07000146,09/12/2021,Financial Services,Postages,Royal Mail Group Ltd,22007074,70.40
Borough Council of Kings Lynn and West Norfolk,E07000146,09/12/2021,Benefit Administration,Postages,Royal Mail Group Ltd,22007074,286.40
Borough Council of Kings Lynn and West Norfolk,E07000146,09/12/2021,Cost of Collection - CTax,Postages,Royal Mail Group Ltd,22007074,519.16
Borough Council of Kings Lynn and West Norfolk,E07000146,09/12/2021,Kings Lynn Bid,Postages,Royal Mail Group Ltd,22007074,168.22
Borough Council of Kings Lynn and West Norfolk,E07000146,09/12/2021,Register of Electors,Postages,Royal Mail Group Ltd,22007074,22.88
Borough Council of Kings Lynn and West Norfolk,E07000146,09/12/2021,Pub & Tourism int charges,Postages,Royal Mail Group Ltd,22007074,1.32
Borough Council of Kings Lynn and West Norfolk,E07000146,09/12/2021,Benefit Administration,Postages,Royal Mail Group Ltd,22007074,19.80
Borough Council of Kings Lynn and West Norfolk,E07000146,09/12/2021,Cost of Collection - CTax,Postages,Royal Mail Group Ltd,22007074,10.32
Borough Council of Kings Lynn and West Norfolk,E07000146,09/12/2021,Benefit Administration,Postages,Royal Mail Group Ltd,22007074,1.62
Borough Council of Kings Lynn and West Norfolk,E07000146,09/12/2021,Financial Services,Postages,Royal Mail Group Ltd,22007075,424.01
Borough Council of Kings Lynn and West Norfolk,E07000146,09/12/2021,Benefit Administration,Postages,Royal Mail Group Ltd,22007075,488.69
Borough Council of Kings Lynn and West Norfolk,E07000146,09/12/2021,Cost of Collection - CTax,Postages,Royal Mail Group Ltd,22007075,558.22
Borough Council of Kings Lynn and West Norfolk,E07000146,09/12/2021,Kings Lynn Bid,Postages,Royal Mail Group Ltd,22007075,11.44
Borough Council of Kings Lynn and West Norfolk,E07000146,09/12/2021,Benefit Administration,Postages,Royal Mail Group Ltd,22007075,25.58
Borough Council of Kings Lynn and West Norfolk,E07000146,09/12/2021,Cost of Collection - CTax,Postages,Royal Mail Group Ltd,22007075,18.07
Borough Council of Kings Lynn and West Norfolk,E07000146,09/12/2021,Cost of Collection - CTax,Postages,Royal Mail Group Ltd,22007075,7.00
Borough Council of Kings Lynn and West Norfolk,E07000146,09/12/2021,Benefit Administration,Postages,Royal Mail Group Ltd,22007075,8.25
Borough Council of Kings Lynn and West Norfolk,E07000146,09/12/2021,Rememberance Day,Miscellaneous,St John Ambulance,21011296,458.00
Borough Council of Kings Lynn and West Norfolk,E07000146,09/12/2021,Kings Lynn Christmas Lights,Professional Fees,Pearce Sound & Lighting Ltd,21011300,"3,114.00"
Borough Council of Kings Lynn and West Norfolk,E07000146,09/12/2021,Parking Operations - Brgh,Tools And Equipment,Mobius Networks Ltd,21011305,653.30
Borough Council of Kings Lynn and West Norfolk,E07000146,09/12/2021,Parking Operations - Brgh,Repairs & Maintenance,LWG Services Limited,21011311,"1,086.00"
Borough Council of Kings Lynn and West Norfolk,E07000146,09/12/2021,ICT,Recoverable Fees,TelefonicaO2UK Ltd,21011303,651.11
Borough Council of Kings Lynn and West Norfolk,E07000146,09/12/2021,The Walks,Special Events,Actavo (UK) Ltd,21010824,"3,861.90"
Borough Council of Kings Lynn and West Norfolk,E07000146,09/12/2021,Home Improvements Agency,Agency Staff,Seven Resourcing Ltd,21010941,"1,586.71"
Borough Council of Kings Lynn and West Norfolk,E07000146,09/12/2021,Home Improvements Agency,Agency Staff,Seven Resourcing Ltd,21010942,"1,147.32"
Borough Council of Kings Lynn and West Norfolk,E07000146,09/12/2021,LILY 5,Lily Advisor Payments,Family Action,21011339,958.33
Borough Council of Kings Lynn and West Norfolk,E07000146,09/12/2021,LILY 5,Lily Advisor Payments,West Norfolk Carers Association,21011282,"1,852.50"
Borough Council of Kings Lynn and West Norfolk,E07000146,09/12/2021,Kings Court Kings Lynn,Furniture,Office Wise Ltd,21011245,470.08
Borough Council of Kings Lynn and West Norfolk,E07000146,09/12/2021,LILY 5,Lily Advisor Payments,Norfolk and Waveney Mind,21011306,"1,852.50"
Borough Council of Kings Lynn and West Norfolk,E07000146,09/12/2021,Decarbonisation ReFit 2,Works,Ameresco Ltd,21010933,"289,528.20"
Borough Council of Kings Lynn and West Norfolk,E07000146,09/12/2021,Training Holding Account,Training,Alpha Parking Ltd,21010764,780.00
Borough Council of Kings Lynn and West Norfolk,E07000146,09/12/2021,Community Projects CRS,Service Level Agreements,Festival Too,21011340,"2,800.00"
Borough Council of Kings Lynn and West Norfolk,E07000146,09/12/2021,Planning Control,Membership & Subscription,Dotted Eyes Ltd T/A Miso,21010878,660.00
Borough Council of Kings Lynn and West Norfolk,E07000146,09/12/2021,Financial Services,Professional Fees,Bonham 1793 Limited,21011278,"1,000.00"
Borough Council of Kings Lynn and West Norfolk,E07000146,09/12/2021,Flexi hmless Suppt Grant,Homeless Prevention Fund,Benjamin Foundation,21010828,"5,000.00"
Borough Council of Kings Lynn and West Norfolk,E07000146,09/12/2021,Corporate Communitcations,Professional Fees,Engaging People Company,21011219,"1,650.00"
Borough Council of Kings Lynn and West Norfolk,E07000146,09/12/2021,Community Safety,Financial Assistance,OPCC Norfolk,21010893,"2,000.00"
Borough Council of Kings Lynn and West Norfolk,E07000146,13/12/2021,Public conveniences,Sewerage/Cesspool Empty,BACO-Compak (Norfolk) Ltd,21011398,"1,290.00"
Borough Council of Kings Lynn and West Norfolk,E07000146,13/12/2021,Food Hygiene General,Tools And Equipment,Dell Corporation Ltd,21011455,530.29
Borough Council of Kings Lynn and West Norfolk,E07000146,13/12/2021,Public Cleansing,Fuel,UK Fuels Ltd,22007099,563.27
Borough Council of Kings Lynn and West Norfolk,E07000146,13/12/2021,Grounds Southern Area,Fuel,UK Fuels Ltd,22007099,34.88
Borough Council of Kings Lynn and West Norfolk,E07000146,13/12/2021,Grounds Southern Area,Fuel,UK Fuels Ltd,22007099,141.32
Borough Council of Kings Lynn and West Norfolk,E07000146,13/12/2021,Public Cleansing,Fuel,UK Fuels Ltd,22007099,86.51
Borough Council of Kings Lynn and West Norfolk,E07000146,13/12/2021,NORA Phase 4,Contractor Works,Lovell Partnerships Ltd,21011414,"637,186.99"
Borough Council of Kings Lynn and West Norfolk,E07000146,13/12/2021,Nora 5,Contractor Works,Lovell Partnerships Ltd,21011415,"1,306.02"
Borough Council of Kings Lynn and West Norfolk,E07000146,13/12/2021,Hunstanton Bus Station & NCC Library,Contractor Works,Lovell Partnerships Ltd,21011416,"9,284.46"
Borough Council of Kings Lynn and West Norfolk,E07000146,13/12/2021,Parkway - Gaywood,Contractor Works,Lovell Partnerships Ltd,21011417,"33,753.36"
Borough Council of Kings Lynn and West Norfolk,E07000146,13/12/2021,Salters Road,Contractor Works,Lovell Partnerships Ltd,21011418,"351,516.91"
Borough Council of Kings Lynn and West Norfolk,E07000146,13/12/2021,Lynnsport 1,Contractor Works,Lovell Partnerships Ltd,21011419,"1,821.41"
Borough Council of Kings Lynn and West Norfolk,E07000146,13/12/2021,Town Hall Kings Lynn,Tools And Equipment,Core Technology Projects Ltd,21011338,541.00
Borough Council of Kings Lynn and West Norfolk,E07000146,13/12/2021,Balance Sheet,VAT Input - VAT Only Purchases,Newlyn PLC,22007090,"1,269.39"
Borough Council of Kings Lynn and West Norfolk,E07000146,13/12/2021,Balance Sheet,VAT Input - VAT Only Purchases,Newlyn PLC,22007091,"2,372.86"
Borough Council of Kings Lynn and West Norfolk,E07000146,13/12/2021,Arts Initatives,Project Costs,Collusion Cambridge Ltd,21011393,"8,000.00"
Borough Council of Kings Lynn and West Norfolk,E07000146,13/12/2021,Financial Services,Contracted Services,Embridge Consulting (UK) Ltd,21011447,480.02
Borough Council of Kings Lynn and West Norfolk,E07000146,13/12/2021,Financial Services,Contracted Services,Embridge Consulting (UK) Ltd,21011444,"9,600.00"
Borough Council of Kings Lynn and West Norfolk,E07000146,13/12/2021,Head of Legal Services,External Legal fees,Greenhalgh Kerr,22007081,525.00
Borough Council of Kings Lynn and West Norfolk,E07000146,13/12/2021,Town Fund - Public Realm,Professional Fees,Graeme Massie Architects Ltd,21011378,720.00
Borough Council of Kings Lynn and West Norfolk,E07000146,13/12/2021,Town Fund - Public Realm,Professional Fees,Graeme Massie Architects Ltd,21011379,"1,760.00"
Borough Council of Kings Lynn and West Norfolk,E07000146,13/12/2021,COMF Phase 3,Agency Staff,Danielle Barrett,21011364,"1,490.00"
Borough Council of Kings Lynn and West Norfolk,E07000146,13/12/2021,Heritage Action Zone,Professional Fees,Englemere Ltd,21011480,790.00
Borough Council of Kings Lynn and West Norfolk,E07000146,13/12/2021,Leisure Management Costs,Professional Fees,Ploszajski Lynch Consulting Ltd,21011493,"7,495.20"
Borough Council of Kings Lynn and West Norfolk,E07000146,13/12/2021,The Walks,Special Events,E Akers,21011409,725.00
Borough Council of Kings Lynn and West Norfolk,E07000146,13/12/2021,The Walks,Special Events,E Akers,21011410,440.80
Borough Council of Kings Lynn and West Norfolk,E07000146,13/12/2021,Grounds Northern Area,Vehicle - repairs & Maint,Ernest Doe & Sons Ltd,21011438,910.75
Borough Council of Kings Lynn and West Norfolk,E07000146,13/12/2021,The Walks,Special Events,E Akers,21011412,732.75
Borough Council of Kings Lynn and West Norfolk,E07000146,13/12/2021,CCTV,Repairs & Maintenance,E Akers,21011413,500.00
Borough Council of Kings Lynn and West Norfolk,E07000146,13/12/2021,Parking Operations - Brgh,Insurance Excess,Enterprise Rent-A-Car (UK) Ltd,22007080,250.00
Borough Council of Kings Lynn and West Norfolk,E07000146,13/12/2021,Balance Sheet,VAT Input - VAT Only Purchases,Enterprise Rent-A-Car (UK) Ltd,22007080,448.47
Borough Council of Kings Lynn and West Norfolk,E07000146,13/12/2021,Public Cleansing,Vehicle - repairs & Maint,Ford & Slater DAF Kings Lynn,21011473,"1,255.41"
Borough Council of Kings Lynn and West Norfolk,E07000146,13/12/2021,Public Cleansing,Vehicle - repairs & Maint,Ford & Slater DAF Kings Lynn,21011473,91.00
Borough Council of Kings Lynn and West Norfolk,E07000146,13/12/2021,Cashless Pk YT(GY off St),Agency,Great Yarmouth Borough Council,22007082,"16,220.30"
Borough Council of Kings Lynn and West Norfolk,E07000146,13/12/2021,North Lynn Industrial Estate,Repairs - Services Chg,Marathon Services Ltd,21011471,"1,298.57"
Borough Council of Kings Lynn and West Norfolk,E07000146,13/12/2021,Hunstanton Bus Station & NCC Library,External Fees/Consultancy,Norfolk County Council,22007095,"7,473.37"
Borough Council of Kings Lynn and West Norfolk,E07000146,13/12/2021,Cashless Pk JF(NN on St),Agency,North Norfolk District Council,22007087,"20,397.70"
Borough Council of Kings Lynn and West Norfolk,E07000146,13/12/2021,Heacham Beach,Repairs & Maintenance,Penty Contractors Ltd,21011423,500.00
Borough Council of Kings Lynn and West Norfolk,E07000146,13/12/2021,NNDC Carpark Operation,Vehicle - repairs & Maint,Mr Signs Ltd,21011472,983.00
Borough Council of Kings Lynn and West Norfolk,E07000146,13/12/2021,Parking Operations - Brgh,Repairs & Maintenance,Mr Signs Ltd,21011472,568.00
Borough Council of Kings Lynn and West Norfolk,E07000146,13/12/2021,Decrim - Operational,Vehicle - repairs & Maint,Mr Signs Ltd,21011472,"1,631.00"
Borough Council of Kings Lynn and West Norfolk,E07000146,13/12/2021,Supplier Holding Account,Vehicle - repairs & Maint,North Street Tyres,22007096,833.38
Borough Council of Kings Lynn and West Norfolk,E07000146,13/12/2021,Recycling Composting,Waste Processing Cost,Greenworld Sales Ltd t/a Greenworld,21011449,"22,363.52"
Borough Council of Kings Lynn and West Norfolk,E07000146,13/12/2021,Vehicle Recharge on account,Fuel,Worldline IT Services UK Re Fuelgenie,22007102,"13,077.92"
Borough Council of Kings Lynn and West Norfolk,E07000146,13/12/2021,CCTV,Repairs & Maintenance,Focus Security (East Anglia) Ltd,21011476,"1,161.20"
Borough Council of Kings Lynn and West Norfolk,E07000146,13/12/2021,Housing Options Programme,Homeless Prevention Fund,Birds Estate Agents,22007097,"1,700.00"
Borough Council of Kings Lynn and West Norfolk,E07000146,13/12/2021,Housing Options Programme,Homeless Prevention Fund,M Reed,22007083,910.00
Borough Council of Kings Lynn and West Norfolk,E07000146,14/12/2021,Corporate,Bank Charges,Allpay,22007132,"1,443.86"
Borough Council of Kings Lynn and West Norfolk,E07000146,14/12/2021,ICT,Computer Software Maint,Capita Business Services Ltd,22007138,844.62
Borough Council of Kings Lynn and West Norfolk,E07000146,14/12/2021,Utility Holding,Electricity Bulk Billing,EDF Energy Ltd,22007139,"65,941.47"
Borough Council of Kings Lynn and West Norfolk,E07000146,14/12/2021,Corporate,Fees,Information Commissioners Office,22007141,"2,895.00"
Borough Council of Kings Lynn and West Norfolk,E07000146,14/12/2021,ICT,MPhone Usage & Top-up,TelefonicaO2UK Ltd,22007142,"1,084.90"
Borough Council of Kings Lynn and West Norfolk,E07000146,14/12/2021,KL Innovation Centre,Telephones,Spitfire Network Services Ltd,22007143,912.45
Borough Council of Kings Lynn and West Norfolk,E07000146,14/12/2021,Utility Holding,Gas,Total Gas & Power Ltd,22007144,"19,720.40"
Borough Council of Kings Lynn and West Norfolk,E07000146,14/12/2021,Corporate,Bank Charges,Worldpay Ltd,22007145,"11,568.95"
Borough Council of Kings Lynn and West Norfolk,E07000146,14/12/2021,Corporate,Bank Charges,Worldpay Ltd,22007145,554.90
Borough Council of Kings Lynn and West Norfolk,E07000146,16/12/2021,COWA School of Nursing,Equipment/Materials,College of West Anglia,21011575,"14,921.18"
Borough Council of Kings Lynn and West Norfolk,E07000146,16/12/2021,Public Cleansing,Vehicle - repairs & Maint,Ford & Slater DAF Kings Lynn,21011580,"1,353.60"
Borough Council of Kings Lynn and West Norfolk,E07000146,16/12/2021,St Johns Business Park,Repairs - Services Chg,Marathon Services Ltd,21011586,443.42
Borough Council of Kings Lynn and West Norfolk,E07000146,16/12/2021,St Johns Business Park,Repairs - Services Chg,Marathon Services Ltd,21011586,460.00
Borough Council of Kings Lynn and West Norfolk,E07000146,16/12/2021,North Lynn Industrial Estate,Repairs - Services Chg,Marathon Services Ltd,21011454,634.53
Borough Council of Kings Lynn and West Norfolk,E07000146,16/12/2021,Parking Operations - Brgh,Rent,Norfolk County Council,22007112,875.00
Borough Council of Kings Lynn and West Norfolk,E07000146,16/12/2021,Head of Legal Services,External Legal fees,North Norfolk District Council,22007113,300.00
Borough Council of Kings Lynn and West Norfolk,E07000146,16/12/2021,Head of Legal Services,External Legal fees,North Norfolk District Council,22007113,153.00
Borough Council of Kings Lynn and West Norfolk,E07000146,16/12/2021,Head of Legal Services,External Legal fees,North Norfolk District Council,22007114,300.00
Borough Council of Kings Lynn and West Norfolk,E07000146,16/12/2021,Head of Legal Services,External Legal fees,North Norfolk District Council,22007114,153.00
Borough Council of Kings Lynn and West Norfolk,E07000146,16/12/2021,Head of Legal Services,External Legal fees,North Norfolk District Council,22007115,300.00
Borough Council of Kings Lynn and West Norfolk,E07000146,16/12/2021,Head of Legal Services,External Legal fees,North Norfolk District Council,22007115,153.00
Borough Council of Kings Lynn and West Norfolk,E07000146,16/12/2021,Head of Legal Services,External Legal fees,North Norfolk District Council,22007116,300.00
Borough Council of Kings Lynn and West Norfolk,E07000146,16/12/2021,Head of Legal Services,External Legal fees,North Norfolk District Council,22007116,153.00
Borough Council of Kings Lynn and West Norfolk,E07000146,16/12/2021,Parking Operations - Brgh,Repairs & Maintenance,Phs Group Plc,21011249,887.87
Borough Council of Kings Lynn and West Norfolk,E07000146,16/12/2021,Postage Services K Court,Postages,Royal Mail Group Ltd,22007120,935.43
Borough Council of Kings Lynn and West Norfolk,E07000146,16/12/2021,Postage Services K Court,Postages,Royal Mail Group Ltd,22007120,3.82
Borough Council of Kings Lynn and West Norfolk,E07000146,16/12/2021,Head of Legal Services,Publications & Newspapers,Thomson Reuters Professional UK Ltd,22007121,"2,496.00"
Borough Council of Kings Lynn and West Norfolk,E07000146,16/12/2021,Careline,Tools And Equipment,Tunstall Healthcare (UK) Ltd,21011290,612.00
Borough Council of Kings Lynn and West Norfolk,E07000146,16/12/2021,Supplier Holding Account,Vehicle - repairs & Maint,Paul Johnson Motor Services Ltd,22007118,162.20
Borough Council of Kings Lynn and West Norfolk,E07000146,16/12/2021,Supplier Holding Account,Vehicle - repairs & Maint,Paul Johnson Motor Services Ltd,22007118,"4,344.68"
Borough Council of Kings Lynn and West Norfolk,E07000146,16/12/2021,NORA Phase 4,Professional Fees,G C Baxter & Associates Ltd,21011482,640.00
Borough Council of Kings Lynn and West Norfolk,E07000146,16/12/2021,Salters Road,Professional Fees,G C Baxter & Associates Ltd,21011482,640.00
Borough Council of Kings Lynn and West Norfolk,E07000146,16/12/2021,Lynnsport 3,Professional Fees,G C Baxter & Associates Ltd,21011482,160.00
Borough Council of Kings Lynn and West Norfolk,E07000146,16/12/2021,Major Housing Management,Professional Fees,G C Baxter & Associates Ltd,21011485,640.00
Borough Council of Kings Lynn and West Norfolk,E07000146,16/12/2021,Printing & Graphics,Materials,Canon (UK) Limited,21011026,520.00
,,16/12/2021,Air Quality,Servicing,Turnkey Instruments Ltd,21010935,609.76
,,16/12/2021,Public Cleansing,Cleaning Material & Equip,V & J Knitwear Ltd,21011506,686.31
Borough Council of Kings Lynn and West Norfolk,E07000146,16/12/2021,Home Improvements Agency,Agency Staff,Seven Resourcing Ltd,21011121,"1,619.11"
Borough Council of Kings Lynn and West Norfolk,E07000146,16/12/2021,Home Improvements Agency,Agency Staff,Seven Resourcing Ltd,21011122,"1,100.86"
Borough Council of Kings Lynn and West Norfolk,E07000146,16/12/2021,Parks & Open Spaces,Tree Surgery,Golden Tree Surgeons Ltd,21011556,"3,250.00"
Borough Council of Kings Lynn and West Norfolk,E07000146,16/12/2021,Cashless Pk JG (Bk on St),Merchant Fees,Chipside Ltd,21011570,1.19
Borough Council of Kings Lynn and West Norfolk,E07000146,16/12/2021,Cashless Pk JE(NN on St),Merchant Fees,Chipside Ltd,21011570,18.59
Borough Council of Kings Lynn and West Norfolk,E07000146,16/12/2021,Cashless Park KR (KLWN on ST),Merchant Fees,Chipside Ltd,21011570,46.24
Borough Council of Kings Lynn and West Norfolk,E07000146,16/12/2021,Cashless Pk JI(GYon St),Merchant Fees,Chipside Ltd,21011570,61.77
Borough Council of Kings Lynn and West Norfolk,E07000146,16/12/2021,Cashless Pk YT(GY off St),Merchant Fees,Chipside Ltd,21011570,161.75
Borough Council of Kings Lynn and West Norfolk,E07000146,16/12/2021,Cashless Pk JF(NN on St),Merchant Fees,Chipside Ltd,21011570,203.53
Borough Council of Kings Lynn and West Norfolk,E07000146,16/12/2021,Cashless Park KZ (KLWN off ST),Merchant Fees,Chipside Ltd,21011570,"1,136.09"
Borough Council of Kings Lynn and West Norfolk,E07000146,16/12/2021,Kings Lynn Christmas Lights,Miscellaneous,Evolve Guards Ltd,21011190,750.00
Borough Council of Kings Lynn and West Norfolk,E07000146,16/12/2021,St Georges Guildhall Complex,Professional Fees,Engaging People Company,21011535,550.00
Borough Council of Kings Lynn and West Norfolk,E07000146,16/12/2021,Network Hardware holding,Repairs & Maintenance,Quality Essential Distribution Ltd,21010990,"10,930.35"
Borough Council of Kings Lynn and West Norfolk,E07000146,16/12/2021,Town Fund - Public Realm,Professional Fees,Waterland Associates Ltd,21011595,"1,000.00"
Borough Council of Kings Lynn and West Norfolk,E07000146,16/12/2021,Training Holding Account,Training,CATG Ltd,21011133,495.00
Borough Council of Kings Lynn and West Norfolk,E07000146,16/12/2021,Grounds Northern Area,Vehicle - repairs & Maint,G & J Peck Ltd,21011531,611.47
Borough Council of Kings Lynn and West Norfolk,E07000146,16/12/2021,Salaries Oncost Account,Miscellaneous,Nicola Bulbeck,22007110,"2,100.00"
Borough Council of Kings Lynn and West Norfolk,E07000146,16/12/2021,Street Sweeping,Animal Removal,Peaceful Pets Ltd,21011514,650.00
Borough Council of Kings Lynn and West Norfolk,E07000146,16/12/2021,Street Sweeping,Animal Removal,Peaceful Pets Ltd,21011515,425.00
Borough Council of Kings Lynn and West Norfolk,E07000146,16/12/2021,Trade Refuse,Added Years Pension,Norfolk Pension Fund,21011588,"-2,947.67"
Borough Council of Kings Lynn and West Norfolk,E07000146,16/12/2021,Domestic Refuse,Added Years Pension,Norfolk Pension Fund,21011588,589.96
Borough Council of Kings Lynn and West Norfolk,E07000146,16/12/2021,Corporate,Added Years Pension,Norfolk Pension Fund,21011588,"20,045.83"
Borough Council of Kings Lynn and West Norfolk,E07000146,16/12/2021,Kings Court Service Charges,Repairs & Maintenance,Wrights & Holbeach Asphalt Ltd,21011427,"3,100.00"
Borough Council of Kings Lynn and West Norfolk,E07000146,16/12/2021,Custom House & Tics,Rent,R Gawn 1990 Accumulation & Maint Sett't,22004582,"1,280.00"
Borough Council of Kings Lynn and West Norfolk,E07000146,16/12/2021,Apprenticeship Scheme,Apprentice Levy,Bedford Borough Council,21011566,"4,655.00"
Borough Council of Kings Lynn and West Norfolk,E07000146,16/12/2021,Recycling Composting,Waste Processing Cost,Greenworld Sales Ltd t/a Greenworld,21011529,"1,049.04"
Borough Council of Kings Lynn and West Norfolk,E07000146,16/12/2021,The Walks,Repairs & Maintenance,Cooks Blinds & Shutters Ltd,21010960,502.00
Borough Council of Kings Lynn and West Norfolk,E07000146,16/12/2021,Careline,Tools And Equipment,Supra UK Ltd T/A The Key Safe Company,21011059,"3,396.00"
Borough Council of Kings Lynn and West Norfolk,E07000146,16/12/2021,Climate Change,Advertising & Marketing,KL Publications Ltd,21011584,576.00
Borough Council of Kings Lynn and West Norfolk,E07000146,16/12/2021,Financial Services,Agency Staff,Hays Specialist Recruitment,21011581,"1,180.00"
Borough Council of Kings Lynn and West Norfolk,E07000146,16/12/2021,Financial Services,Agency Staff,Hays Specialist Recruitment,21011527,"1,475.00"
Borough Council of Kings Lynn and West Norfolk,E07000146,16/12/2021,Financial Services,Agency Staff,Hays Specialist Recruitment,21011487,"2,950.00"
Borough Council of Kings Lynn and West Norfolk,E07000146,16/12/2021,Off Street CP Vehicles,Equipment/Materials,Webfleet Solutions,21011596,"1,315.00"
Borough Council of Kings Lynn and West Norfolk,E07000146,16/12/2021,NNDC Decrim Vehicles,Equipment/Materials,Webfleet Solutions,21011596,"2,301.00"
Borough Council of Kings Lynn and West Norfolk,E07000146,16/12/2021,Decriminalisation,Equipment/Materials,Webfleet Solutions,21011596,"3,780.00"
Borough Council of Kings Lynn and West Norfolk,E07000146,16/12/2021,ICT,Communications,Softcat PLC,21011589,"7,717.62"
Borough Council of Kings Lynn and West Norfolk,E07000146,16/12/2021,NNDC Carpark Operation,Vehicle - repairs & Maint,Kings Lynn Auto Electrical Ltd,21011526,232.00
Borough Council of Kings Lynn and West Norfolk,E07000146,16/12/2021,Parking Operations - Brgh,Repairs & Maintenance,Kings Lynn Auto Electrical Ltd,21011526,116.00
Borough Council of Kings Lynn and West Norfolk,E07000146,16/12/2021,Decrim - Operational,Vehicle - repairs & Maint,Kings Lynn Auto Electrical Ltd,21011526,406.00
Borough Council of Kings Lynn and West Norfolk,E07000146,16/12/2021,General Property,Advertising & Marketing,Rightmove Group Ltd,21010991,720.00
Borough Council of Kings Lynn and West Norfolk,E07000146,16/12/2021,Street Lighting,Repairs & Maintenance,Westcotec Ltd,21010963,"1,054.95"
Borough Council of Kings Lynn and West Norfolk,E07000146,16/12/2021,Lynnsport 1,Contractor Works,Lovell Partnerships Ltd,21011420,"76,358.25"
Borough Council of Kings Lynn and West Norfolk,E07000146,16/12/2021,Sth Quay Sommerfield & Thomas CRF,External Fees/Consultancy,Player Roberts Bell Architects Ltd,21011513,490.00
Borough Council of Kings Lynn and West Norfolk,E07000146,20/12/2021,General Property,Repairs & Maintenance,CGM Group (East Anglia) Ltd,21011156,"1,050.00"
Borough Council of Kings Lynn and West Norfolk,E07000146,20/12/2021,Food Hygiene General,Tools And Equipment,Dell Corporation Ltd,21011448,530.76
Borough Council of Kings Lynn and West Norfolk,E07000146,20/12/2021,Crematorium Trading Account,Book Of Remembrance Costs,F G Marshall Ltd,21011086,745.82
Borough Council of Kings Lynn and West Norfolk,E07000146,20/12/2021,KL Innovation Centre,Repairs & Maintenance,Mr Brights Ltd,21011587,"1,304.00"
Borough Council of Kings Lynn and West Norfolk,E07000146,20/12/2021,Habitat Regulations,Small Projects,Norfolk County Council,21011679,"4,907.00"
Borough Council of Kings Lynn and West Norfolk,E07000146,20/12/2021,Financial Services,Postages,Royal Mail Group Ltd,22007159,351.91
Borough Council of Kings Lynn and West Norfolk,E07000146,20/12/2021,Benefit Administration,Postages,Royal Mail Group Ltd,22007159,723.57
Borough Council of Kings Lynn and West Norfolk,E07000146,20/12/2021,Cost of Collection - CTax,Postages,Royal Mail Group Ltd,22007159,904.13
Borough Council of Kings Lynn and West Norfolk,E07000146,20/12/2021,Kings Lynn Bid,Postages,Royal Mail Group Ltd,22007159,1.32
Borough Council of Kings Lynn and West Norfolk,E07000146,20/12/2021,Pub & Tourism int charges,Postages,Royal Mail Group Ltd,22007159,2.64
Borough Council of Kings Lynn and West Norfolk,E07000146,20/12/2021,Benefit Administration,Postages,Royal Mail Group Ltd,22007159,20.37
Borough Council of Kings Lynn and West Norfolk,E07000146,20/12/2021,Cost of Collection - CTax,Postages,Royal Mail Group Ltd,22007159,12.78
Borough Council of Kings Lynn and West Norfolk,E07000146,20/12/2021,Factory 1 Refurb,Works,Smith Building Services Ltd,21011558,"4,250.00"
Borough Council of Kings Lynn and West Norfolk,E07000146,20/12/2021,Factory 1 Refurb,Works,Smith Building Services Ltd,21011559,"1,430.00"
Borough Council of Kings Lynn and West Norfolk,E07000146,20/12/2021,Rough Sleeper Initiative Y3,Miscellaneous,The Purfleet Trust,21011670,"1,333.00"
Borough Council of Kings Lynn and West Norfolk,E07000146,20/12/2021,North Lynn Industrial Estate,Repairs & Maintenance,David Trundley Design Services Ltd,21011661,"3,000.00"
Borough Council of Kings Lynn and West Norfolk,E07000146,20/12/2021,ICT,Computer Hardware Maint,UPS Systems PLC,21010995,"1,943.00"
Borough Council of Kings Lynn and West Norfolk,E07000146,20/12/2021,General Property,Professional Fees,Fields in Trust,22007148,500.00
Borough Council of Kings Lynn and West Norfolk,E07000146,20/12/2021,Play Areas,Repairs & Maintenance,Play Inspection Company Ltd,21011673,"3,533.50"
Borough Council of Kings Lynn and West Norfolk,E07000146,20/12/2021,Financial Services,Agency Staff,Hays Specialist Recruitment,21011665,"2,950.00"
Borough Council of Kings Lynn and West Norfolk,E07000146,20/12/2021,Financial Services,Contracted Services,Hays Specialist Recruitment,21011663,"2,360.00"
Borough Council of Kings Lynn and West Norfolk,E07000146,20/12/2021,Pontoons at South Quay,Repairs & Maintenance,Rolec Services Ltd,21011115,454.00
Borough Council of Kings Lynn and West Norfolk,E07000146,20/12/2021,Cashless Pk JG (Bk on St),Transaction Fee,Chipside Ltd,21011602,15.00
Borough Council of Kings Lynn and West Norfolk,E07000146,20/12/2021,Cashless Pk JE(NN on St),Transaction Fee,Chipside Ltd,21011602,126.00
Borough Council of Kings Lynn and West Norfolk,E07000146,20/12/2021,Cashless Pk JI(GYon St),Transaction Fee,Chipside Ltd,21011602,163.24
Borough Council of Kings Lynn and West Norfolk,E07000146,20/12/2021,Cashless Park KR (KLWN on ST),Transaction Fee,Chipside Ltd,21011602,236.42
Borough Council of Kings Lynn and West Norfolk,E07000146,20/12/2021,Cashless Pk YT(GY off St),Transaction Fee,Chipside Ltd,21011602,360.17
Borough Council of Kings Lynn and West Norfolk,E07000146,20/12/2021,Cashless Pk JF(NN on St),Transaction Fee,Chipside Ltd,21011602,521.83
Borough Council of Kings Lynn and West Norfolk,E07000146,20/12/2021,Cashless Park KZ (KLWN off ST),Transaction Fee,Chipside Ltd,21011602,"2,854.83"
Borough Council of Kings Lynn and West Norfolk,E07000146,20/12/2021,Community Projects CRS,Service Level Agreements,Evolve Guards Ltd,21011617,"2,813.00"
Borough Council of Kings Lynn and West Norfolk,E07000146,20/12/2021,General Property,Repairs & Maintenance,Cliveden Conservation,21011607,655.00
Borough Council of Kings Lynn and West Norfolk,E07000146,20/12/2021,Kings Lynn Christmas Lights,Professional Fees,Stuart Power Ltd,21011177,585.50
Borough Council of Kings Lynn and West Norfolk,E07000146,20/12/2021,Rough Sleeper Fund,Covid 19,Excaliber Security Services Ltd,21011618,"5,107.20"
Borough Council of Kings Lynn and West Norfolk,E07000146,20/12/2021,Rough Sleeper Fund,Covid 19,Excaliber Security Services Ltd,21011619,"5,107.20"
Borough Council of Kings Lynn and West Norfolk,E07000146,20/12/2021,Rough Sleeper Fund,Covid 19,Excaliber Security Services Ltd,21011624,"5,107.20"
Borough Council of Kings Lynn and West Norfolk,E07000146,20/12/2021,Factory 1 Refurb,Works,Redroc Group Ltd t/a JC Electrical,21011557,"1,000.00"
Borough Council of Kings Lynn and West Norfolk,E07000146,20/12/2021,Factory 1 Refurb,Works,Redroc Group Ltd t/a JC Electrical,21011557,"1,903.20"
Borough Council of Kings Lynn and West Norfolk,E07000146,20/12/2021,Printing & Graphics,Materials,Premier Paper Group Ltd,21011671,485.98
Borough Council of Kings Lynn and West Norfolk,E07000146,20/12/2021,Kings Court Kings Lynn,Purchased For Resale,Premier Paper Group Ltd,21011672,485.98
Borough Council of Kings Lynn and West Norfolk,E07000146,20/12/2021,Parking Operations - Brgh,Repairs & Maintenance,UK Power Networks (Operations ) Ltd,22007147,"2,801.00"
Borough Council of Kings Lynn and West Norfolk,E07000146,20/12/2021,ICT,Communications,Claranet Ltd,21011613,"1,359.02"
Borough Council of Kings Lynn and West Norfolk,E07000146,20/12/2021,Mintlyn Crematorium,Broadband Charge,Claranet Ltd,21011613,147.47
Borough Council of Kings Lynn and West Norfolk,E07000146,20/12/2021,NNDC Carpark Operation,Broadband Charge,Claranet Ltd,21011613,141.68
Borough Council of Kings Lynn and West Norfolk,E07000146,20/12/2021,ICT,Broadband Charge,Claranet Ltd,21011613,48.32
Borough Council of Kings Lynn and West Norfolk,E07000146,20/12/2021,South Lynn Community Centre,Broadband Charge,Claranet Ltd,21011613,48.32
Borough Council of Kings Lynn and West Norfolk,E07000146,20/12/2021,Benefit Administration,Broadband Charge,Claranet Ltd,21011613,288.85
Borough Council of Kings Lynn and West Norfolk,E07000146,20/12/2021,Air Quality,Broadband Charge,Claranet Ltd,21011613,138.54
Borough Council of Kings Lynn and West Norfolk,E07000146,20/12/2021,CCTV,Broadband Charge,Claranet Ltd,21011613,69.27
Borough Council of Kings Lynn and West Norfolk,E07000146,20/12/2021,Radio Phones,Communications,Claranet Ltd,21011613,67.76
Borough Council of Kings Lynn and West Norfolk,E07000146,20/12/2021,Play Areas,Tools And Equipment,Kompan Ltd,21011010,488.40
Borough Council of Kings Lynn and West Norfolk,E07000146,20/12/2021,Housing Options Programme,Temporary Accommodation,The Grange Hotel,21011641,641.69
Borough Council of Kings Lynn and West Norfolk,E07000146,20/12/2021,Housing Options Programme,Temporary Accommodation,The Grange Hotel,21011643,641.69
Borough Council of Kings Lynn and West Norfolk,E07000146,20/12/2021,Housing Options Programme,Temporary Accommodation,The Grange Hotel,21011644,641.69
Borough Council of Kings Lynn and West Norfolk,E07000146,20/12/2021,Habitat Regulations,Small Projects,Norfolk Wildlife Trust,22007153,"6,117.70"
Borough Council of Kings Lynn and West Norfolk,E07000146,20/12/2021,VJ Day 2020,Miscellaneous,Portable Space Limited,21011642,"3,040.00"
Borough Council of Kings Lynn and West Norfolk,E07000146,20/12/2021,Parking Operations - Brgh,Royal Household Support,Sign Trade Supplies Ltd,21011600,"2,348.96"
Borough Council of Kings Lynn and West Norfolk,E07000146,20/12/2021,KL Arts Centre,Hirings Ticketed,Nigel 'Boy' Syer,22007152,"1,656.25"
Borough Council of Kings Lynn and West Norfolk,E07000146,20/12/2021,KL Arts Centre,Hiring Charges Income,Nigel 'Boy' Syer,22007152,-406.67
Borough Council of Kings Lynn and West Norfolk,E07000146,20/12/2021,KL Arts Centre,Hirings Ticketed,Nigel 'Boy' Syer,22007152,83.33
Borough Council of Kings Lynn and West Norfolk,E07000146,20/12/2021,KL Arts Centre,Commission On Box Office,Nigel 'Boy' Syer,22007152,-99.38
Borough Council of Kings Lynn and West Norfolk,E07000146,20/12/2021,KL Arts Centre,PRS Recharge,Nigel 'Boy' Syer,22007152,-83.48
Borough Council of Kings Lynn and West Norfolk,E07000146,20/12/2021,KL Arts Centre,Credit Card Recharge,Nigel 'Boy' Syer,22007152,-81.64
Borough Council of Kings Lynn and West Norfolk,E07000146,21/12/2021,LILY 5,DWP Household Support Fund Expenditure,Edenred (UK Group) Ltd,22007211,"10,000.00"
Borough Council of Kings Lynn and West Norfolk,E07000146,23/12/2021,Creditors Holding Account,Water & Drainage Rates,WAVE,22007190,"4,661.19"
Borough Council of Kings Lynn and West Norfolk,E07000146,23/12/2021,Creditors Holding Account,Water & Drainage Rates,WAVE,22007191,"3,239.07"
Borough Council of Kings Lynn and West Norfolk,E07000146,23/12/2021,Creditors Holding Account,Water & Drainage Rates,WAVE,22007192,"27,253.16"
Borough Council of Kings Lynn and West Norfolk,E07000146,23/12/2021,EZ- Roads/Infrastructure,External Fees/Consultancy,Anglian Water Services Ltd,22007168,617.00
Borough Council of Kings Lynn and West Norfolk,E07000146,23/12/2021,Heacham Beach,Repairs & Maintenance,Penty Contractors Ltd,21011711,570.00
Borough Council of Kings Lynn and West Norfolk,E07000146,23/12/2021,Resort Seafront,Repairs & Maintenance,Penty Contractors Ltd,21011712,"1,750.00"
Borough Council of Kings Lynn and West Norfolk,E07000146,23/12/2021,Parking Operations - Brgh,Repairs & Maintenance,Penty Contractors Ltd,21011714,650.00
Borough Council of Kings Lynn and West Norfolk,E07000146,23/12/2021,Crematorium Trading Account,Urns/Caskets (Resale),Teleshore UK Ltd t/a Gemini CCS Ltd,21011252,462.50
Borough Council of Kings Lynn and West Norfolk,E07000146,23/12/2021,Housing Options Programme,Homeless Prevention Fund,Rounce & Evans,22007177,"1,723.00"
Borough Council of Kings Lynn and West Norfolk,E07000146,23/12/2021,EZ- Roads/Infrastructure,External Fees/Consultancy,Anglian Water Services Ltd,22007169,684.00
Borough Council of Kings Lynn and West Norfolk,E07000146,23/12/2021,Public conveniences,Sewerage/Cesspool Empty,BACO-Compak (Norfolk) Ltd,21011759,"1,505.00"
Borough Council of Kings Lynn and West Norfolk,E07000146,23/12/2021,ICT,Broadband Charge,British Telecommunications PLC,21011760,"1,032.42"
Borough Council of Kings Lynn and West Norfolk,E07000146,23/12/2021,Creative Hub - Art Centre/Guildhall Complex,Professional Fees,Festival and Events International Ltd,21011441,"5,218.30"
Borough Council of Kings Lynn and West Norfolk,E07000146,23/12/2021,Mintlyn Crematorium,Furniture,Treske Ltd,21011742,"1,300.00"
Borough Council of Kings Lynn and West Norfolk,E07000146,23/12/2021,Home Improvements Agency,Miscellaneous,RAFA,22007207,"4,866.02"
Borough Council of Kings Lynn and West Norfolk,E07000146,23/12/2021,Housing Options Programme,Homeless Prevention Fund,Countrywide Residential Lettings,22007172,"2,850.00"
Borough Council of Kings Lynn and West Norfolk,E07000146,23/12/2021,ICT,Telephones,British Telecommunications PLC,21011763,505.05
Borough Council of Kings Lynn and West Norfolk,E07000146,23/12/2021,Licensing,Tools And Equipment,Dell Corporation Ltd,21011450,530.76
Borough Council of Kings Lynn and West Norfolk,E07000146,23/12/2021,Property Services,Tools And Equipment,Dell Corporation Ltd,21011456,544.31
Borough Council of Kings Lynn and West Norfolk,E07000146,23/12/2021,Financial Services,Agency Staff,Hays Specialist Recruitment,21011855,"2,950.00"
Borough Council of Kings Lynn and West Norfolk,E07000146,23/12/2021,Printing & Graphics,Repairs & Maintenance,Fingerprint Digital Ltd,22007067,"1,980.00"
Borough Council of Kings Lynn and West Norfolk,E07000146,23/12/2021,Dog Warden and Services,Contracted Services,Dogotel Kennels & Cattery,22007205,895.00
Borough Council of Kings Lynn and West Norfolk,E07000146,23/12/2021,Dog Warden and Services,Kennel Fees Recd - Extl,Dogotel Kennels & Cattery,22007205,-95.50
Borough Council of Kings Lynn and West Norfolk,E07000146,23/12/2021,Parking Operations - Brgh,Tools And Equipment,Mobius Networks Ltd,21011856,633.30
Borough Council of Kings Lynn and West Norfolk,E07000146,23/12/2021,Hunstanton Southend Road,Contractor Works,Lovell Partnerships Ltd,21011421,"113,412.64"
Borough Council of Kings Lynn and West Norfolk,E07000146,23/12/2021,Hunstanton Southend Road,Contractor Works,Lovell Partnerships Ltd,21011703,"17,761.66"
Borough Council of Kings Lynn and West Norfolk,E07000146,23/12/2021,Hunstanton Bus Station & NCC Library,Contractor Works,Lovell Partnerships Ltd,21011704,"1,271.70"
Borough Council of Kings Lynn and West Norfolk,E07000146,23/12/2021,Lynnsport 1,Contractor Works,Lovell Partnerships Ltd,21011705,"19,101.27"
Borough Council of Kings Lynn and West Norfolk,E07000146,23/12/2021,NORA Phase 4,Contractor Works,Lovell Partnerships Ltd,21011706,"508,322.78"
Borough Council of Kings Lynn and West Norfolk,E07000146,23/12/2021,Parkway - Gaywood,Contractor Works,Lovell Partnerships Ltd,21011707,"68,843.52"
Borough Council of Kings Lynn and West Norfolk,E07000146,23/12/2021,Salters Road,Contractor Works,Lovell Partnerships Ltd,21011708,"160,976.28"
Borough Council of Kings Lynn and West Norfolk,E07000146,23/12/2021,Planning Control,Professional Fees,T Leader St Johns Regulatory Fee Share Account,21011860,"3,000.00"
Borough Council of Kings Lynn and West Norfolk,E07000146,23/12/2021,KL Arts Centre,Hirings Ticketed,John Giller Drama & Theatre Academy,22007206,"2,558.33"
Borough Council of Kings Lynn and West Norfolk,E07000146,23/12/2021,KL Arts Centre,Hiring Charges Income,John Giller Drama & Theatre Academy,22007206,-421.67
Borough Council of Kings Lynn and West Norfolk,E07000146,23/12/2021,KL Arts Centre,Hirings Ticketed,John Giller Drama & Theatre Academy,22007206,83.33
Borough Council of Kings Lynn and West Norfolk,E07000146,23/12/2021,KL Arts Centre,Commission On Box Office,John Giller Drama & Theatre Academy,22007206,-153.50
Borough Council of Kings Lynn and West Norfolk,E07000146,23/12/2021,KL Arts Centre,PRS Recharge,John Giller Drama & Theatre Academy,22007206,-81.16
Borough Council of Kings Lynn and West Norfolk,E07000146,23/12/2021,KL Arts Centre,Credit Card Recharge,John Giller Drama & Theatre Academy,22007206,-112.96
Borough Council of Kings Lynn and West Norfolk,E07000146,23/12/2021,Home Improvements Agency,Agency Staff,Seven Resourcing Ltd,21011468,"1,139.96"
